DEPARTMENT_FAMILY,ENTITY,PAYMENT_DATE,EXPENSE_TYPE,EXPENSE_AREA,SUPPLIER,TRANSACTION_NUMBER, Amount ,DESCRIPTION
Ministry of Justice,HMCTS,01/11/2016,265000-IT & Telecommunications,AA999-HQ Customer Service,ATOS IT SERVICES UK LTD,3563310, 25.78 ,New IPT Mobility account with voicemail account 1-10 Accounts
Ministry of Justice,HMCTS,01/11/2016,265000-IT & Telecommunications,AA999-HQ Customer Service,ATOS IT SERVICES UK LTD,3563310, 25.78 ,New IPT Mobility account with voicemail account 1-10 Accounts
Ministry of Justice,HMCTS,30/11/2016,265000-IT & Telecommunications,AA999-HQ Customer Service,ATOS IT SERVICES UK LTD,3594407, 25.78 ,New IPT Mobility account with voicemail account 1-10 Accounts
Ministry of Justice,HMCTS,01/11/2016,265000-IT & Telecommunications,AA999-HQ Customer Service,ATOS IT SERVICES UK LTD,3563310, 365.00 ,Crystal Reports 2011 (v14)  (Windows 8.1)
Ministry of Justice,HMCTS,30/11/2016,265000-IT & Telecommunications,AA999-HQ Customer Service,ATOS IT SERVICES UK LTD,3594407, 488.99 ,1 to 5 Devices Redeploy a Print Device
Ministry of Justice,HMCTS,30/11/2016,265000-IT & Telecommunications,AA999-HQ Customer Service,ATOS IT SERVICES UK LTD,3594407, 984.03 ,"Small Form Laptop - Lenovo ThinkPad X250 - [12.5"" screen] (Windows 8.1)"
Ministry of Justice,HMCTS,30/11/2016,265000-IT & Telecommunications,AC999-HQ Communications,ATOS IT SERVICES UK LTD,3594407, 5.13 ,Standard Keyboard
Ministry of Justice,HMCTS,30/11/2016,265000-IT & Telecommunications,AC999-HQ Communications,ATOS IT SERVICES UK LTD,3594407, 11.62 ,Microsoft Visio 2007 Professional (Windows 8.1)
Ministry of Justice,HMCTS,30/11/2016,265000-IT & Telecommunications,AC999-HQ Communications,ATOS IT SERVICES UK LTD,3594407, 11.62 ,Microsoft Visio 2007 Standard (Windows 8.1)
Ministry of Justice,HMCTS,01/11/2016,265000-IT & Telecommunications,AC999-HQ Communications,ATOS IT SERVICES UK LTD,3563310, 25.78 ,New IPT Mobility account without voicemail 1-10 Accounts
Ministry of Justice,HMCTS,30/11/2016,265000-IT & Telecommunications,AC999-HQ Communications,ATOS IT SERVICES UK LTD,3594407, 25.78 ,New IPT Mobility account with voicemail account 1-10 Accounts
Ministry of Justice,HMCTS,30/11/2016,265000-IT & Telecommunications,AC999-HQ Communications,ATOS IT SERVICES UK LTD,3594407, 25.78 ,New IPT Mobility account with voicemail account 1-10 Accounts
Ministry of Justice,HMCTS,01/11/2016,265000-IT & Telecommunications,AC999-HQ Communications,ATOS IT SERVICES UK LTD,3563310, 46.00 ,Provision and support of Secure Remote Access (RWSII) Capability
Ministry of Justice,HMCTS,01/11/2016,265000-IT & Telecommunications,AC999-HQ Communications,ATOS IT SERVICES UK LTD,3563310, 46.00 ,Provision and support of Secure Remote Access (RWSII) Capability
Ministry of Justice,HMCTS,01/11/2016,265000-IT & Telecommunications,AC999-HQ Communications,ATOS IT SERVICES UK LTD,3563310, 46.00 ,Provision and support of Secure Remote Access (RWSII) Capability
Ministry of Justice,HMCTS,30/11/2016,265000-IT & Telecommunications,AC999-HQ Communications,ATOS IT SERVICES UK LTD,3594407, 46.00 ,Provision and support of Secure Remote Access (RWSII) Capability
Ministry of Justice,HMCTS,01/11/2016,265000-IT & Telecommunications,AC999-HQ Communications,ATOS IT SERVICES UK LTD,3563310, 51.56 ,New IPT Mobility account with voicemail account 1-10 Accounts
Ministry of Justice,HMCTS,30/11/2016,265000-IT & Telecommunications,AC999-HQ Communications,ATOS IT SERVICES UK LTD,3594407, 78.26 ,Reassign BlackBerry device within Business Unit
Ministry of Justice,HMCTS,01/11/2016,265000-IT & Telecommunications,AC999-HQ Communications,ATOS IT SERVICES UK LTD,3563310, 984.03 ,"Small Form Laptop - Lenovo ThinkPad X250 - [12.5"" screen] (Windows 8.1)"
Ministry of Justice,HMCTS,01/11/2016,265000-IT & Telecommunications,AC999-HQ Communications,ATOS IT SERVICES UK LTD,3563310, 984.03 ,"Small Form Laptop - Lenovo ThinkPad X250 - [12.5"" screen] (Windows 8.1)"
Ministry of Justice,HMCTS,01/11/2016,265000-IT & Telecommunications,AC999-HQ Communications,ATOS IT SERVICES UK LTD,3563310, 984.03 ,"Small Form Laptop - Lenovo ThinkPad X250 - [12.5"" screen] (Windows 8.1)"
Ministry of Justice,HMCTS,30/11/2016,265000-IT & Telecommunications,AC999-HQ Communications,ATOS IT SERVICES UK LTD,3594407, 984.03 ,"Small Form Laptop - Lenovo ThinkPad X250 - [12.5"" screen] (Windows 8.1)"
Ministry of Justice,HMCTS,01/11/2016,265000-IT & Telecommunications,AD999-Head of Operations,ATOS IT SERVICES UK LTD,3563310, 25.78 ,Pick Up Group - Amend
Ministry of Justice,HMCTS,30/11/2016,265000-IT & Telecommunications,AD999-Head of Operations,ATOS IT SERVICES UK LTD,3594407, 46.00 ,Provision and support of Secure Remote Access (RWSII) Capability
Ministry of Justice,HMCTS,30/11/2016,265000-IT & Telecommunications,AD999-Head of Operations,ATOS IT SERVICES UK LTD,3594407, 46.00 ,Provision and support of Secure Remote Access (RWSII) Capability
Ministry of Justice,HMCTS,16/11/2016,223000-Other Expenditure,AD999-Head of Operations,GOVERNMENT LEGAL DEPARTMENT,11901, 312.90 , Government Legal Department Invoices
Ministry of Justice,HMCTS,30/11/2016,265000-IT & Telecommunications,AD999-Head of Operations,ATOS IT SERVICES UK LTD,3594407, 984.03 ,"Small Form Laptop - Lenovo ThinkPad X250 - [12.5"" screen] (Windows 8.1)"
Ministry of Justice,HMCTS,30/11/2016,265000-IT & Telecommunications,AD999-Head of Operations,ATOS IT SERVICES UK LTD,3594407, 984.03 ,"Small Form Laptop - Lenovo ThinkPad X250 - [12.5"" screen] (Windows 8.1)"
Ministry of Justice,HMCTS,30/11/2016,265000-IT & Telecommunications,AD999-Head of Operations,ATOS IT SERVICES UK LTD,3594407, 984.03 ,"Small Form Laptop - Lenovo ThinkPad X250 - [12.5"" screen] (Windows 8.1)"
Ministry of Justice,HMCTS,16/11/2016,223000-Other Expenditure,AD999-Head of Operations,GOVERNMENT LEGAL DEPARTMENT,11901," 26,484.52 ", Government Legal Department Invoices
Ministry of Justice,HMCTS,23/11/2016,610400-Debtors <1 year - Prepayments & Accrued Income,AG999-HQ - Estates,ST ALBANS CITY & DISTRICT COUNCIL,3587266," 2,534.70 ",Rates Invoice
Ministry of Justice,HMCTS,23/11/2016,610400-Debtors <1 year - Prepayments & Accrued Income,AG999-HQ - Estates,SALFORD CITY COUNCIL,3587244," 2,795.40 ",Rates Invoice
Ministry of Justice,HMCTS,25/11/2016,222002-Other Property Costs,AG999-HQ - Estates,DEPARTMENT FOR WORK & PENSIONS (DWP),3590737," 16,320.60 ",Utilities charge Tribunal sites
Ministry of Justice,HMCTS,23/11/2016,266000-Judicial Costs,AG999-HQ - Estates,GROUND TRANSPORT LTD,3587851," 23,397.89 ",Various Judges Lodgings - Ground Transport Ltd - Judicial Car Provision 2016 -17
Ministry of Justice,HMCTS,04/11/2016,222001-Maintenance,AG999-HQ - Estates,ARCADIS LLP,3568231," 32,231.94 ",Estates Director - HMCS HQ - Arcadis - Undertake work on the MOJ ED Transformation Programme
Ministry of Justice,HMCTS,15/11/2016,222001-Maintenance,AG999-HQ - Estates,ARCADIS LLP,3577720," 35,096.00 ",Estates Director - HMCS HQ - Arcadis - Undertake work on the MOJ ED Transformation Programme
Ministry of Justice,HMCTS,29/11/2016,222002-Other Property Costs,AG999-HQ - Estates,DEPARTMENT FOR WORK & PENSIONS (DWP),3593366," 46,643.60 ",Other government department charges Tribunal sites
Ministry of Justice,HMCTS,25/11/2016,222002-Other Property Costs,AG999-HQ - Estates,DEPARTMENT FOR WORK & PENSIONS (DWP),3590737," 166,471.56 ",Other government department charges Tribunal sites
Ministry of Justice,HMCTS,25/11/2016,222002-Other Property Costs,AG999-HQ - Estates,DEPARTMENT FOR WORK & PENSIONS (DWP),3590737," 725,450.19 ",Other government department charges Tribunal sites
Ministry of Justice,HMCTS,15/11/2016,222002-Other Property Costs,AG999-HQ - Estates,HM REVENUE & CUSTOMS,3577942," 820,198.99 ",Other government department occupancy charges
Ministry of Justice,HMCTS,01/11/2016,265000-IT & Telecommunications,"AM999-HQ - Civil, Family & Tribunals",ATOS IT SERVICES UK LTD,3563310, 25.78 ,New IPT Mobility account with voicemail account 1-10 Accounts
Ministry of Justice,HMCTS,30/11/2016,265000-IT & Telecommunications,"AM999-HQ - Civil, Family & Tribunals",ATOS IT SERVICES UK LTD,3594407, 25.78 ,Fixed IPT Phone Transfer to a new user 1-10 Devices
Ministry of Justice,HMCTS,01/11/2016,265000-IT & Telecommunications,"AM999-HQ - Civil, Family & Tribunals",ATOS IT SERVICES UK LTD,3563310, 46.00 ,Provision and support of Secure Remote Access (RWSII) Capability
Ministry of Justice,HMCTS,01/11/2016,265000-IT & Telecommunications,"AM999-HQ - Civil, Family & Tribunals",ATOS IT SERVICES UK LTD,3563310, 46.00 ,Provision and support of Secure Remote Access (RWSII) Capability
Ministry of Justice,HMCTS,01/11/2016,265000-IT & Telecommunications,"AM999-HQ - Civil, Family & Tribunals",ATOS IT SERVICES UK LTD,3563310, 46.00 ,Provision and support of Secure Remote Access (RWSII) Capability
Ministry of Justice,HMCTS,30/11/2016,265000-IT & Telecommunications,"AM999-HQ - Civil, Family & Tribunals",ATOS IT SERVICES UK LTD,3594407, 46.00 ,Provision and support of Secure Remote Access (RWSII) Capability
Ministry of Justice,HMCTS,01/11/2016,265000-IT & Telecommunications,"AM999-HQ - Civil, Family & Tribunals",ATOS IT SERVICES UK LTD,3563310, 104.23 ,Plantronics HW261 N Duo Headset 1-11 devices
Ministry of Justice,HMCTS,01/11/2016,265000-IT & Telecommunications,"AM999-HQ - Civil, Family & Tribunals",ATOS IT SERVICES UK LTD,3563310, 258.33 ,HP OfficeJet 100 Mobile Printer
Ministry of Justice,HMCTS,01/11/2016,265000-IT & Telecommunications,"AM999-HQ - Civil, Family & Tribunals",ATOS IT SERVICES UK LTD,3563310, 984.03 ,"Small Form Laptop - Lenovo ThinkPad X250 - [12.5"" screen] (Windows 8.1)"
Ministry of Justice,HMCTS,01/11/2016,265000-IT & Telecommunications,"AM999-HQ - Civil, Family & Tribunals",ATOS IT SERVICES UK LTD,3563310, 984.03 ,"Small Form Laptop - Lenovo ThinkPad X250 - [12.5"" screen] (Windows 8.1)"
Ministry of Justice,HMCTS,01/11/2016,265000-IT & Telecommunications,"AM999-HQ - Civil, Family & Tribunals",ATOS IT SERVICES UK LTD,3563310, 984.03 ,"Small Form Laptop - Lenovo ThinkPad X250 - [12.5"" screen] (Windows 8.1)"
Ministry of Justice,HMCTS,01/11/2016,265000-IT & Telecommunications,"AM999-HQ - Civil, Family & Tribunals",ATOS IT SERVICES UK LTD,3563310, 984.03 ,"Small Form Laptop - Lenovo ThinkPad X250 - [12.5"" screen] (Windows 8.1)"
Ministry of Justice,HMCTS,30/11/2016,265000-IT & Telecommunications,"AM999-HQ - Civil, Family & Tribunals",ATOS IT SERVICES UK LTD,3594407, 984.03 ,"Small Form Laptop - Lenovo ThinkPad X250 - [12.5"" screen] (Windows 8.1)"
Ministry of Justice,HMCTS,30/11/2016,265000-IT & Telecommunications,AP317-Tribunal Fees,ATOS IT SERVICES UK LTD,3594407, 10.09 ,4-Port USB Hub
Ministry of Justice,HMCTS,01/11/2016,265000-IT & Telecommunications,AP999-Reform Directorate,ATOS IT SERVICES UK LTD,3563310, 6.28 ,"TechAir 13.3"" Neoprene Slip Case"
Ministry of Justice,HMCTS,30/11/2016,265000-IT & Telecommunications,AP999-Reform Directorate,ATOS IT SERVICES UK LTD,3594407, 9.75 ,Logitech M185 Bluetooth Scroll Mouse
Ministry of Justice,HMCTS,01/11/2016,265000-IT & Telecommunications,AP999-Reform Directorate,ATOS IT SERVICES UK LTD,3563310, 11.62 ,Microsoft Project 2007 Standard (Windows 8.1)
Ministry of Justice,HMCTS,01/11/2016,265000-IT & Telecommunications,AP999-Reform Directorate,ATOS IT SERVICES UK LTD,3563310, 11.62 ,Microsoft Visio 2007 Professional (Windows 8.1)
Ministry of Justice,HMCTS,01/11/2016,265000-IT & Telecommunications,AP999-Reform Directorate,ATOS IT SERVICES UK LTD,3563310, 11.62 ,Microsoft Visio 2007 Professional (Windows 8.1)
Ministry of Justice,HMCTS,01/11/2016,265000-IT & Telecommunications,AP999-Reform Directorate,ATOS IT SERVICES UK LTD,3563310, 11.62 ,Microsoft Visio 2007 Standard (Windows 8.1)
Ministry of Justice,HMCTS,01/11/2016,265000-IT & Telecommunications,AP999-Reform Directorate,ATOS IT SERVICES UK LTD,3563310, 11.62 ,MS Project Professional
Ministry of Justice,HMCTS,01/11/2016,265000-IT & Telecommunications,AP999-Reform Directorate,ATOS IT SERVICES UK LTD,3563310, 11.62 ,MS Project Professional
Ministry of Justice,HMCTS,01/11/2016,265000-IT & Telecommunications,AP999-Reform Directorate,ATOS IT SERVICES UK LTD,3563310, 11.62 ,MS Visio Professional
Ministry of Justice,HMCTS,30/11/2016,265000-IT & Telecommunications,AP999-Reform Directorate,ATOS IT SERVICES UK LTD,3594407, 11.62 ,Microsoft Project 2007 Standard (Windows 8.1)
Ministry of Justice,HMCTS,30/11/2016,265000-IT & Telecommunications,AP999-Reform Directorate,ATOS IT SERVICES UK LTD,3594407, 11.62 ,Microsoft Visio 2007 Standard (Windows 8.1)
Ministry of Justice,HMCTS,30/11/2016,265000-IT & Telecommunications,AP999-Reform Directorate,ATOS IT SERVICES UK LTD,3594407, 11.62 ,MS Project Professional
Ministry of Justice,HMCTS,30/11/2016,265000-IT & Telecommunications,AP999-Reform Directorate,ATOS IT SERVICES UK LTD,3594407, 11.62 ,MS Visio Professional
Ministry of Justice,HMCTS,30/11/2016,265000-IT & Telecommunications,AP999-Reform Directorate,ATOS IT SERVICES UK LTD,3594407, 14.98 ,Display port to VGA Cable Adapter
Ministry of Justice,HMCTS,01/11/2016,265000-IT & Telecommunications,AP999-Reform Directorate,ATOS IT SERVICES UK LTD,3563310, 19.27 ,Laptop Rucksack
Ministry of Justice,HMCTS,30/11/2016,265000-IT & Telecommunications,AP999-Reform Directorate,ATOS IT SERVICES UK LTD,3594407, 19.27 ,Laptop Rucksack
Ministry of Justice,HMCTS,01/11/2016,265000-IT & Telecommunications,AP999-Reform Directorate,ATOS IT SERVICES UK LTD,3563310, 20.00 ,10m Network Cable
Ministry of Justice,HMCTS,01/11/2016,265000-IT & Telecommunications,AP999-Reform Directorate,ATOS IT SERVICES UK LTD,3563310, 25.23 ,Spare battery for BlackBerry 9320
Ministry of Justice,HMCTS,01/11/2016,265000-IT & Telecommunications,AP999-Reform Directorate,ATOS IT SERVICES UK LTD,3563310, 25.23 ,Spare battery for BlackBerry 9320
Ministry of Justice,HMCTS,01/11/2016,265000-IT & Telecommunications,AP999-Reform Directorate,ATOS IT SERVICES UK LTD,3563310, 25.78 ,Analogue Extension Configuration Changes 1 - 10
Ministry of Justice,HMCTS,01/11/2016,265000-IT & Telecommunications,AP999-Reform Directorate,ATOS IT SERVICES UK LTD,3563310, 25.78 ,Analogue Extension Configuration Changes 1 - 10
Ministry of Justice,HMCTS,01/11/2016,265000-IT & Telecommunications,AP999-Reform Directorate,ATOS IT SERVICES UK LTD,3563310, 25.78 ,Hunt Group - Extension
Ministry of Justice,HMCTS,01/11/2016,265000-IT & Telecommunications,AP999-Reform Directorate,ATOS IT SERVICES UK LTD,3563310, 25.78 ,Hunt Group - Extension
Ministry of Justice,HMCTS,01/11/2016,265000-IT & Telecommunications,AP999-Reform Directorate,ATOS IT SERVICES UK LTD,3563310, 25.78 ,Mobility Account Changes 1-10 Accounts
Ministry of Justice,HMCTS,01/11/2016,265000-IT & Telecommunications,AP999-Reform Directorate,ATOS IT SERVICES UK LTD,3563310, 25.78 ,New IPT Mobility account with voicemail account 1-10 Accounts
Ministry of Justice,HMCTS,01/11/2016,265000-IT & Telecommunications,AP999-Reform Directorate,ATOS IT SERVICES UK LTD,3563310, 25.78 ,New IPT Mobility account with voicemail account 1-10 Accounts
Ministry of Justice,HMCTS,01/11/2016,265000-IT & Telecommunications,AP999-Reform Directorate,ATOS IT SERVICES UK LTD,3563310, 25.78 ,New IPT Mobility account with voicemail account 1-10 Accounts
Ministry of Justice,HMCTS,01/11/2016,265000-IT & Telecommunications,AP999-Reform Directorate,ATOS IT SERVICES UK LTD,3563310, 25.78 ,New IPT Mobility account with voicemail account 1-10 Accounts
Ministry of Justice,HMCTS,01/11/2016,265000-IT & Telecommunications,AP999-Reform Directorate,ATOS IT SERVICES UK LTD,3563310, 25.78 ,New IPT Mobility account with voicemail account 1-10 Accounts
Ministry of Justice,HMCTS,01/11/2016,265000-IT & Telecommunications,AP999-Reform Directorate,ATOS IT SERVICES UK LTD,3563310, 25.78 ,Pick Up Group - Amend
Ministry of Justice,HMCTS,01/11/2016,265000-IT & Telecommunications,AP999-Reform Directorate,ATOS IT SERVICES UK LTD,3563310, 25.78 ,Pick Up Group - New
Ministry of Justice,HMCTS,01/11/2016,265000-IT & Telecommunications,AP999-Reform Directorate,ATOS IT SERVICES UK LTD,3563310, 25.78 ,Remote Activation Only of New Analogue Extension Port
Ministry of Justice,HMCTS,30/11/2016,265000-IT & Telecommunications,AP999-Reform Directorate,ATOS IT SERVICES UK LTD,3594407, 25.78 ,New IPT Mobility account with voicemail account 1-10 Accounts
Ministry of Justice,HMCTS,30/11/2016,265000-IT & Telecommunications,AP999-Reform Directorate,ATOS IT SERVICES UK LTD,3594407, 25.78 ,New IPT Mobility account with voicemail account 1-10 Accounts
Ministry of Justice,HMCTS,30/11/2016,265000-IT & Telecommunications,AP999-Reform Directorate,ATOS IT SERVICES UK LTD,3594407, 25.78 ,New IPT Mobility account with voicemail account 1-10 Accounts
Ministry of Justice,HMCTS,30/11/2016,265000-IT & Telecommunications,AP999-Reform Directorate,ATOS IT SERVICES UK LTD,3594407, 25.78 ,New IPT Mobility account with voicemail account 1-10 Accounts
Ministry of Justice,HMCTS,30/11/2016,265000-IT & Telecommunications,AP999-Reform Directorate,ATOS IT SERVICES UK LTD,3594407, 25.78 ,New IPT Mobility account with voicemail account 1-10 Accounts
Ministry of Justice,HMCTS,30/11/2016,265000-IT & Telecommunications,AP999-Reform Directorate,ATOS IT SERVICES UK LTD,3594407, 25.78 ,New IPT Mobility account with voicemail account 1-10 Accounts
Ministry of Justice,HMCTS,30/11/2016,265000-IT & Telecommunications,AP999-Reform Directorate,ATOS IT SERVICES UK LTD,3594407, 25.78 ,Pick Up Group - Amend
Ministry of Justice,HMCTS,30/11/2016,265000-IT & Telecommunications,AP999-Reform Directorate,ATOS IT SERVICES UK LTD,3594407, 25.95 ,Lenovo Laptop Rucksack
Ministry of Justice,HMCTS,30/11/2016,265000-IT & Telecommunications,AP999-Reform Directorate,ATOS IT SERVICES UK LTD,3594407, 28.84 ,Lenovo X240/Yoga Mains Adaptor
Ministry of Justice,HMCTS,01/11/2016,265000-IT & Telecommunications,AP999-Reform Directorate,ATOS IT SERVICES UK LTD,3563310, 46.00 ,Provision and support of Secure Remote Access (RWSII) Capability
Ministry of Justice,HMCTS,01/11/2016,265000-IT & Telecommunications,AP999-Reform Directorate,ATOS IT SERVICES UK LTD,3563310, 46.00 ,Provision and support of Secure Remote Access (RWSII) Capability
Ministry of Justice,HMCTS,01/11/2016,265000-IT & Telecommunications,AP999-Reform Directorate,ATOS IT SERVICES UK LTD,3563310, 46.00 ,Provision and support of Secure Remote Access (RWSII) Capability
Ministry of Justice,HMCTS,01/11/2016,265000-IT & Telecommunications,AP999-Reform Directorate,ATOS IT SERVICES UK LTD,3563310, 46.00 ,Provision and support of Secure Remote Access (RWSII) Capability
Ministry of Justice,HMCTS,01/11/2016,265000-IT & Telecommunications,AP999-Reform Directorate,ATOS IT SERVICES UK LTD,3563310, 46.00 ,Provision and support of Secure Remote Access (RWSII) Capability
Ministry of Justice,HMCTS,30/11/2016,265000-IT & Telecommunications,AP999-Reform Directorate,ATOS IT SERVICES UK LTD,3594407, 46.00 ,Provision and support of Secure Remote Access (RWSII) Capability
Ministry of Justice,HMCTS,30/11/2016,265000-IT & Telecommunications,AP999-Reform Directorate,ATOS IT SERVICES UK LTD,3594407, 46.00 ,Provision and support of Secure Remote Access (RWSII) Capability
Ministry of Justice,HMCTS,30/11/2016,265000-IT & Telecommunications,AP999-Reform Directorate,ATOS IT SERVICES UK LTD,3594407, 46.00 ,Provision and support of Secure Remote Access (RWSII) Capability
Ministry of Justice,HMCTS,30/11/2016,265000-IT & Telecommunications,AP999-Reform Directorate,ATOS IT SERVICES UK LTD,3594407, 46.00 ,Provision and support of Secure Remote Access (RWSII) Capability
Ministry of Justice,HMCTS,30/11/2016,265000-IT & Telecommunications,AP999-Reform Directorate,ATOS IT SERVICES UK LTD,3594407, 46.00 ,Provision and support of Secure Remote Access (RWSII) Capability
Ministry of Justice,HMCTS,30/11/2016,265000-IT & Telecommunications,AP999-Reform Directorate,ATOS IT SERVICES UK LTD,3594407, 46.00 ,Provision and support of Secure Remote Access (RWSII) Capability
Ministry of Justice,HMCTS,30/11/2016,265000-IT & Telecommunications,AP999-Reform Directorate,ATOS IT SERVICES UK LTD,3594407, 46.00 ,Provision and support of Secure Remote Access (RWSII) Capability
Ministry of Justice,HMCTS,30/11/2016,265000-IT & Telecommunications,AP999-Reform Directorate,ATOS IT SERVICES UK LTD,3594407, 46.00 ,Provision and support of Secure Remote Access (RWSII) Capability
Ministry of Justice,HMCTS,01/11/2016,265000-IT & Telecommunications,AP999-Reform Directorate,ATOS IT SERVICES UK LTD,3563310, 51.56 ,Fixed IPT Phone Change 1-10 Devices
Ministry of Justice,HMCTS,30/11/2016,265000-IT & Telecommunications,AP999-Reform Directorate,ATOS IT SERVICES UK LTD,3594407, 66.86 , AC Adapter for Elitebook 
Ministry of Justice,HMCTS,01/11/2016,265000-IT & Telecommunications,AP999-Reform Directorate,ATOS IT SERVICES UK LTD,3563310, 72.00 ,Relocation of 2 desktop client devices within the same building.
Ministry of Justice,HMCTS,01/11/2016,265000-IT & Telecommunications,AP999-Reform Directorate,ATOS IT SERVICES UK LTD,3563310, 78.26 ,Reassign BlackBerry device within Business Unit
Ministry of Justice,HMCTS,30/11/2016,265000-IT & Telecommunications,AP999-Reform Directorate,ATOS IT SERVICES UK LTD,3594407, 78.26 ,Reassign BlackBerry device within Business Unit
Ministry of Justice,HMCTS,30/11/2016,265000-IT & Telecommunications,AP999-Reform Directorate,ATOS IT SERVICES UK LTD,3594407, 78.26 ,Reassign BlackBerry device within Business Unit
Ministry of Justice,HMCTS,30/11/2016,265000-IT & Telecommunications,AP999-Reform Directorate,ATOS IT SERVICES UK LTD,3594407, 78.26 ,Reassign BlackBerry device within Business Unit
Ministry of Justice,HMCTS,30/11/2016,265000-IT & Telecommunications,AP999-Reform Directorate,ATOS IT SERVICES UK LTD,3594407, 103.12 ,New IPT Handset 1 - 11 devices
Ministry of Justice,HMCTS,01/11/2016,265000-IT & Telecommunications,AP999-Reform Directorate,ATOS IT SERVICES UK LTD,3563310, 120.68 ,Desktop PC - HP DC8300
Ministry of Justice,HMCTS,01/11/2016,265000-IT & Telecommunications,AP999-Reform Directorate,ATOS IT SERVICES UK LTD,3563310, 120.68 ,Desktop PC - HP DC8300
Ministry of Justice,HMCTS,30/11/2016,265000-IT & Telecommunications,AP999-Reform Directorate,ATOS IT SERVICES UK LTD,3594407, 120.68 ,Desktop PC - HP DC8300
Ministry of Justice,HMCTS,01/11/2016,265000-IT & Telecommunications,AP999-Reform Directorate,ATOS IT SERVICES UK LTD,3563310, 144.00 ,Relocation of 2 desktop client devices to a different building.
Ministry of Justice,HMCTS,30/11/2016,265000-IT & Telecommunications,AP999-Reform Directorate,ATOS IT SERVICES UK LTD,3594407, 144.00 ,Relocation of 2 desktop client devices to a different building.
Ministry of Justice,HMCTS,30/11/2016,265000-IT & Telecommunications,AP999-Reform Directorate,ATOS IT SERVICES UK LTD,3594407, 164.78 ,Display port to VGA Cable Adapter
Ministry of Justice,HMCTS,01/11/2016,265000-IT & Telecommunications,AP999-Reform Directorate,ATOS IT SERVICES UK LTD,3563310, 181.02 ,Desktop PC - HP DC8300
Ministry of Justice,HMCTS,01/11/2016,265000-IT & Telecommunications,AP999-Reform Directorate,ATOS IT SERVICES UK LTD,3563310, 200.00 ,Move up to 10 iPads between two Bench sites
Ministry of Justice,HMCTS,30/11/2016,265000-IT & Telecommunications,AP999-Reform Directorate,ATOS IT SERVICES UK LTD,3594407, 241.36 ,Desktop PC - HP DC8300
Ministry of Justice,HMCTS,30/11/2016,265000-IT & Telecommunications,AP999-Reform Directorate,ATOS IT SERVICES UK LTD,3594407, 260.10 ,AVM Ad-Hoc Labour and Materials
Ministry of Justice,HMCTS,30/11/2016,265000-IT & Telecommunications,AP999-Reform Directorate,ATOS IT SERVICES UK LTD,3594407, 288.00 ,Relocation of 4 desktop client devices to a different building.
Ministry of Justice,HMCTS,30/11/2016,265000-IT & Telecommunications,AP999-Reform Directorate,ATOS IT SERVICES UK LTD,3594407, 288.00 ,Relocation of 4 desktop client devices to a different building.
Ministry of Justice,HMCTS,30/11/2016,265000-IT & Telecommunications,AP999-Reform Directorate,ATOS IT SERVICES UK LTD,3594407, 301.70 ,Desktop PC - HP DC8300
Ministry of Justice,HMCTS,30/11/2016,265000-IT & Telecommunications,AP999-Reform Directorate,ATOS IT SERVICES UK LTD,3594407, 315.54 ,Polycom Soundstation 2 Conference Phone 1-11 devices
Ministry of Justice,HMCTS,01/11/2016,265000-IT & Telecommunications,AP999-Reform Directorate,ATOS IT SERVICES UK LTD,3563310, 360.00 ,Auto Attendant - Amend existing Auto Attendant Call Flow
Ministry of Justice,HMCTS,30/11/2016,265000-IT & Telecommunications,AP999-Reform Directorate,ATOS IT SERVICES UK LTD,3594407, 364.14 ,1 to 5 devices Remove Print Device
Ministry of Justice,HMCTS,30/11/2016,265000-IT & Telecommunications,AP999-Reform Directorate,ATOS IT SERVICES UK LTD,3594407, 396.00 ,Relocation of 6 desktop client devices to a different building.
Ministry of Justice,HMCTS,30/11/2016,265000-IT & Telecommunications,AP999-Reform Directorate,ATOS IT SERVICES UK LTD,3594407, 396.00 ,Relocation of 6 desktop client devices to a different building.
Ministry of Justice,HMCTS,01/11/2016,265000-IT & Telecommunications,AP999-Reform Directorate,ATOS IT SERVICES UK LTD,3563310, 416.16 ,1 to 5 Devices Local Relocation (same Authority Premises) -  Printer or MFD
Ministry of Justice,HMCTS,01/11/2016,265000-IT & Telecommunications,AP999-Reform Directorate,ATOS IT SERVICES UK LTD,3563310, 438.26 ,New IPT Handset 1 - 11 devices
Ministry of Justice,HMCTS,01/11/2016,265000-IT & Telecommunications,AP999-Reform Directorate,ATOS IT SERVICES UK LTD,3563310, 488.99 ,1 to 5 Devices National Relocation -Printer or MFD (Multi Function Device)
Ministry of Justice,HMCTS,01/11/2016,265000-IT & Telecommunications,AP999-Reform Directorate,ATOS IT SERVICES UK LTD,3563310, 488.99 ,1 to 5 Devices National Relocation -Printer or MFD (Multi Function Device)
Ministry of Justice,HMCTS,01/11/2016,265000-IT & Telecommunications,AP999-Reform Directorate,ATOS IT SERVICES UK LTD,3563310, 488.99 ,1 to 5 Devices National Relocation -Printer or MFD (Multi Function Device)
Ministry of Justice,HMCTS,01/11/2016,265000-IT & Telecommunications,AP999-Reform Directorate,ATOS IT SERVICES UK LTD,3563310, 488.99 ,1 to 5 Devices National Relocation -Printer or MFD (Multi Function Device)
Ministry of Justice,HMCTS,01/11/2016,265000-IT & Telecommunications,AP999-Reform Directorate,ATOS IT SERVICES UK LTD,3563310, 488.99 ,1 to 5 Devices National Relocation -Printer or MFD (Multi Function Device)
Ministry of Justice,HMCTS,01/11/2016,265000-IT & Telecommunications,AP999-Reform Directorate,ATOS IT SERVICES UK LTD,3563310, 488.99 ,1 to 5 Devices National Relocation -Printer or MFD (Multi Function Device)
Ministry of Justice,HMCTS,01/11/2016,265000-IT & Telecommunications,AP999-Reform Directorate,ATOS IT SERVICES UK LTD,3563310, 488.99 ,1 to 5 Devices National Relocation -Printer or MFD (Multi Function Device)
Ministry of Justice,HMCTS,01/11/2016,265000-IT & Telecommunications,AP999-Reform Directorate,ATOS IT SERVICES UK LTD,3563310, 488.99 ,1 to 5 Devices National Relocation -Printer or MFD (Multi Function Device)
Ministry of Justice,HMCTS,01/11/2016,265000-IT & Telecommunications,AP999-Reform Directorate,ATOS IT SERVICES UK LTD,3563310, 488.99 ,1 to 5 Devices National Relocation -Printer or MFD (Multi Function Device)
Ministry of Justice,HMCTS,30/11/2016,265000-IT & Telecommunications,AP999-Reform Directorate,ATOS IT SERVICES UK LTD,3594407, 488.99 ,1 to 5 Devices National Relocation -Printer or MFD (Multi Function Device)
Ministry of Justice,HMCTS,30/11/2016,265000-IT & Telecommunications,AP999-Reform Directorate,ATOS IT SERVICES UK LTD,3594407, 488.99 ,1 to 5 Devices National Relocation -Printer or MFD (Multi Function Device)
Ministry of Justice,HMCTS,30/11/2016,265000-IT & Telecommunications,AP999-Reform Directorate,ATOS IT SERVICES UK LTD,3594407, 488.99 ,1 to 5 Devices National Relocation -Printer or MFD (Multi Function Device)
Ministry of Justice,HMCTS,30/11/2016,265000-IT & Telecommunications,AP999-Reform Directorate,ATOS IT SERVICES UK LTD,3594407, 488.99 ,1 to 5 Devices National Relocation -Printer or MFD (Multi Function Device)
Ministry of Justice,HMCTS,30/11/2016,265000-IT & Telecommunications,AP999-Reform Directorate,ATOS IT SERVICES UK LTD,3594407, 488.99 ,1 to 5 Devices National Relocation -Printer or MFD (Multi Function Device)
Ministry of Justice,HMCTS,30/11/2016,265000-IT & Telecommunications,AP999-Reform Directorate,ATOS IT SERVICES UK LTD,3594407, 488.99 ,1 to 5 Devices National Relocation -Printer or MFD (Multi Function Device)
Ministry of Justice,HMCTS,30/11/2016,265000-IT & Telecommunications,AP999-Reform Directorate,ATOS IT SERVICES UK LTD,3594407, 488.99 ,1 to 5 Devices National Relocation -Printer or MFD (Multi Function Device)
Ministry of Justice,HMCTS,30/11/2016,265000-IT & Telecommunications,AP999-Reform Directorate,ATOS IT SERVICES UK LTD,3594407, 488.99 ,1 to 5 Devices National Relocation -Printer or MFD (Multi Function Device)
Ministry of Justice,HMCTS,30/11/2016,265000-IT & Telecommunications,AP999-Reform Directorate,ATOS IT SERVICES UK LTD,3594407, 488.99 ,1 to 5 Devices National Relocation -Printer or MFD (Multi Function Device)
Ministry of Justice,HMCTS,30/11/2016,265000-IT & Telecommunications,AP999-Reform Directorate,ATOS IT SERVICES UK LTD,3594407, 488.99 ,1 to 5 Devices National Relocation -Printer or MFD (Multi Function Device)
Ministry of Justice,HMCTS,30/11/2016,265000-IT & Telecommunications,AP999-Reform Directorate,ATOS IT SERVICES UK LTD,3594407, 817.00 ,6 to 20 Devices Xerox A4Colour Printer Phaser 6500DN WorkCentre
Ministry of Justice,HMCTS,01/11/2016,265000-IT & Telecommunications,AP999-Reform Directorate,ATOS IT SERVICES UK LTD,3563310, 905.10 ,Desktop PC - HP DC8300
Ministry of Justice,HMCTS,01/11/2016,265000-IT & Telecommunications,AP999-Reform Directorate,ATOS IT SERVICES UK LTD,3563310, 926.52 ,"Small Form Laptop - Lenovo ThinkPad X250 - [12.5"" screen] (Windows 8.1)"
Ministry of Justice,HMCTS,01/11/2016,265000-IT & Telecommunications,AP999-Reform Directorate,ATOS IT SERVICES UK LTD,3563310, 977.98 ,1 to 5 Devices National Relocation -Printer or MFD (Multi Function Device)
Ministry of Justice,HMCTS,01/11/2016,265000-IT & Telecommunications,AP999-Reform Directorate,ATOS IT SERVICES UK LTD,3563310, 984.03 ,"Small Form Laptop - Lenovo ThinkPad X250 - [12.5"" screen] (Windows 8.1)"
Ministry of Justice,HMCTS,01/11/2016,265000-IT & Telecommunications,AP999-Reform Directorate,ATOS IT SERVICES UK LTD,3563310, 984.03 ,"Small Form Laptop - Lenovo ThinkPad X250 - [12.5"" screen] (Windows 8.1)"
Ministry of Justice,HMCTS,01/11/2016,265000-IT & Telecommunications,AP999-Reform Directorate,ATOS IT SERVICES UK LTD,3563310, 984.03 ,"Small Form Laptop - Lenovo ThinkPad X250 - [12.5"" screen] (Windows 8.1)"
Ministry of Justice,HMCTS,30/11/2016,265000-IT & Telecommunications,AP999-Reform Directorate,ATOS IT SERVICES UK LTD,3594407, 984.03 ,"Small Form Laptop - Lenovo ThinkPad X250 - [12.5"" screen] (Windows 8.1)"
Ministry of Justice,HMCTS,30/11/2016,265000-IT & Telecommunications,AP999-Reform Directorate,ATOS IT SERVICES UK LTD,3594407, 984.03 ,"Small Form Laptop - Lenovo ThinkPad X250 - [12.5"" screen] (Windows 8.1)"
Ministry of Justice,HMCTS,30/11/2016,265000-IT & Telecommunications,AP999-Reform Directorate,ATOS IT SERVICES UK LTD,3594407, 984.03 ,"Small Form Laptop - Lenovo ThinkPad X250 - [12.5"" screen] (Windows 8.1)"
Ministry of Justice,HMCTS,30/11/2016,265000-IT & Telecommunications,AP999-Reform Directorate,ATOS IT SERVICES UK LTD,3594407, 984.03 ,"Small Form Laptop - Lenovo ThinkPad X250 - [12.5"" screen] (Windows 8.1)"
Ministry of Justice,HMCTS,30/11/2016,265000-IT & Telecommunications,AP999-Reform Directorate,ATOS IT SERVICES UK LTD,3594407, 984.03 ,"Small Form Laptop - Lenovo ThinkPad X250 - [12.5"" screen] (Windows 8.1)"
Ministry of Justice,HMCTS,30/11/2016,265000-IT & Telecommunications,AP999-Reform Directorate,ATOS IT SERVICES UK LTD,3594407, 984.03 ,"Small Form Laptop - Lenovo ThinkPad X250 - [12.5"" screen] (Windows 8.1)"
Ministry of Justice,HMCTS,30/11/2016,265000-IT & Telecommunications,AP999-Reform Directorate,ATOS IT SERVICES UK LTD,3594407, 984.03 ,"Small Form Laptop - Lenovo ThinkPad X250 - [12.5"" screen] (Windows 8.1)"
Ministry of Justice,HMCTS,30/11/2016,265000-IT & Telecommunications,AP999-Reform Directorate,ATOS IT SERVICES UK LTD,3594407, 984.03 ,"Small Form Laptop - Lenovo ThinkPad X250 - [12.5"" screen] (Windows 8.1)"
Ministry of Justice,HMCTS,30/11/2016,265000-IT & Telecommunications,AP999-Reform Directorate,ATOS IT SERVICES UK LTD,3594407, 984.03 ,"Small Form Laptop - Lenovo ThinkPad X250 - [12.5"" screen] (Windows 8.1)"
Ministry of Justice,HMCTS,01/11/2016,265000-IT & Telecommunications,AP999-Reform Directorate,ATOS IT SERVICES UK LTD,3563310," 1,040.40 ",AVM Ad-Hoc Labour and Materials
Ministry of Justice,HMCTS,30/11/2016,265000-IT & Telecommunications,AP999-Reform Directorate,ATOS IT SERVICES UK LTD,3594407," 1,040.40 ",AVM Ad-Hoc Labour and Materials
Ministry of Justice,HMCTS,01/11/2016,265000-IT & Telecommunications,AP999-Reform Directorate,ATOS IT SERVICES UK LTD,3563310," 1,300.50 ",AVM Ad-Hoc Labour and Materials
Ministry of Justice,HMCTS,01/11/2016,265000-IT & Telecommunications,AP999-Reform Directorate,ATOS IT SERVICES UK LTD,3563310," 1,300.50 ",AVM Ad-Hoc Labour and Materials
Ministry of Justice,HMCTS,01/11/2016,265000-IT & Telecommunications,AP999-Reform Directorate,ATOS IT SERVICES UK LTD,3563310," 1,300.50 ",AVM Ad-Hoc Labour and Materials
Ministry of Justice,HMCTS,01/11/2016,265000-IT & Telecommunications,AP999-Reform Directorate,ATOS IT SERVICES UK LTD,3563310," 1,300.50 ",AVM Ad-Hoc Labour and Materials
Ministry of Justice,HMCTS,01/11/2016,265000-IT & Telecommunications,AP999-Reform Directorate,ATOS IT SERVICES UK LTD,3563310," 1,820.70 ",AVM Ad-Hoc Labour and Materials
Ministry of Justice,HMCTS,30/11/2016,265000-IT & Telecommunications,AP999-Reform Directorate,ATOS IT SERVICES UK LTD,3594407," 2,080.80 ",AVM Ad-Hoc Labour and Materials
Ministry of Justice,HMCTS,30/11/2016,265000-IT & Telecommunications,AP999-Reform Directorate,ATOS IT SERVICES UK LTD,3594407," 3,641.40 ",AVM Ad-Hoc Labour and Materials
Ministry of Justice,HMCTS,22/11/2016,222001-Maintenance,AP999-Reform Directorate,GALLIFORD TRY CONSTRUCTION (UK) LTD,3585902," 6,740.83 ",CIS Labour - Stafford Combined - Galliford Try - Court Reform Enabling Works
Ministry of Justice,HMCTS,30/11/2016,265000-IT & Telecommunications,AP999-Reform Directorate,ATOS IT SERVICES UK LTD,3594407," 13,265.10 ",AVM Ad-Hoc Labour and Materials
Ministry of Justice,HMCTS,18/11/2016,512000-Intangible GBV - Additions,AP999-Reform Directorate,KAINOS SOFTWARE LTD,3582803," 21,780.00 ", Provision for Technical Architect 
Ministry of Justice,HMCTS,18/11/2016,265000-IT & Telecommunications,AP999-Reform Directorate,CGI IT UK LTD,3582630," 21,786.00 ",:Provision of Specialist Cloud Services. PET team to 30th December 2016
Ministry of Justice,HMCTS,25/11/2016,512000-Intangible GBV - Additions,AP999-Reform Directorate,TRIAD GROUP PLC,3591896," 22,288.00 ",Provision for Developers 
Ministry of Justice,HMCTS,08/11/2016,265000-IT & Telecommunications,AP999-Reform Directorate,ATOS IT SERVICES UK LTD,3570782," 22,341.18 ",Atos PD A-R-04753-01 v01 Caerphilly Court Closure
Ministry of Justice,HMCTS,29/11/2016,265000-IT & Telecommunications,AP999-Reform Directorate,TRIAD GROUP PLC,3594310," 23,147.20 ",:Provision for Designers .
Ministry of Justice,HMCTS,18/11/2016,265000-IT & Telecommunications,AP999-Reform Directorate,CGI IT UK LTD,3582630," 23,640.00 ",4609-1-ICT-ICT-Contract:Provision of Specialist Cloud Services. PET team to 30th December 2016
Ministry of Justice,HMCTS,18/11/2016,512000-Intangible GBV - Additions,AP999-Reform Directorate,AGILESPHERE LLP,3582561," 24,750.00 ",Agilesphere - DS02-28.211  : Provision for  Delivery Manager 
Ministry of Justice,HMCTS,11/11/2016,512000-Intangible GBV - Additions,AP999-Reform Directorate,KAINOS SOFTWARE LTD,3575605," 25,295.33 ","Provision for  Business Analyst, Technical Architect, Ops Infrastructure Lead, Delivery Manager "
Ministry of Justice,HMCTS,29/11/2016,512000-Intangible GBV - Additions,AP999-Reform Directorate,KAINOS SOFTWARE LTD,3593484," 26,820.00 ",:Provision for  Developers
Ministry of Justice,HMCTS,11/11/2016,512000-Intangible GBV - Additions,AP999-Reform Directorate,BT GLOBAL SERVICES,3575421," 28,718.05 ",BT Global Services - HMCTS Reform Programme IT Infrastructure Project - installation of WiFi into 38 CFT sites of Combined Courts
Ministry of Justice,HMCTS,29/11/2016,512000-Intangible GBV - Additions,AP999-Reform Directorate,KAINOS SOFTWARE LTD,3593484," 30,140.00 ",Provision for  Developers
Ministry of Justice,HMCTS,22/11/2016,512000-Intangible GBV - Additions,AP999-Reform Directorate,TRIAD GROUP PLC,3587033," 30,450.00 ",Triad-DS02-28.92: Provision of x1 Designer 
Ministry of Justice,HMCTS,29/11/2016,512000-Intangible GBV - Additions,AP999-Reform Directorate,KAINOS SOFTWARE LTD,3593484," 30,580.00 ", Provision for UI Developer & Developer
Ministry of Justice,HMCTS,04/11/2016,222002-Other Property Costs,AP999-Reform Directorate,RESOURCE FURNITURE SERVICES LTD (RFS WORKPLACE SOLUTIONS),3569434," 30,746.25 ",Feltham Magistrates Court - Resource furniture Solutions - Quote Reference: 842 � Thomas Tanikie � Registrars move from Feltham to Hendon.
Ministry of Justice,HMCTS,22/11/2016,265000-IT & Telecommunications,AP999-Reform Directorate,CGI IT UK LTD,3585808," 31,040.53 ","L-R-4798-01 v0.3:  - CGI IT - Provision for D001 Solution Options paper, D002 Support for Robotics proof of Concept"
Ministry of Justice,HMCTS,15/11/2016,512000-Intangible GBV - Additions,AP999-Reform Directorate,ENGINE PARTNERS UK LLP,3577870," 31,262.50 ",Engine Partners - DOS-PRJ 548 IDAM-SoW 001 SoW HMCTS-RP-AP422C OC001-02 - Alpha - commencing 15/08/2016 (60 working days)
Ministry of Justice,HMCTS,29/11/2016,512000-Intangible GBV - Additions,AP999-Reform Directorate,KAINOS SOFTWARE LTD,3593484," 32,780.00 ",Kainos - DS01-67.60: Provision for UI Developer & Developer
Ministry of Justice,HMCTS,30/11/2016,512000-Intangible GBV - Additions,AP999-Reform Directorate,ATOS IT SERVICES UK LTD,3594407," 35,880.50 ",A-S-04802-01-v01-Infrastructure Supplier Reform team to provide services to Authority on a call off basis to support HMCTS Reform activities from 1/4/16 to earlier of: (see special instructions box)
Ministry of Justice,HMCTS,25/11/2016,512000-Intangible GBV - Additions,AP999-Reform Directorate,TRIAD GROUP PLC,3591896," 37,800.00 ",DS02-28.81 - Triad - Provision for Business Analyst 
Ministry of Justice,HMCTS,11/11/2016,512000-Intangible GBV - Additions,AP999-Reform Directorate,KAINOS SOFTWARE LTD,3575605," 37,995.00 ",Kainos- DS02-028.56 SoW HMCTS-RP-SSCS-AP422C-LD002-01 - commencing 06/06/2016 (62 working days)
Ministry of Justice,HMCTS,23/11/2016,512000-Intangible GBV - Additions,AP999-Reform Directorate,TRIAD GROUP PLC,3589399," 40,040.00 ","DS02-028.418 -TRIAD GROUP PLC - Provision of 1 Lead Developer, 1 UI Developer and 1 Tester "
Ministry of Justice,HMCTS,02/11/2016,512000-Intangible GBV - Additions,AP999-Reform Directorate,CAPGEMINI UK PLC,3564949," 40,322.50 ",WP2016.05 : CapGemini - Provision for developers
Ministry of Justice,HMCTS,11/11/2016,512000-Intangible GBV - Additions,AP999-Reform Directorate,KAINOS SOFTWARE LTD,3575605," 44,457.50 ",DS01-028.104 - Kainos Development team- HMCTS Reform Technology workstream - Probate Divorce Discovery & Alpha Phase - commencing 03/10/2016 (127 working days)
Ministry of Justice,HMCTS,15/11/2016,512000-Intangible GBV - Additions,AP999-Reform Directorate,ENGINE PARTNERS UK LLP,3577870," 48,550.00 ",Engine Partners - DOS-PRJ 548 SSCS-SoW 001 SoW HMCTS-RP-AP422C OC001-01-Alpha- commencing 15/08/2016 (60 working days)
Ministry of Justice,HMCTS,01/11/2016,512000-Intangible GBV - Additions,AP999-Reform Directorate,TRIAD GROUP PLC,3564679," 55,086.85 ",Triad - DS02-028.91:Provision for Developers 
Ministry of Justice,HMCTS,18/11/2016,512000-Intangible GBV - Additions,AP999-Reform Directorate,KAINOS SOFTWARE LTD,3582803," 62,080.00 ",Kainos - DSO1-67.68: Provision for  Business Architecture 
Ministry of Justice,HMCTS,25/11/2016,512000-Intangible GBV - Additions,AP999-Reform Directorate,CAPGEMINI UK PLC,3590689," 69,386.00 ",Capgemini-WP2016.09 :Provision for 4x Architecture 
Ministry of Justice,HMCTS,08/11/2016,222003-CIS Labour TFM Estates,AP999-Reform Directorate,G4S FACILITIES MANAGEMENT (UK) LTD,3570935," 77,212.38 ",CIS Labour - Grimsby MC - G4S - TO-NE-15-16-1636 Court reform - enabling works
Ministry of Justice,HMCTS,04/11/2016,265000-IT & Telecommunications,AP999-Reform Directorate,ATOS IT SERVICES UK LTD,3568240," 86,708.00 ",Atos CCN A-R-4730-01 v2 HMCTS Estates Reform Programme - Phase 1
Ministry of Justice,HMCTS,22/11/2016,264000-Consultancy,AP999-Reform Directorate,PA CONSULTING GROUP,3586904," 96,843.00 ",HR People Change Services' - Provision of consultancy services in relation to the Reform HR Function in accordance with Contract 4893-2-Porfessional Services -SE - RFI
Ministry of Justice,HMCTS,01/11/2016,265000-IT & Telecommunications,AP999-Reform Directorate,ATOS IT SERVICES UK LTD,3563311," 97,088.00 ",Atos CCN A-R-4730-01 v2 HMCTS Estates Reform Programme - Phase 1
Ministry of Justice,HMCTS,22/11/2016,512000-Intangible GBV - Additions,AP999-Reform Directorate,TRIAD GROUP PLC,3587033," 106,762.75 ",Triad-DS02-28.89: Provision of 12 Designers 
Ministry of Justice,HMCTS,08/11/2016,222003-CIS Labour TFM Estates,AP999-Reform Directorate,MITIE FACILITIES SERVICES LTD,3571066," 125,681.04 ",CIS Labour - Waltham Forest Magistrates - MITIE FACILITIES SERVICES - SD: Site full clearance works. LN-16-17-2155.
Ministry of Justice,HMCTS,01/11/2016,265000-IT & Telecommunications,AP999-Reform Directorate,ATOS IT SERVICES UK LTD,3563310," 126,266.00 ",Atos CCN A-R-4730-01 v2 HMCTS Estates Reform Programme - Phase 1
Ministry of Justice,HMCTS,22/11/2016,512000-Intangible GBV - Additions,AP999-Reform Directorate,TRIAD GROUP PLC,3587033," 133,509.50 ", Provision of 12 Designers
Ministry of Justice,HMCTS,04/11/2016,264000-Consultancy,AP999-Reform Directorate,PA CONSULTING GROUP,3569397," 136,914.00 ",HR People Change Services - Provision of consultancy services in relation to the Reform HR Function in accordance with Contract 4893-2-Porfessional Services -SE - RFI
Ministry of Justice,HMCTS,22/11/2016,264000-Consultancy,AP999-Reform Directorate,CSL- KPMG LLP,3585834," 162,129.60 ",To provide consultancy support for the HMCTS Estates Reform Property Exit as part of the delivery of the HMCTS Reform Programme. In line with contract - 4978-2-Professional Services-SE-RFI
Ministry of Justice,HMCTS,22/11/2016,264000-Consultancy,AP999-Reform Directorate,CSL- KPMG LLP,3585833," 162,919.20 ",To provide consultancy support for the HMCTS Estates Reform Property Exit as part of the delivery of the HMCTS Reform Programme. In line with contract - 4978-2-Professional Services-SE-RFI
Ministry of Justice,HMCTS,22/11/2016,264000-Consultancy,AP999-Reform Directorate,PA CONSULTING GROUP,3586904," 168,477.00 ",HR People Change Services - Provision of consultancy services in relation to the Reform HR Function in accordance with Contract 4893-2-Porfessional Services -SE - RFI
Ministry of Justice,HMCTS,15/11/2016,512000-Intangible GBV - Additions,AP999-Reform Directorate,SKYSCAPE CLOUD SERVICES LTD,3579126," 341,877.17 ",ICT - Skyscape - Capital costs in respect of applications for national and business solutions as detailed in contract
Ministry of Justice,HMCTS,30/11/2016,265000-IT & Telecommunications,"AQ999-HQ - Finance, Govern. & Perf.",ATOS IT SERVICES UK LTD,3594407, 9.75 ,Logitech M185 Bluetooth Scroll Mouse
Ministry of Justice,HMCTS,01/11/2016,265000-IT & Telecommunications,"AQ999-HQ - Finance, Govern. & Perf.",ATOS IT SERVICES UK LTD,3563310, 10.09 ,4-Port USB Hub
Ministry of Justice,HMCTS,01/11/2016,265000-IT & Telecommunications,"AQ999-HQ - Finance, Govern. & Perf.",ATOS IT SERVICES UK LTD,3563310, 10.09 ,4-Port USB Hub
Ministry of Justice,HMCTS,01/11/2016,265000-IT & Telecommunications,"AQ999-HQ - Finance, Govern. & Perf.",ATOS IT SERVICES UK LTD,3563310, 11.17 ,MS Access
Ministry of Justice,HMCTS,01/11/2016,265000-IT & Telecommunications,"AQ999-HQ - Finance, Govern. & Perf.",ATOS IT SERVICES UK LTD,3563310, 11.62 ,MS Project Professional
Ministry of Justice,HMCTS,01/11/2016,265000-IT & Telecommunications,"AQ999-HQ - Finance, Govern. & Perf.",ATOS IT SERVICES UK LTD,3563310, 11.62 ,MS Project Professional
Ministry of Justice,HMCTS,01/11/2016,265000-IT & Telecommunications,"AQ999-HQ - Finance, Govern. & Perf.",ATOS IT SERVICES UK LTD,3563310, 11.62 ,MS Visio Professional
Ministry of Justice,HMCTS,01/11/2016,265000-IT & Telecommunications,"AQ999-HQ - Finance, Govern. & Perf.",ATOS IT SERVICES UK LTD,3563310, 11.62 ,MS Visio Professional
Ministry of Justice,HMCTS,30/11/2016,265000-IT & Telecommunications,"AQ999-HQ - Finance, Govern. & Perf.",ATOS IT SERVICES UK LTD,3594407, 11.62 ,MS Visio Professional
Ministry of Justice,HMCTS,30/11/2016,265000-IT & Telecommunications,"AQ999-HQ - Finance, Govern. & Perf.",ATOS IT SERVICES UK LTD,3594407, 11.62 ,MS Visio Std
Ministry of Justice,HMCTS,30/11/2016,265000-IT & Telecommunications,"AQ999-HQ - Finance, Govern. & Perf.",ATOS IT SERVICES UK LTD,3594407, 11.62 ,MS Visio Std
Ministry of Justice,HMCTS,30/11/2016,265000-IT & Telecommunications,"AQ999-HQ - Finance, Govern. & Perf.",ATOS IT SERVICES UK LTD,3594407, 11.62 ,MS Visio Std
Ministry of Justice,HMCTS,01/11/2016,265000-IT & Telecommunications,"AQ999-HQ - Finance, Govern. & Perf.",ATOS IT SERVICES UK LTD,3563310, 25.78 ,Fixed IPT Phone Transfer to a new user 1-10 Devices
Ministry of Justice,HMCTS,30/11/2016,265000-IT & Telecommunications,"AQ999-HQ - Finance, Govern. & Perf.",ATOS IT SERVICES UK LTD,3594407, 25.78 ,Fixed IPT Phone Change 1-10 Devices
Ministry of Justice,HMCTS,30/11/2016,265000-IT & Telecommunications,"AQ999-HQ - Finance, Govern. & Perf.",ATOS IT SERVICES UK LTD,3594407, 25.78 ,New IPT Mobility account without voicemail 1-10 Accounts
Ministry of Justice,HMCTS,30/11/2016,265000-IT & Telecommunications,"AQ999-HQ - Finance, Govern. & Perf.",ATOS IT SERVICES UK LTD,3594407, 25.95 ,Lenovo Laptop Rucksack
Ministry of Justice,HMCTS,30/11/2016,265000-IT & Telecommunications,"AQ999-HQ - Finance, Govern. & Perf.",ATOS IT SERVICES UK LTD,3594407, 28.84 ,Lenovo X240/Yoga Mains Adaptor
Ministry of Justice,HMCTS,30/11/2016,265000-IT & Telecommunications,"AQ999-HQ - Finance, Govern. & Perf.",ATOS IT SERVICES UK LTD,3594407, 28.84 ,Lenovo X240/Yoga Mains Adaptor
Ministry of Justice,HMCTS,01/11/2016,265000-IT & Telecommunications,"AQ999-HQ - Finance, Govern. & Perf.",ATOS IT SERVICES UK LTD,3563310, 46.00 ,Provision and support of Secure Remote Access (RWSII) Capability
Ministry of Justice,HMCTS,01/11/2016,265000-IT & Telecommunications,"AQ999-HQ - Finance, Govern. & Perf.",ATOS IT SERVICES UK LTD,3563310, 46.00 ,Provision and support of Secure Remote Access (RWSII) Capability
Ministry of Justice,HMCTS,30/11/2016,265000-IT & Telecommunications,"AQ999-HQ - Finance, Govern. & Perf.",ATOS IT SERVICES UK LTD,3594407, 46.00 ,Provision and support of Secure Remote Access (RWSII) Capability
Ministry of Justice,HMCTS,30/11/2016,265000-IT & Telecommunications,"AQ999-HQ - Finance, Govern. & Perf.",ATOS IT SERVICES UK LTD,3594407, 46.00 ,Provision and support of Secure Remote Access (RWSII) Capability
Ministry of Justice,HMCTS,01/11/2016,265000-IT & Telecommunications,"AQ999-HQ - Finance, Govern. & Perf.",ATOS IT SERVICES UK LTD,3563310, 47.80 ,UltraEdit-32
Ministry of Justice,HMCTS,01/11/2016,265000-IT & Telecommunications,"AQ999-HQ - Finance, Govern. & Perf.",ATOS IT SERVICES UK LTD,3563310, 66.86 ,Return BlackBerry device (no longer required)
Ministry of Justice,HMCTS,30/11/2016,265000-IT & Telecommunications,"AQ999-HQ - Finance, Govern. & Perf.",ATOS IT SERVICES UK LTD,3594407, 66.86 ,Return BlackBerry device (no longer required)
Ministry of Justice,HMCTS,30/11/2016,265000-IT & Telecommunications,"AQ999-HQ - Finance, Govern. & Perf.",ATOS IT SERVICES UK LTD,3594407, 133.72 ,Return BlackBerry device (no longer required)
Ministry of Justice,HMCTS,01/11/2016,265000-IT & Telecommunications,"AQ999-HQ - Finance, Govern. & Perf.",ATOS IT SERVICES UK LTD,3563310, 984.03 ,"Small Form Laptop - Lenovo ThinkPad X250 - [12.5"" screen] (Windows 8.1)"
Ministry of Justice,HMCTS,01/11/2016,265000-IT & Telecommunications,"AQ999-HQ - Finance, Govern. & Perf.",ATOS IT SERVICES UK LTD,3563310, 984.03 ,"Small Form Laptop - Lenovo ThinkPad X250 - [12.5"" screen] (Windows 8.1)"
Ministry of Justice,HMCTS,01/11/2016,265000-IT & Telecommunications,AS999-HQ - Human Resources,ATOS IT SERVICES UK LTD,3563310, 9.75 ,Logitech M185 Bluetooth Scroll Mouse
Ministry of Justice,HMCTS,01/11/2016,265000-IT & Telecommunications,AS999-HQ - Human Resources,ATOS IT SERVICES UK LTD,3563310, 11.62 ,Microsoft Project 2007 Standard (Windows 8.1)
Ministry of Justice,HMCTS,01/11/2016,265000-IT & Telecommunications,AS999-HQ - Human Resources,ATOS IT SERVICES UK LTD,3563310, 25.95 ,Lenovo Laptop Rucksack
Ministry of Justice,HMCTS,30/11/2016,265000-IT & Telecommunications,AS999-HQ - Human Resources,ATOS IT SERVICES UK LTD,3594407, 28.84 ,Lenovo X240/Yoga Mains Adaptor
Ministry of Justice,HMCTS,01/11/2016,265000-IT & Telecommunications,AS999-HQ - Human Resources,ATOS IT SERVICES UK LTD,3563310, 30.05 ,Lenovo One Link Adaptor (Windows 8.1)
Ministry of Justice,HMCTS,01/11/2016,265000-IT & Telecommunications,AS999-HQ - Human Resources,ATOS IT SERVICES UK LTD,3563310, 46.00 ,Provision and support of Secure Remote Access (RWSII) Capability
Ministry of Justice,HMCTS,01/11/2016,265000-IT & Telecommunications,AS999-HQ - Human Resources,ATOS IT SERVICES UK LTD,3563310, 46.00 ,Provision and support of Secure Remote Access (RWSII) Capability
Ministry of Justice,HMCTS,01/11/2016,265000-IT & Telecommunications,AS999-HQ - Human Resources,ATOS IT SERVICES UK LTD,3563310, 46.00 ,Provision and support of Secure Remote Access (RWSII) Capability
Ministry of Justice,HMCTS,01/11/2016,265000-IT & Telecommunications,AS999-HQ - Human Resources,ATOS IT SERVICES UK LTD,3563310, 984.03 ,"Small Form Laptop - Lenovo ThinkPad X250 - [12.5"" screen] (Windows 8.1)"
Ministry of Justice,HMCTS,25/11/2016,265000-IT & Telecommunications,AT501-Crime Direct Support Serv.,BT GLOBAL SERVICES,3590678, 629.82 ,HMCTS300-01 MoJ CJEP Professional Court User WiFi (BT Global Services PP M3042 Z) On-going Support Managed Service. Contract Ref 3440-2-ICT-ICT-RFP.  ECM: 8608 - 16/17
Ministry of Justice,HMCTS,22/11/2016,265000-IT & Telecommunications,AT501-Crime Direct Support Serv.,CGI IT UK LTD,3585808,"-23,114.00 ",L-S-4604-02 DCS 2ND Line support Set-up - Ongoing 16-17
Ministry of Justice,HMCTS,23/11/2016,265000-IT & Telecommunications,AT501-Crime Direct Support Serv.,CGI IT UK LTD,3587538," 23,114.00 ",L-S-4604-02 DCS 2ND Line support Set-up - Ongoing 16-17
Ministry of Justice,HMCTS,15/11/2016,512000-Intangible GBV - Additions,AT501-Crime Direct Support Serv.,CGI IT UK LTD,3577796," 29,482.00 ",CGI IT  - L-R-4851-01 CREST XHIBIT Release 2016 M8 XHIBIT Build Complete
Ministry of Justice,HMCTS,18/11/2016,512000-Intangible GBV - Additions,AT501-Crime Direct Support Serv.,CGI IT UK LTD,3582630," 29,482.00 ",CGI IT  - L-R-4851-01 CREST XHIBIT Release 2016 M7 CREST Build complete
Ministry of Justice,HMCTS,07/11/2016,265000-IT & Telecommunications,AT501-Crime Direct Support Serv.,HOME OFFICE IT,11878," 33,348.00 ",MTS Mags Store MoU 1617-01 FY16-17
Ministry of Justice,HMCTS,15/11/2016,512000-Intangible GBV - Additions,AT501-Crime Direct Support Serv.,CGI IT UK LTD,3577796," 35,839.65 ",CCN L-R-4870-01 - CGI IT - HMCTS391 - Fees in Tax Project - L-R 4870-01 (Aug-Oct) Delivery Time & Materials -
Ministry of Justice,HMCTS,25/11/2016,265000-IT & Telecommunications,AT501-Crime Direct Support Serv.,BT GLOBAL SERVICES,3590678," 38,170.86 ",HMCTS300-01 MoJ CJEP Professional Court User WiFi (BT Global Services PP M3042 Z) On-going Support Managed Service. Contract Ref 3440-2-ICT-ICT-RFP.  ECM: 8608 - 16/17
Ministry of Justice,HMCTS,25/11/2016,265000-IT & Telecommunications,AT501-Crime Direct Support Serv.,BT GLOBAL SERVICES,3590678," 38,800.68 ",HMCTS300-01 MoJ CJEP Professional Court User WiFi (BT Global Services PP M3042 Z) On-going Support Managed Service. Contract Ref 3440-2-ICT-ICT-RFP.  ECM: 8608 - 16/17
Ministry of Justice,HMCTS,15/11/2016,512000-Intangible GBV - Additions,AT501-Crime Direct Support Serv.,CGI IT UK LTD,3577796," 65,004.01 ",CCN L-R-4870-01 - CGI IT - HMCTS391 - Fees in Tax Project - L-R 4870-01 (Aug-Oct) Delivery Time & Materials 
Ministry of Justice,HMCTS,22/11/2016,265000-IT & Telecommunications,AT501-Crime Direct Support Serv.,NETMASTER SOLUTIONS LTD,3586069," 108,544.00 ",Ongoing support costs for Netmaster Solutions Deployment for DCS Caselines - pre 16/17 & 16/17
Ministry of Justice,HMCTS,01/11/2016,265000-IT & Telecommunications,AT502-Digital Direct Support Serv.,ATOS IT SERVICES UK LTD,3563310, 14.98 ,Display port to VGA Cable Adapter
Ministry of Justice,HMCTS,01/11/2016,265000-IT & Telecommunications,AT502-Digital Direct Support Serv.,ATOS IT SERVICES UK LTD,3563310, 14.98 ,Display port to VGA Cable Adapter
Ministry of Justice,HMCTS,01/11/2016,265000-IT & Telecommunications,AT502-Digital Direct Support Serv.,ATOS IT SERVICES UK LTD,3563310, 14.98 ,Display port to VGA Cable Adapter
Ministry of Justice,HMCTS,01/11/2016,265000-IT & Telecommunications,AT502-Digital Direct Support Serv.,ATOS IT SERVICES UK LTD,3563310, 14.98 ,Display port to VGA Cable Adapter
Ministry of Justice,HMCTS,01/11/2016,265000-IT & Telecommunications,AT502-Digital Direct Support Serv.,ATOS IT SERVICES UK LTD,3563310, 14.98 ,Display port to VGA Cable Adapter
Ministry of Justice,HMCTS,01/11/2016,265000-IT & Telecommunications,AT502-Digital Direct Support Serv.,ATOS IT SERVICES UK LTD,3563310, 25.78 ,New IPT Mobility account with voicemail account 1-10 Accounts
Ministry of Justice,HMCTS,01/11/2016,265000-IT & Telecommunications,AT502-Digital Direct Support Serv.,ATOS IT SERVICES UK LTD,3563310, 25.95 ,Lenovo Laptop Rucksack
Ministry of Justice,HMCTS,01/11/2016,265000-IT & Telecommunications,AT502-Digital Direct Support Serv.,ATOS IT SERVICES UK LTD,3563310, 25.95 ,Lenovo Laptop Rucksack
Ministry of Justice,HMCTS,01/11/2016,265000-IT & Telecommunications,AT502-Digital Direct Support Serv.,ATOS IT SERVICES UK LTD,3563310, 25.95 ,Lenovo Laptop Rucksack
Ministry of Justice,HMCTS,30/11/2016,265000-IT & Telecommunications,AT502-Digital Direct Support Serv.,ATOS IT SERVICES UK LTD,3594407, 29.96 ,Display port to VGA Cable Adapter
Ministry of Justice,HMCTS,30/11/2016,265000-IT & Telecommunications,AT502-Digital Direct Support Serv.,ATOS IT SERVICES UK LTD,3594407, 92.00 ,Provision and support of Secure Remote Access (RWSII) Capability
Ministry of Justice,HMCTS,30/11/2016,265000-IT & Telecommunications,AT502-Digital Direct Support Serv.,ATOS IT SERVICES UK LTD,3594407, 92.00 ,Provision and support of Secure Remote Access (RWSII) Capability
Ministry of Justice,HMCTS,01/11/2016,265000-IT & Telecommunications,AT502-Digital Direct Support Serv.,ATOS IT SERVICES UK LTD,3563310, 98.15 ,Humanscale M2 Monitor Arm
Ministry of Justice,HMCTS,01/11/2016,265000-IT & Telecommunications,AT502-Digital Direct Support Serv.,ATOS IT SERVICES UK LTD,3563310, 98.15 ,Humanscale M2 Monitor Arm
Ministry of Justice,HMCTS,01/11/2016,265000-IT & Telecommunications,AT502-Digital Direct Support Serv.,ATOS IT SERVICES UK LTD,3563310, 98.15 ,Humanscale M2 Monitor Arm
Ministry of Justice,HMCTS,30/11/2016,265000-IT & Telecommunications,AT502-Digital Direct Support Serv.,ATOS IT SERVICES UK LTD,3594407, 103.12 ,New IPT Mobility account with voicemail account 1-10 Accounts
Ministry of Justice,HMCTS,01/11/2016,265000-IT & Telecommunications,AT502-Digital Direct Support Serv.,ATOS IT SERVICES UK LTD,3563310, 115.62 ,Laptop Rucksack
Ministry of Justice,HMCTS,01/11/2016,265000-IT & Telecommunications,AT502-Digital Direct Support Serv.,ATOS IT SERVICES UK LTD,3563310, 119.84 ,Display port to VGA Cable Adapter
Ministry of Justice,HMCTS,30/11/2016,265000-IT & Telecommunications,AT502-Digital Direct Support Serv.,ATOS IT SERVICES UK LTD,3594407, 196.30 ,Humanscale M2 Monitor Arm
Ministry of Justice,HMCTS,01/11/2016,265000-IT & Telecommunications,AT502-Digital Direct Support Serv.,ATOS IT SERVICES UK LTD,3563310, 244.09 ,LED Monitor 27 inch
Ministry of Justice,HMCTS,01/11/2016,265000-IT & Telecommunications,AT502-Digital Direct Support Serv.,ATOS IT SERVICES UK LTD,3563310, 322.00 ,Provision and support of Secure Remote Access (RWSII) Capability
Ministry of Justice,HMCTS,01/11/2016,265000-IT & Telecommunications,AT502-Digital Direct Support Serv.,ATOS IT SERVICES UK LTD,3563310, 488.18 ,LED Monitor 27 inch
Ministry of Justice,HMCTS,01/11/2016,265000-IT & Telecommunications,AT502-Digital Direct Support Serv.,ATOS IT SERVICES UK LTD,3563310, 527.70 ,Plantronics HW261 A Duo Headset 1-11 devices
Ministry of Justice,HMCTS,01/11/2016,265000-IT & Telecommunications,AT502-Digital Direct Support Serv.,ATOS IT SERVICES UK LTD,3563310, 588.90 ,Humanscale M2 Monitor Arm
Ministry of Justice,HMCTS,01/11/2016,265000-IT & Telecommunications,AT502-Digital Direct Support Serv.,ATOS IT SERVICES UK LTD,3563310, 984.03 ,"Small Form Laptop - Lenovo ThinkPad X250 - [12.5"" screen] (Windows 8.1)"
Ministry of Justice,HMCTS,01/11/2016,265000-IT & Telecommunications,AT502-Digital Direct Support Serv.,ATOS IT SERVICES UK LTD,3563310, 984.03 ,"Small Form Laptop - Lenovo ThinkPad X250 - [12.5"" screen] (Windows 8.1)"
Ministry of Justice,HMCTS,01/11/2016,265000-IT & Telecommunications,AT502-Digital Direct Support Serv.,ATOS IT SERVICES UK LTD,3563310, 984.03 ,"Small Form Laptop - Lenovo ThinkPad X250 - [12.5"" screen] (Windows 8.1)"
Ministry of Justice,HMCTS,01/11/2016,265000-IT & Telecommunications,AT502-Digital Direct Support Serv.,ATOS IT SERVICES UK LTD,3563310, 984.03 ,"Small Form Laptop - Lenovo ThinkPad X250 - [12.5"" screen] (Windows 8.1)"
Ministry of Justice,HMCTS,30/11/2016,265000-IT & Telecommunications,AT502-Digital Direct Support Serv.,ATOS IT SERVICES UK LTD,3594407, 984.03 ,"Small Form Laptop - Lenovo ThinkPad X250 - [12.5"" screen] (Windows 8.1)"
Ministry of Justice,HMCTS,01/11/2016,265000-IT & Telecommunications,AT502-Digital Direct Support Serv.,ATOS IT SERVICES UK LTD,3563310," 6,235.74 ","BreakFix Stock Replenish - Small Form Laptop - Lenovo ThinkPad X250 - (12.5"" screen) (Windows 8.1)"
Ministry of Justice,HMCTS,01/11/2016,265000-IT & Telecommunications,AT899-HQ - ICT,ATOS IT SERVICES UK LTD,3563310, 5.00 ,5m Network Cable
Ministry of Justice,HMCTS,01/11/2016,265000-IT & Telecommunications,AT899-HQ - ICT,ATOS IT SERVICES UK LTD,3563310, 11.62 ,MS Visio Professional
Ministry of Justice,HMCTS,01/11/2016,265000-IT & Telecommunications,AT899-HQ - ICT,ATOS IT SERVICES UK LTD,3563310, 11.62 ,MS Visio Professional
Ministry of Justice,HMCTS,01/11/2016,265000-IT & Telecommunications,AT899-HQ - ICT,ATOS IT SERVICES UK LTD,3563310, 25.78 ,Hunt Group - Amendment
Ministry of Justice,HMCTS,30/11/2016,265000-IT & Telecommunications,AT899-HQ - ICT,ATOS IT SERVICES UK LTD,3594407, 40.00 ,3m Network Cable
Ministry of Justice,HMCTS,01/11/2016,265000-IT & Telecommunications,AT899-HQ - ICT,ATOS IT SERVICES UK LTD,3563310, 75.00 ,3m Network Cable
Ministry of Justice,HMCTS,01/11/2016,265000-IT & Telecommunications,AT899-HQ - ICT,ATOS IT SERVICES UK LTD,3563310, 92.00 ,Provision and support of Secure Remote Access (RWSII) Capability
Ministry of Justice,HMCTS,22/11/2016,265000-IT & Telecommunications,AT899-HQ - ICT,BT GLOBAL SERVICES,3585785, 383.62 ,BT Service charges
Ministry of Justice,HMCTS,30/11/2016,265000-IT & Telecommunications,AT899-HQ - ICT,ATOS IT SERVICES UK LTD,3594407," 1,699.00 ",Auto Attendant - Create NEW Auto Attendant Call Flow
Ministry of Justice,HMCTS,22/11/2016,512000-Intangible GBV - Additions,AT899-HQ - ICT,CGI IT UK LTD,3585808," 22,161.00 ",CGI IT - L-R-4806-02 Libra GoB Enhancements - M2 Functional Spec Issued
Ministry of Justice,HMCTS,22/11/2016,265000-IT & Telecommunications,AT899-HQ - ICT,BT GLOBAL SERVICES,3585785," 23,249.94 ",BT Service charges
Ministry of Justice,HMCTS,25/11/2016,512000-Intangible GBV - Additions,AT899-HQ - ICT,CGI IT UK LTD,3590694," 23,694.00 ",L-R-4788-03 - CGI IT - Replace PolarLake in CaseMan (WFT)
Ministry of Justice,HMCTS,04/11/2016,265000-IT & Telecommunications,AT899-HQ - ICT,ATOS IT SERVICES UK LTD,3568241," 25,810.66 ",A-S-04795-01-v02 Build and support during deployment of eJudiciary Laptops
Ministry of Justice,HMCTS,16/11/2016,265000-IT & Telecommunications,AT899-HQ - ICT,ATOS IT SERVICES UK LTD,3579277," 33,076.78 ",A-R-4517-01: L-CWR-0235 and L-CWR-0236  - Juror text/mail - packaging
Ministry of Justice,HMCTS,15/11/2016,265000-IT & Telecommunications,AT899-HQ - ICT,THOMSON REUTERS,3579159," 34,104.00 ",Service Support for C-Track CMS SaaS and C-Track E-Filing SaaS - 2016/17
Ministry of Justice,HMCTS,22/11/2016,265000-IT & Telecommunications,AT899-HQ - ICT,THOMSON REUTERS,3587022," 34,104.00 ",Service Support for C-Track CMS SaaS and C-Track E-Filing SaaS - 2016/17
Ministry of Justice,HMCTS,01/11/2016,512000-Intangible GBV - Additions,AT899-HQ - ICT,CGI IT UK LTD,3563365," 39,546.00 ",CGI IT - L-R-4788-04 Replace PolarLake in TEC
Ministry of Justice,HMCTS,22/11/2016,512000-Intangible GBV - Additions,AT899-HQ - ICT,CGI IT UK LTD,3585808," 43,076.00 ",CGI IT  - L-R-4868-01 RenderX Replacement in SUPS
Ministry of Justice,HMCTS,22/11/2016,265000-IT & Telecommunications,AT899-HQ - ICT,SOPRA STERIA LTD,3586993," 45,760.00 ",HMCTS Court Store and Bench - Support Service Apr 16 - Mar 17
Ministry of Justice,HMCTS,18/11/2016,265000-IT & Telecommunications,AT899-HQ - ICT,CACI LTD,3582621," 65,434.63 ",Managed Service Wrap for Store and Bench Products April 16 - Sept 16 
Ministry of Justice,HMCTS,04/11/2016,265000-IT & Telecommunications,AT899-HQ - ICT,CGI IT UK LTD,3568311," 69,774.20 ",App Development (VAT Rec)
Ministry of Justice,HMCTS,22/11/2016,265000-IT & Telecommunications,AT899-HQ - ICT,CGI IT UK LTD,3585808," 77,593.90 ",App Development (VAT Rec)
Ministry of Justice,HMCTS,22/11/2016,512000-Intangible GBV - Additions,AT899-HQ - ICT,CGI IT UK LTD,3585808," 88,644.00 ",CGI IT - L-R-4806-02 Libra GoB Enhancements - M3 Development Complete
Ministry of Justice,HMCTS,01/11/2016,265000-IT & Telecommunications,BZ999-London Region,ATOS IT SERVICES UK LTD,3563310, 5.00 ,10m Network Cable
Ministry of Justice,HMCTS,01/11/2016,265000-IT & Telecommunications,BZ999-London Region,ATOS IT SERVICES UK LTD,3563310, 9.74 ,HP USB/PS2 Optical Scroll Mouse
Ministry of Justice,HMCTS,01/11/2016,265000-IT & Telecommunications,BZ999-London Region,ATOS IT SERVICES UK LTD,3563310, 9.75 ,Logitech M185 Bluetooth Scroll Mouse
Ministry of Justice,HMCTS,30/11/2016,265000-IT & Telecommunications,BZ999-London Region,ATOS IT SERVICES UK LTD,3594407, 9.75 ,Logitech M185 Bluetooth Scroll Mouse
Ministry of Justice,HMCTS,01/11/2016,265000-IT & Telecommunications,BZ999-London Region,ATOS IT SERVICES UK LTD,3563310, 11.17 ,MS Access
Ministry of Justice,HMCTS,01/11/2016,265000-IT & Telecommunications,BZ999-London Region,ATOS IT SERVICES UK LTD,3563310, 14.48 ,HP Standard USB Keyboard
Ministry of Justice,HMCTS,01/11/2016,265000-IT & Telecommunications,BZ999-London Region,ATOS IT SERVICES UK LTD,3563310, 14.48 ,HP Standard USB Keyboard
Ministry of Justice,HMCTS,01/11/2016,265000-IT & Telecommunications,BZ999-London Region,ATOS IT SERVICES UK LTD,3563310, 14.98 ,Display port to VGA Cable Adapter
Ministry of Justice,HMCTS,30/11/2016,265000-IT & Telecommunications,BZ999-London Region,ATOS IT SERVICES UK LTD,3594407, 14.98 ,Display port to VGA Cable Adapter
Ministry of Justice,HMCTS,30/11/2016,265000-IT & Telecommunications,BZ999-London Region,ATOS IT SERVICES UK LTD,3594407, 14.98 ,Display port to VGA Cable Adapter
Ministry of Justice,HMCTS,01/11/2016,265000-IT & Telecommunications,BZ999-London Region,ATOS IT SERVICES UK LTD,3563310, 18.33 ,Low-noise / soft touch keyboard
Ministry of Justice,HMCTS,01/11/2016,265000-IT & Telecommunications,BZ999-London Region,ATOS IT SERVICES UK LTD,3563310, 21.73 ,"Amending the ""sleep time"" of selected Print Device"
Ministry of Justice,HMCTS,01/11/2016,265000-IT & Telecommunications,BZ999-London Region,ATOS IT SERVICES UK LTD,3563310, 25.78 ,Hunt Group - Extension
Ministry of Justice,HMCTS,01/11/2016,265000-IT & Telecommunications,BZ999-London Region,ATOS IT SERVICES UK LTD,3563310, 25.78 ,Hunt Group - Extension
Ministry of Justice,HMCTS,01/11/2016,265000-IT & Telecommunications,BZ999-London Region,ATOS IT SERVICES UK LTD,3563310, 25.78 ,Hunt Group - Extension
Ministry of Justice,HMCTS,01/11/2016,265000-IT & Telecommunications,BZ999-London Region,ATOS IT SERVICES UK LTD,3563310, 25.78 ,Mobility Account Changes 1-10 Accounts
Ministry of Justice,HMCTS,01/11/2016,265000-IT & Telecommunications,BZ999-London Region,ATOS IT SERVICES UK LTD,3563310, 25.78 ,Mobility Account Changes 1-10 Accounts
Ministry of Justice,HMCTS,01/11/2016,265000-IT & Telecommunications,BZ999-London Region,ATOS IT SERVICES UK LTD,3563310, 25.78 ,Mobility Account Changes 1-10 Accounts
Ministry of Justice,HMCTS,01/11/2016,265000-IT & Telecommunications,BZ999-London Region,ATOS IT SERVICES UK LTD,3563310, 25.78 ,Mobility Account Changes 1-10 Accounts
Ministry of Justice,HMCTS,01/11/2016,265000-IT & Telecommunications,BZ999-London Region,ATOS IT SERVICES UK LTD,3563310, 25.78 ,New IPT Mobility account with voicemail account 1-10 Accounts
Ministry of Justice,HMCTS,01/11/2016,265000-IT & Telecommunications,BZ999-London Region,ATOS IT SERVICES UK LTD,3563310, 25.78 ,New IPT Mobility account with voicemail account 1-10 Accounts
Ministry of Justice,HMCTS,01/11/2016,265000-IT & Telecommunications,BZ999-London Region,ATOS IT SERVICES UK LTD,3563310, 25.78 ,New IPT Mobility account with voicemail account 1-10 Accounts
Ministry of Justice,HMCTS,01/11/2016,265000-IT & Telecommunications,BZ999-London Region,ATOS IT SERVICES UK LTD,3563310, 25.78 ,New IPT Mobility account with voicemail account 1-10 Accounts
Ministry of Justice,HMCTS,01/11/2016,265000-IT & Telecommunications,BZ999-London Region,ATOS IT SERVICES UK LTD,3563310, 25.78 ,New IPT Mobility account with voicemail account 1-10 Accounts
Ministry of Justice,HMCTS,01/11/2016,265000-IT & Telecommunications,BZ999-London Region,ATOS IT SERVICES UK LTD,3563310, 25.78 ,New IPT Mobility account with voicemail account 1-10 Accounts
Ministry of Justice,HMCTS,01/11/2016,265000-IT & Telecommunications,BZ999-London Region,ATOS IT SERVICES UK LTD,3563310, 25.78 ,New IPT Mobility account with voicemail account 1-10 Accounts
Ministry of Justice,HMCTS,01/11/2016,265000-IT & Telecommunications,BZ999-London Region,ATOS IT SERVICES UK LTD,3563310, 25.78 ,New IPT Mobility account with voicemail account 1-10 Accounts
Ministry of Justice,HMCTS,01/11/2016,265000-IT & Telecommunications,BZ999-London Region,ATOS IT SERVICES UK LTD,3563310, 25.78 ,New IPT Mobility account with voicemail account 1-10 Accounts
Ministry of Justice,HMCTS,01/11/2016,265000-IT & Telecommunications,BZ999-London Region,ATOS IT SERVICES UK LTD,3563310, 25.78 ,Pick Up Group - Amend
Ministry of Justice,HMCTS,01/11/2016,265000-IT & Telecommunications,BZ999-London Region,ATOS IT SERVICES UK LTD,3563310, 25.78 ,Pick Up Group - Amend
Ministry of Justice,HMCTS,01/11/2016,265000-IT & Telecommunications,BZ999-London Region,ATOS IT SERVICES UK LTD,3563310, 25.78 ,Pick Up Group - Amend
Ministry of Justice,HMCTS,30/11/2016,265000-IT & Telecommunications,BZ999-London Region,ATOS IT SERVICES UK LTD,3594407, 25.78 ,Fixed Handset Conversion to Mobility Handset & Mobility Account 1 - 11 devices
Ministry of Justice,HMCTS,30/11/2016,265000-IT & Telecommunications,BZ999-London Region,ATOS IT SERVICES UK LTD,3594407, 25.78 ,Hunt Group - Extension
Ministry of Justice,HMCTS,30/11/2016,265000-IT & Telecommunications,BZ999-London Region,ATOS IT SERVICES UK LTD,3594407, 25.78 ,Hunt Group - New Default Creation
Ministry of Justice,HMCTS,30/11/2016,265000-IT & Telecommunications,BZ999-London Region,ATOS IT SERVICES UK LTD,3594407, 25.78 ,New IPT Mobility account with voicemail account 1-10 Accounts
Ministry of Justice,HMCTS,30/11/2016,265000-IT & Telecommunications,BZ999-London Region,ATOS IT SERVICES UK LTD,3594407, 25.78 ,New IPT Mobility account with voicemail account 1-10 Accounts
Ministry of Justice,HMCTS,30/11/2016,265000-IT & Telecommunications,BZ999-London Region,ATOS IT SERVICES UK LTD,3594407, 25.78 ,New IPT Mobility account with voicemail account 1-10 Accounts
Ministry of Justice,HMCTS,30/11/2016,265000-IT & Telecommunications,BZ999-London Region,ATOS IT SERVICES UK LTD,3594407, 25.78 ,Pick Up Group - Amend
Ministry of Justice,HMCTS,30/11/2016,265000-IT & Telecommunications,BZ999-London Region,ATOS IT SERVICES UK LTD,3594407, 25.78 ,Pick Up Group - New
Ministry of Justice,HMCTS,30/11/2016,265000-IT & Telecommunications,BZ999-London Region,ATOS IT SERVICES UK LTD,3594407, 25.78 ,Voicemail - Removal Of Voicemail 1-10 Accounts
Ministry of Justice,HMCTS,30/11/2016,265000-IT & Telecommunications,BZ999-London Region,ATOS IT SERVICES UK LTD,3594407, 31.31 ,Ergonomic Keyboard [Microsoft Natural MultiMedia]
Ministry of Justice,HMCTS,01/11/2016,265000-IT & Telecommunications,BZ999-London Region,ATOS IT SERVICES UK LTD,3563310, 40.34 ,Provision of FHINS access
Ministry of Justice,HMCTS,01/11/2016,265000-IT & Telecommunications,BZ999-London Region,ATOS IT SERVICES UK LTD,3563310, 40.34 ,Provision of FHINS access
Ministry of Justice,HMCTS,01/11/2016,265000-IT & Telecommunications,BZ999-London Region,ATOS IT SERVICES UK LTD,3563310, 40.34 ,Provision of FHINS access
Ministry of Justice,HMCTS,01/11/2016,265000-IT & Telecommunications,BZ999-London Region,ATOS IT SERVICES UK LTD,3563310, 40.34 ,Provision of FHINS access
Ministry of Justice,HMCTS,01/11/2016,265000-IT & Telecommunications,BZ999-London Region,ATOS IT SERVICES UK LTD,3563310, 40.34 ,Provision of FHINS access
Ministry of Justice,HMCTS,30/11/2016,265000-IT & Telecommunications,BZ999-London Region,ATOS IT SERVICES UK LTD,3594407, 40.34 ,Provision of FHINS access
Ministry of Justice,HMCTS,01/11/2016,265000-IT & Telecommunications,BZ999-London Region,ATOS IT SERVICES UK LTD,3563310, 43.43 ,Kensington Notebook Stand with USB Hub
Ministry of Justice,HMCTS,30/11/2016,265000-IT & Telecommunications,BZ999-London Region,ATOS IT SERVICES UK LTD,3594407, 43.43 ,Kensington Notebook Stand with USB Hub
Ministry of Justice,HMCTS,01/11/2016,265000-IT & Telecommunications,BZ999-London Region,ATOS IT SERVICES UK LTD,3563310, 46.00 ,Provision and support of Secure Remote Access (RWSII) Capability
Ministry of Justice,HMCTS,01/11/2016,265000-IT & Telecommunications,BZ999-London Region,ATOS IT SERVICES UK LTD,3563310, 46.00 ,Provision and support of Secure Remote Access (RWSII) Capability
Ministry of Justice,HMCTS,30/11/2016,265000-IT & Telecommunications,BZ999-London Region,ATOS IT SERVICES UK LTD,3594407, 46.00 ,Provision and support of Secure Remote Access (RWSII) Capability
Ministry of Justice,HMCTS,30/11/2016,265000-IT & Telecommunications,BZ999-London Region,ATOS IT SERVICES UK LTD,3594407, 46.00 ,Provision and support of Secure Remote Access (RWSII) Capability
Ministry of Justice,HMCTS,01/11/2016,265000-IT & Telecommunications,BZ999-London Region,ATOS IT SERVICES UK LTD,3563310, 49.50 ,Allow Laptop/Printer USB Connectivity
Ministry of Justice,HMCTS,30/11/2016,265000-IT & Telecommunications,BZ999-London Region,ATOS IT SERVICES UK LTD,3594407, 50.00 ,10m Network Cable
Ministry of Justice,HMCTS,30/11/2016,265000-IT & Telecommunications,BZ999-London Region,ATOS IT SERVICES UK LTD,3594407, 50.45 ,4-Port USB Hub
Ministry of Justice,HMCTS,01/11/2016,265000-IT & Telecommunications,BZ999-London Region,ATOS IT SERVICES UK LTD,3563310, 51.56 ,New IPT Handset 1 - 11 devices
Ministry of Justice,HMCTS,01/11/2016,265000-IT & Telecommunications,BZ999-London Region,ATOS IT SERVICES UK LTD,3563310, 51.56 ,New IPT Mobility account with voicemail account 1-10 Accounts
Ministry of Justice,HMCTS,01/11/2016,265000-IT & Telecommunications,BZ999-London Region,ATOS IT SERVICES UK LTD,3563310, 51.56 ,New IPT Mobility account with voicemail account 1-10 Accounts
Ministry of Justice,HMCTS,30/11/2016,265000-IT & Telecommunications,BZ999-London Region,ATOS IT SERVICES UK LTD,3594407, 51.56 ,Fixed IPT Phone Transfer to a new user 1-10 Devices
Ministry of Justice,HMCTS,01/11/2016,265000-IT & Telecommunications,BZ999-London Region,ATOS IT SERVICES UK LTD,3563310, 64.65 ,Black GoldTouch USB Keypad
Ministry of Justice,HMCTS,30/11/2016,265000-IT & Telecommunications,BZ999-London Region,ATOS IT SERVICES UK LTD,3594407, 77.34 ,New IPT Mobility account with voicemail account 1-10 Accounts
Ministry of Justice,HMCTS,01/11/2016,265000-IT & Telecommunications,BZ999-London Region,ATOS IT SERVICES UK LTD,3563310, 78.26 ,Reassign BlackBerry device within Business Unit
Ministry of Justice,HMCTS,30/11/2016,265000-IT & Telecommunications,BZ999-London Region,ATOS IT SERVICES UK LTD,3594407, 78.26 ,Reassign BlackBerry device within Business Unit
Ministry of Justice,HMCTS,30/11/2016,265000-IT & Telecommunications,BZ999-London Region,ATOS IT SERVICES UK LTD,3594407, 78.26 ,Reassign BlackBerry device within Business Unit
Ministry of Justice,HMCTS,30/11/2016,265000-IT & Telecommunications,BZ999-London Region,ATOS IT SERVICES UK LTD,3594407, 103.12 ,Hunt Group - Extension
Ministry of Justice,HMCTS,01/11/2016,265000-IT & Telecommunications,BZ999-London Region,ATOS IT SERVICES UK LTD,3563310, 144.00 ,Relocation of 2 desktop client devices to a different building.
Ministry of Justice,HMCTS,01/11/2016,265000-IT & Telecommunications,BZ999-London Region,ATOS IT SERVICES UK LTD,3563310, 144.00 ,Relocation of 2 desktop client devices to a different building.
Ministry of Justice,HMCTS,01/11/2016,265000-IT & Telecommunications,BZ999-London Region,ATOS IT SERVICES UK LTD,3563310, 168.02 ,RollerMouse Pro2
Ministry of Justice,HMCTS,01/11/2016,265000-IT & Telecommunications,BZ999-London Region,ATOS IT SERVICES UK LTD,3563310, 181.02 ,Desktop PC - HP DC8300
Ministry of Justice,HMCTS,30/11/2016,265000-IT & Telecommunications,BZ999-London Region,ATOS IT SERVICES UK LTD,3594407, 183.53 ,Plantronics CS540 Wireless Headset 1-11 devices
Ministry of Justice,HMCTS,30/11/2016,265000-IT & Telecommunications,BZ999-London Region,ATOS IT SERVICES UK LTD,3594407, 278.16 ,Call Volume Site Summary
Ministry of Justice,HMCTS,30/11/2016,265000-IT & Telecommunications,BZ999-London Region,ATOS IT SERVICES UK LTD,3594407, 278.16 ,Site Configuration
Ministry of Justice,HMCTS,30/11/2016,265000-IT & Telecommunications,BZ999-London Region,ATOS IT SERVICES UK LTD,3594407, 281.23 ,"22"" LCD Display (XP)"
Ministry of Justice,HMCTS,18/11/2016,222003-CIS Labour TFM Estates,BZ999-London Region,MITIE FACILITIES SERVICES LTD,3582879, 340.00 ,PEST AND VERMIN
Ministry of Justice,HMCTS,01/11/2016,265000-IT & Telecommunications,BZ999-London Region,ATOS IT SERVICES UK LTD,3563310, 393.59 ,Dragon Naturally Speaking Professional v10
Ministry of Justice,HMCTS,01/11/2016,265000-IT & Telecommunications,BZ999-London Region,ATOS IT SERVICES UK LTD,3563310, 432.60 ,Lenovo X240/Yoga Mains Adaptor
Ministry of Justice,HMCTS,01/11/2016,265000-IT & Telecommunications,BZ999-London Region,ATOS IT SERVICES UK LTD,3563310, 832.32 ,1 to 5 Devices Local Relocation (same Authority Premises) -  Printer or MFD
Ministry of Justice,HMCTS,01/11/2016,223001-Printing Postage and Office expenditure,BZ999-London Region,ROYAL MAIL GROUP PLC,3564632, 833.38 ,London Region Royal Mail Variable Charges 
Ministry of Justice,HMCTS,04/11/2016,223001-Printing Postage and Office expenditure,BZ999-London Region,ROYAL MAIL GROUP PLC,3569448, 843.70 ,London Region Royal Mail Variable Charges
Ministry of Justice,HMCTS,30/11/2016,265000-IT & Telecommunications,BZ999-London Region,ATOS IT SERVICES UK LTD,3594407, 984.03 ,"Small Form Laptop - Lenovo ThinkPad X250 - [12.5"" screen] (Windows 8.1)"
Ministry of Justice,HMCTS,30/11/2016,265000-IT & Telecommunications,BZ999-London Region,ATOS IT SERVICES UK LTD,3594407, 984.03 ,"Small Form Laptop - Lenovo ThinkPad X250 - [12.5"" screen] (Windows 8.1)"
Ministry of Justice,HMCTS,04/11/2016,222003-CIS Labour TFM Estates,BZ999-London Region,MITIE FACILITIES SERVICES LTD,3568582," 1,422.90 ",PEST AND VERMIN
Ministry of Justice,HMCTS,04/11/2016,222003-CIS Labour TFM Estates,BZ999-London Region,MITIE FACILITIES SERVICES LTD,3568582," 1,430.00 ",PEST AND VERMIN
Ministry of Justice,HMCTS,18/11/2016,261000-Fuel and Utilities,BZ999-London Region,CORONA ENERGY RETAIL 2 LTD,3582643," 1,576.43 ",HMCTS London Corona gas consolidated charge.
Ministry of Justice,HMCTS,18/11/2016,222003-CIS Labour TFM Estates,BZ999-London Region,MITIE FACILITIES SERVICES LTD,3582879," 2,804.41 ",INTERNAL MOVES
Ministry of Justice,HMCTS,18/11/2016,222003-CIS Labour TFM Estates,BZ999-London Region,MITIE FACILITIES SERVICES LTD,3582879," 2,945.50 ",CLEANING
Ministry of Justice,HMCTS,04/11/2016,311200-Criminal Legal Aid,BZ999-London Region,DOUGHTY STREET CHAMBERS#GB37174938,466864," 3,864.00 ",Legal fees to solicitors for the repayment of costs to parties after gaining legal aid and represenation order
Ministry of Justice,HMCTS,23/11/2016,610400-Debtors <1 year - Prepayments & Accrued Income,BZ999-London Region,LONDON BOROUGH OF HOUNSLOW,3587193," 4,084.30 ",Rates Invoice
Ministry of Justice,HMCTS,23/11/2016,610400-Debtors <1 year - Prepayments & Accrued Income,BZ999-London Region,LONDON BOROUGH OF ENFIELD,3587187," 4,368.65 ",Rates Invoice
Ministry of Justice,HMCTS,23/11/2016,610400-Debtors <1 year - Prepayments & Accrued Income,BZ999-London Region,LONDON BOROUGH OF HOUNSLOW,3587193," 4,446.20 ",Rates Invoice
Ministry of Justice,HMCTS,23/11/2016,610400-Debtors <1 year - Prepayments & Accrued Income,BZ999-London Region,NEWCASTLE CITY COUNCIL,3587216," 4,522.70 ",Rates Invoice
Ministry of Justice,HMCTS,23/11/2016,610400-Debtors <1 year - Prepayments & Accrued Income,BZ999-London Region,LONDON BOROUGH OF BRENT,3587182," 4,885.65 ",Rates Invoice
Ministry of Justice,HMCTS,23/11/2016,610400-Debtors <1 year - Prepayments & Accrued Income,BZ999-London Region,LONDON BOROUGH OF LAMBETH,3587195," 5,092.45 ",Rates Invoice
Ministry of Justice,HMCTS,23/11/2016,610400-Debtors <1 year - Prepayments & Accrued Income,BZ999-London Region,LONDON BOROUGH OF EALING,3587186," 5,144.15 ",Rates Invoice
Ministry of Justice,HMCTS,23/11/2016,610400-Debtors <1 year - Prepayments & Accrued Income,BZ999-London Region,LONDON BOROUGH OF HAVERING,3587191," 5,531.90 ",Rates Invoice
Ministry of Justice,HMCTS,23/11/2016,610400-Debtors <1 year - Prepayments & Accrued Income,BZ999-London Region,THE ROYAL BOROUGH OF GREENWICH,3587279," 5,687.00 ",Rates Invoice
Ministry of Justice,HMCTS,15/11/2016,222003-CIS Labour TFM Estates,BZ999-London Region,MITIE FACILITIES SERVICES LTD,3578038," 5,696.53 ",PEST AND VERMIN
Ministry of Justice,HMCTS,04/11/2016,311200-Criminal Legal Aid,BZ999-London Region,DOUGHTY STREET CHAMBERS#GB37174938,466864," 6,105.00 ",Legal fees to solicitors for the repayment of costs to parties after gaining legal aid and represenation order
Ministry of Justice,HMCTS,23/11/2016,610400-Debtors <1 year - Prepayments & Accrued Income,BZ999-London Region,LONDON BOROUGH OF BROMLEY,3587183," 6,573.50 ",Rates Invoice
Ministry of Justice,HMCTS,23/11/2016,610400-Debtors <1 year - Prepayments & Accrued Income,BZ999-London Region,LONDON BOROUGH OF NEWHAM,3587197," 6,824.40 ",Rates Invoice
Ministry of Justice,HMCTS,15/11/2016,222003-CIS Labour TFM Estates,BZ999-London Region,MITIE FACILITIES SERVICES LTD,3578038," 6,969.07 ",CATERING LEASE
Ministry of Justice,HMCTS,23/11/2016,610400-Debtors <1 year - Prepayments & Accrued Income,BZ999-London Region,LONDON BOROUGH OF HILLINGDON,3587192," 7,238.00 ",Rates Invoice
Ministry of Justice,HMCTS,23/11/2016,610400-Debtors <1 year - Prepayments & Accrued Income,BZ999-London Region,LONDON BOROUGH OF HAVERING,3587191," 7,393.10 ",Rates Invoice
Ministry of Justice,HMCTS,23/11/2016,610400-Debtors <1 year - Prepayments & Accrued Income,BZ999-London Region,LONDON BOROUGH OF HARINGEY,3587189," 8,582.20 ",Rates Invoice
Ministry of Justice,HMCTS,23/11/2016,610400-Debtors <1 year - Prepayments & Accrued Income,BZ999-London Region,CITY OF LONDON,3587119," 8,665.20 ",Rates Invoice
Ministry of Justice,HMCTS,23/11/2016,610400-Debtors <1 year - Prepayments & Accrued Income,BZ999-London Region,ROYAL BOROUGH OF KINGSTON UPON THAMES,3587241," 9,047.50 ",Rates Invoice
Ministry of Justice,HMCTS,01/11/2016,223001-Printing Postage and Office expenditure,BZ999-London Region,London Region Royal Mail Variable Charges,3564632," 9,156.17 ",London Region Royal Mail Variable Charges - Account 000171123000 (replaces PO 20000193610)
Ministry of Justice,HMCTS,23/11/2016,610400-Debtors <1 year - Prepayments & Accrued Income,BZ999-London Region,WANDSWORTH BOROUGH COUNCIL,3587286," 9,921.23 ",Rates Invoice
Ministry of Justice,HMCTS,04/11/2016,223001-Printing Postage and Office expenditure,BZ999-London Region,London Region Royal Mail Variable Charges,3569448," 10,118.82 ",London Region Royal Mail Variable Charges - Account 000171123000 (replaces PO 20000193610)
Ministry of Justice,HMCTS,23/11/2016,610400-Debtors <1 year - Prepayments & Accrued Income,BZ999-London Region,WANDSWORTH BOROUGH COUNCIL,3587286," 11,374.00 ",Rates Invoice
Ministry of Justice,HMCTS,23/11/2016,610400-Debtors <1 year - Prepayments & Accrued Income,BZ999-London Region,LONDON BOROUGH OF HILLINGDON,3587192," 12,563.10 ",Rates Invoice
Ministry of Justice,HMCTS,23/11/2016,610400-Debtors <1 year - Prepayments & Accrued Income,BZ999-London Region,LONDON BOROUGH OF BEXLEY,3587181," 13,829.75 ",Rates Invoice
Ministry of Justice,HMCTS,23/11/2016,610400-Debtors <1 year - Prepayments & Accrued Income,BZ999-London Region,LONDON BOROUGH OF CROYDON,3587185," 14,217.50 ",Rates Invoice
Ministry of Justice,HMCTS,15/11/2016,222003-CIS Labour TFM Estates,BZ999-London Region,MITIE FACILITIES SERVICES LTD,3578038," 14,801.09 ",INTERNAL MOVES
Ministry of Justice,HMCTS,23/11/2016,610400-Debtors <1 year - Prepayments & Accrued Income,BZ999-London Region,LONDON BOROUGH OF RICHMOND UPON THAMES,3587199," 14,993.00 ",Rates Invoice
Ministry of Justice,HMCTS,23/11/2016,610400-Debtors <1 year - Prepayments & Accrued Income,BZ999-London Region,LONDON BOROUGH OF WALTHAM FOREST,3587202," 15,626.33 ",Rates Invoice
Ministry of Justice,HMCTS,23/11/2016,610400-Debtors <1 year - Prepayments & Accrued Income,BZ999-London Region,LONDON BOROUGH OF BARNET,3587180," 15,910.96 ",Rates Invoice
Ministry of Justice,HMCTS,04/11/2016,311200-Criminal Legal Aid,BZ999-London Region,DOUGHTY STREET CHAMBERS#GB37174938,466864," 16,255.00 ",Legal fees to solicitors for the repayment of costs to parties after gaining legal aid and represenation order
Ministry of Justice,HMCTS,23/11/2016,610400-Debtors <1 year - Prepayments & Accrued Income,BZ999-London Region,LONDON BOROUGH OF REDBRIDGE,3587198," 16,544.00 ",Rates Invoice
Ministry of Justice,HMCTS,23/11/2016,610400-Debtors <1 year - Prepayments & Accrued Income,BZ999-London Region,LONDON BOROUGH OF HARINGEY,3587189," 17,870.23 ",Rates Invoice
Ministry of Justice,HMCTS,15/11/2016,222003-CIS Labour TFM Estates,BZ999-London Region,MITIE FACILITIES SERVICES LTD,3578038," 18,405.54 ",Grounds Maintenance
Ministry of Justice,HMCTS,04/11/2016,222003-CIS Labour TFM Estates,BZ999-London Region,MITIE FACILITIES SERVICES LTD,3568582," 18,595.90 ",SECURITY
Ministry of Justice,HMCTS,18/11/2016,222003-CIS Labour TFM Estates,BZ999-London Region,MITIE FACILITIES SERVICES LTD,3582879," 20,876.17 ",SECURITY
Ministry of Justice,HMCTS,23/11/2016,610400-Debtors <1 year - Prepayments & Accrued Income,BZ999-London Region,LONDON BOROUGH OF TOWER HAMLETS,3587201," 22,489.50 ",Rates Invoice
Ministry of Justice,HMCTS,23/11/2016,610400-Debtors <1 year - Prepayments & Accrued Income,BZ999-London Region,LONDON BOROUGH OF TOWER HAMLETS,3587201," 23,265.00 ",Rates Invoice
Ministry of Justice,HMCTS,23/11/2016,610400-Debtors <1 year - Prepayments & Accrued Income,BZ999-London Region,LONDON BOROUGH OF MERTON,3587196," 23,420.10 ",Rates Invoice
Ministry of Justice,HMCTS,15/11/2016,222003-CIS Labour TFM Estates,BZ999-London Region,MITIE FACILITIES SERVICES LTD,3578038," 23,724.36 ",MANAGEMENT
Ministry of Justice,HMCTS,23/11/2016,610400-Debtors <1 year - Prepayments & Accrued Income,BZ999-London Region,LONDON BOROUGH OF ISLINGTON,3587194," 25,591.50 ",Rates Invoice
Ministry of Justice,HMCTS,23/11/2016,610400-Debtors <1 year - Prepayments & Accrued Income,BZ999-London Region,LONDON BOROUGH OF BARNET,3587180," 25,855.32 ",Rates Invoice
Ministry of Justice,HMCTS,23/11/2016,610400-Debtors <1 year - Prepayments & Accrued Income,BZ999-London Region,LONDON BOROUGH OF CROYDON,3587185," 27,401.00 ",Rates Invoice
Ministry of Justice,HMCTS,08/11/2016,222003-CIS Labour TFM Estates,BZ999-London Region,MITIE FACILITIES SERVICES LTD,3571066," 27,655.66 ",CIS Labour - Snaresbrook Crown - MITIE FACILITIES SERVICES - SD/AB: P1 rev. flood remedial works. LN-16-17-1989
Ministry of Justice,HMCTS,02/11/2016,265000-IT & Telecommunications,BZ999-London Region,BT PLC,3564922," 27,871.52 ",London Region Consolidated - BT One Bill - 2015/16
Ministry of Justice,HMCTS,01/11/2016,265000-IT & Telecommunications,BZ999-London Region,ATOS IT SERVICES UK LTD,3563310," 28,683.51 ",RCJ - ATOS Origin - (CCN no A-R-03106-01-v01) - Supply of ongoing services for third party costs
Ministry of Justice,HMCTS,23/11/2016,610400-Debtors <1 year - Prepayments & Accrued Income,BZ999-London Region,LONDON BOROUGH OF ISLINGTON,3587194," 29,328.27 ",Rates Invoice
Ministry of Justice,HMCTS,18/11/2016,532000-Tangible GBV - Additions,BZ999-London Region,TURNER & TOWNSEND PROJECT MANAGEMENT LTD,3584066," 29,643.96 ","The Royal Courts of Justice - Turner & Townsend - (CMD) RCJ various security installations, BPRN 1325/14/2538."
Ministry of Justice,HMCTS,23/11/2016,610400-Debtors <1 year - Prepayments & Accrued Income,BZ999-London Region,LONDON BOROUGH OF BROMLEY,3587183," 31,020.00 ",Rates Invoice
Ministry of Justice,HMCTS,08/11/2016,222003-CIS Labour TFM Estates,BZ999-London Region,MITIE FACILITIES SERVICES LTD,3571066," 33,529.81 ","CIS Labour - Snaresbrook Crown Court - MITIE FACILITIES SERVICES - SD/JSm: P1 rev, chillers 1&2 emergency works. LN-16-17-1729"
Ministry of Justice,HMCTS,23/11/2016,610400-Debtors <1 year - Prepayments & Accrued Income,BZ999-London Region,LONDON BOROUGH OF SOUTHWARK,3587200," 33,863.45 ",Rates Invoice
Ministry of Justice,HMCTS,23/11/2016,610400-Debtors <1 year - Prepayments & Accrued Income,BZ999-London Region,LONDON BOROUGH OF REDBRIDGE,3587198," 33,984.50 ",Rates Invoice
Ministry of Justice,HMCTS,23/11/2016,610400-Debtors <1 year - Prepayments & Accrued Income,BZ999-London Region,LONDON BOROUGH OF NEWHAM,3587197," 34,897.50 ",Rates Invoice
Ministry of Justice,HMCTS,15/11/2016,532000-Tangible GBV - Additions,BZ999-London Region,MITIE FACILITIES SERVICES LTD,3578038," 38,980.34 ",CIS Labour - Westminster Magistrates  - Mitie Facilities - CB: To install the external art works on outside of building. LN-15-16-1781 - This replaces PO 20000308249
Ministry of Justice,HMCTS,23/11/2016,610400-Debtors <1 year - Prepayments & Accrued Income,BZ999-London Region,LONDON BOROUGH OF BRENT,3587182," 40,843.00 ",Rates Invoice
Ministry of Justice,HMCTS,23/11/2016,610400-Debtors <1 year - Prepayments & Accrued Income,BZ999-London Region,LONDON BOROUGH OF TOWER HAMLETS,3587201," 41,558.33 ",Rates Invoice
Ministry of Justice,HMCTS,04/11/2016,223001-Printing Postage and Office expenditure,BZ999-London Region,ROYAL MAIL GROUP PLC,3569448," 41,865.41 ",London Region Royal Mail Variable Charges 
Ministry of Justice,HMCTS,15/11/2016,222003-CIS Labour TFM Estates,BZ999-London Region,MITIE FACILITIES SERVICES LTD,3578038," 44,397.93 ",Internal Repair & Maintenance
Ministry of Justice,HMCTS,09/11/2016,311200-Criminal Legal Aid,BZ999-London Region,5 ST ANDREW'S HILL#GB37174886,3573227," 44,580.00 ",Legal fees to solicitors for the repayment of costs to parties after gaining legal aid and represenation order
Ministry of Justice,HMCTS,22/11/2016,532000-Tangible GBV - Additions,BZ999-London Region,MITIE FACILITIES SERVICES LTD,3586045," 45,477.11 ",CIS Labour - Westminster Magistrates  - Mitie Facilities - CB: To install the external art works on outside of building. LN-15-16-1781 - This replaces PO 20000308249
Ministry of Justice,HMCTS,01/11/2016,223001-Printing Postage and Office expenditure,BZ999-London Region,ROYAL MAIL GROUP PLC,3564632," 45,734.09 ",London Region Royal Mail Variable Charges
Ministry of Justice,HMCTS,23/11/2016,261000-Fuel and Utilities,BZ999-London Region,THAMES WATER UTILITIES LTD,3589371," 46,078.67 ",London Region Consolidated - Water Costs - Thames Water
Ministry of Justice,HMCTS,23/11/2016,610400-Debtors <1 year - Prepayments & Accrued Income,BZ999-London Region,LONDON BOROUGH OF CROYDON,3587185," 46,690.85 ",Rates Invoice
Ministry of Justice,HMCTS,23/11/2016,610400-Debtors <1 year - Prepayments & Accrued Income,BZ999-London Region,LONDON BOROUGH OF HARROW,3587190," 48,856.50 ",Rates Invoice
Ministry of Justice,HMCTS,23/11/2016,610400-Debtors <1 year - Prepayments & Accrued Income,BZ999-London Region,LONDON BOROUGH OF HAMMERSMITH & FULHAM,3587188," 53,251.00 ",Rates Invoice
Ministry of Justice,HMCTS,18/11/2016,261000-Fuel and Utilities,BZ999-London Region,EDF ENERGY LTD,3582695," 54,506.21 ",Royal Courts of Justice - EDF Energy.
Ministry of Justice,HMCTS,15/11/2016,222003-CIS Labour TFM Estates,BZ999-London Region,MITIE FACILITIES SERVICES LTD,3578038," 56,640.91 ",WASTE DISPOSAL
Ministry of Justice,HMCTS,23/11/2016,610400-Debtors <1 year - Prepayments & Accrued Income,BZ999-London Region,LONDON BOROUGH OF HOUNSLOW,3587193," 58,938.00 ",Rates Invoice
Ministry of Justice,HMCTS,23/11/2016,610400-Debtors <1 year - Prepayments & Accrued Income,BZ999-London Region,THE ROYAL BOROUGH OF GREENWICH,3587279," 70,312.00 ",Rates Invoice
Ministry of Justice,HMCTS,23/11/2016,610400-Debtors <1 year - Prepayments & Accrued Income,BZ999-London Region,CITY OF WESTMINSTER,3587121," 75,999.00 ",Rates Invoice
Ministry of Justice,HMCTS,23/11/2016,610400-Debtors <1 year - Prepayments & Accrued Income,BZ999-London Region,ROYAL BOROUGH OF KINGSTON UPON THAMES,3587241," 88,407.00 ",Rates Invoice
Ministry of Justice,HMCTS,18/11/2016,261000-Fuel and Utilities,BZ999-London Region,CORONA ENERGY RETAIL 2 LTD,3582643," 91,240.28 ",HMCTS London Corona gas consolidated charge.
Ministry of Justice,HMCTS,11/11/2016,311200-Criminal Legal Aid,BZ999-London Region,BANKSIDE COMMERCIAL SOLICITORS#GB37174863,467845," 94,611.44 ",Legal fees to solicitors for the repayment of costs to parties after gaining legal aid and represenation order
Ministry of Justice,HMCTS,11/11/2016,311200-Criminal Legal Aid,BZ999-London Region,DPP LAW SOLICITORS#GB37174907,467846," 100,970.20 ",Legal fees to solicitors for the repayment of costs to parties after gaining legal aid and represenation order
Ministry of Justice,HMCTS,15/11/2016,532000-Tangible GBV - Additions,BZ999-London Region,MITIE FACILITIES SERVICES LTD,3578038," 126,548.42 ",CIS Labour - First Avenue House (PRFD) - Mitie Facilities - CB: lift refurbishment works (capital). LN-16-17-1718
Ministry of Justice,HMCTS,15/11/2016,222003-CIS Labour TFM Estates,BZ999-London Region,MITIE FACILITIES SERVICES LTD,3578038," 157,189.31 ",Management
Ministry of Justice,HMCTS,23/11/2016,610400-Debtors <1 year - Prepayments & Accrued Income,BZ999-London Region,LONDON BOROUGH OF CAMDEN,3587184," 175,780.00 ",Rates Invoice
Ministry of Justice,HMCTS,25/11/2016,262000-SCA Costs,BZ999-London Region,IRON MOUNTAIN (UK) LTD,3590847," 194,854.03 ",Long Term Records Storage
Ministry of Justice,HMCTS,15/11/2016,222003-CIS Labour TFM Estates,BZ999-London Region,MITIE FACILITIES SERVICES LTD,3578038," 234,433.68 ",M & E Maintenance
Ministry of Justice,HMCTS,14/11/2016,221000-Property Rent and Rates,BZ999-London Region,HOME OFFICE,11897," 290,039.14 ",Rent Invoice
Ministry of Justice,HMCTS,18/11/2016,610400-Debtors <1 year - Prepayments & Accrued Income,BZ999-London Region,CITY OF LONDON,3582633," 310,526.40 ",Service charge invoice
Ministry of Justice,HMCTS,15/11/2016,222003-CIS Labour TFM Estates,BZ999-London Region,MITIE FACILITIES SERVICES LTD,3578038," 371,781.81 ",CLEANING
Ministry of Justice,HMCTS,23/11/2016,610400-Debtors <1 year - Prepayments & Accrued Income,BZ999-London Region,CITY OF WESTMINSTER,3587121," 373,791.00 ",Rates Invoice
Ministry of Justice,HMCTS,23/11/2016,610400-Debtors <1 year - Prepayments & Accrued Income,BZ999-London Region,CITY OF LONDON,3587119," 384,714.00 ",Rates Invoice
Ministry of Justice,HMCTS,02/11/2016,262000-SCA Costs,BZ999-London Region,IRON MOUNTAIN (UK) LTD,3565487," 477,747.17 ",Long Term Records Storage
Ministry of Justice,HMCTS,15/11/2016,222003-CIS Labour TFM Estates,BZ999-London Region,MITIE FACILITIES SERVICES LTD,3578038," 706,299.18 ",SECURITY
Ministry of Justice,HMCTS,01/11/2016,265000-IT & Telecommunications,CZ999-South East Region,ATOS IT SERVICES UK LTD,3563310, 5.00 ,5m Network Cable
Ministry of Justice,HMCTS,01/11/2016,265000-IT & Telecommunications,CZ999-South East Region,ATOS IT SERVICES UK LTD,3563310, 6.93 ,Startech 1Mtr Mini HDMI to DVI-D Cable
Ministry of Justice,HMCTS,01/11/2016,265000-IT & Telecommunications,CZ999-South East Region,ATOS IT SERVICES UK LTD,3563310, 6.93 ,Startech 1Mtr Mini HDMI to DVI-D Cable
Ministry of Justice,HMCTS,01/11/2016,265000-IT & Telecommunications,CZ999-South East Region,ATOS IT SERVICES UK LTD,3563310, 6.93 ,Startech 1Mtr Mini HDMI to DVI-D Cable
Ministry of Justice,HMCTS,30/11/2016,265000-IT & Telecommunications,CZ999-South East Region,ATOS IT SERVICES UK LTD,3594407, 8.19 ,2M Mini HDMI to HDMI Cable.
Ministry of Justice,HMCTS,30/11/2016,265000-IT & Telecommunications,CZ999-South East Region,ATOS IT SERVICES UK LTD,3594407, 8.19 ,2M Mini HDMI to HDMI Cable.
Ministry of Justice,HMCTS,01/11/2016,265000-IT & Telecommunications,CZ999-South East Region,ATOS IT SERVICES UK LTD,3563310, 9.74 ,HP USB/PS2 Optical Scroll Mouse
Ministry of Justice,HMCTS,01/11/2016,265000-IT & Telecommunications,CZ999-South East Region,ATOS IT SERVICES UK LTD,3563310, 13.86 ,Startech 1Mtr Mini HDMI to DVI-D Cable
Ministry of Justice,HMCTS,30/11/2016,265000-IT & Telecommunications,CZ999-South East Region,ATOS IT SERVICES UK LTD,3594407, 20.00 ,3M USB Device Cable
Ministry of Justice,HMCTS,30/11/2016,265000-IT & Telecommunications,CZ999-South East Region,ATOS IT SERVICES UK LTD,3594407, 20.00 ,5m Network Cable
Ministry of Justice,HMCTS,01/11/2016,265000-IT & Telecommunications,CZ999-South East Region,ATOS IT SERVICES UK LTD,3563310, 20.79 ,Startech 1Mtr Mini HDMI to DVI-D Cable
Ministry of Justice,HMCTS,30/11/2016,265000-IT & Telecommunications,CZ999-South East Region,ATOS IT SERVICES UK LTD,3594407, 20.79 ,Startech 1Mtr Mini HDMI to DVI-D Cable
Ministry of Justice,HMCTS,30/11/2016,265000-IT & Telecommunications,CZ999-South East Region,ATOS IT SERVICES UK LTD,3594407, 25.36 ,Startaboard Large Key Keyboard
Ministry of Justice,HMCTS,01/11/2016,265000-IT & Telecommunications,CZ999-South East Region,ATOS IT SERVICES UK LTD,3563310, 25.78 ,Fixed IPT Phone Transfer to a new user 1-10 Devices
Ministry of Justice,HMCTS,01/11/2016,265000-IT & Telecommunications,CZ999-South East Region,ATOS IT SERVICES UK LTD,3563310, 25.78 ,Mobility Handset Conversion to Fixed Handset with new user details 1- 11 devices
Ministry of Justice,HMCTS,01/11/2016,265000-IT & Telecommunications,CZ999-South East Region,ATOS IT SERVICES UK LTD,3563310, 25.78 ,New IPT Handset 1 - 11 devices
Ministry of Justice,HMCTS,01/11/2016,265000-IT & Telecommunications,CZ999-South East Region,ATOS IT SERVICES UK LTD,3563310, 25.78 ,New IPT Mobility account with voicemail account 1-10 Accounts
Ministry of Justice,HMCTS,30/11/2016,265000-IT & Telecommunications,CZ999-South East Region,ATOS IT SERVICES UK LTD,3594407, 25.78 ,Analogue Extension Configuration Changes 1 - 10
Ministry of Justice,HMCTS,30/11/2016,265000-IT & Telecommunications,CZ999-South East Region,ATOS IT SERVICES UK LTD,3594407, 25.78 ,Analogue Extension Configuration Changes 1 - 10
Ministry of Justice,HMCTS,30/11/2016,265000-IT & Telecommunications,CZ999-South East Region,ATOS IT SERVICES UK LTD,3594407, 25.78 ,Fixed Handset Conversion to Mobility Handset & Mobility Account 1 - 11 devices
Ministry of Justice,HMCTS,30/11/2016,265000-IT & Telecommunications,CZ999-South East Region,ATOS IT SERVICES UK LTD,3594407, 25.78 ,Fixed IPT Phone Transfer to a new user 1-10 Devices
Ministry of Justice,HMCTS,30/11/2016,265000-IT & Telecommunications,CZ999-South East Region,ATOS IT SERVICES UK LTD,3594407, 25.78 ,Fixed IPT Phone Transfer to a new user 1-10 Devices
Ministry of Justice,HMCTS,30/11/2016,265000-IT & Telecommunications,CZ999-South East Region,ATOS IT SERVICES UK LTD,3594407, 25.78 ,Hunt Group - Amendment
Ministry of Justice,HMCTS,30/11/2016,265000-IT & Telecommunications,CZ999-South East Region,ATOS IT SERVICES UK LTD,3594407, 25.78 ,Hunt Group - Extension
Ministry of Justice,HMCTS,30/11/2016,265000-IT & Telecommunications,CZ999-South East Region,ATOS IT SERVICES UK LTD,3594407, 25.78 ,Hunt Group - Extension
Ministry of Justice,HMCTS,30/11/2016,265000-IT & Telecommunications,CZ999-South East Region,ATOS IT SERVICES UK LTD,3594407, 25.78 ,Hunt Group - Extension
Ministry of Justice,HMCTS,30/11/2016,265000-IT & Telecommunications,CZ999-South East Region,ATOS IT SERVICES UK LTD,3594407, 25.78 ,Hunt Group - New Default Creation
Ministry of Justice,HMCTS,30/11/2016,265000-IT & Telecommunications,CZ999-South East Region,ATOS IT SERVICES UK LTD,3594407, 25.78 ,Mobility Handset Conversion to Fixed Handset & Import existing Mobility profile 1- 11 devices
Ministry of Justice,HMCTS,30/11/2016,265000-IT & Telecommunications,CZ999-South East Region,ATOS IT SERVICES UK LTD,3594407, 25.78 ,Mobility Handset Conversion to Fixed Handset & Import existing Mobility profile 1- 11 devices
Ministry of Justice,HMCTS,30/11/2016,265000-IT & Telecommunications,CZ999-South East Region,ATOS IT SERVICES UK LTD,3594407, 25.78 ,New IPT Handset 1 - 11 devices
Ministry of Justice,HMCTS,30/11/2016,265000-IT & Telecommunications,CZ999-South East Region,ATOS IT SERVICES UK LTD,3594407, 25.78 ,New IPT Handset 1 - 11 devices
Ministry of Justice,HMCTS,30/11/2016,265000-IT & Telecommunications,CZ999-South East Region,ATOS IT SERVICES UK LTD,3594407, 25.78 ,New IPT Handset 1 - 11 devices
Ministry of Justice,HMCTS,30/11/2016,265000-IT & Telecommunications,CZ999-South East Region,ATOS IT SERVICES UK LTD,3594407, 25.78 ,New IPT Handset 1 - 11 devices
Ministry of Justice,HMCTS,30/11/2016,265000-IT & Telecommunications,CZ999-South East Region,ATOS IT SERVICES UK LTD,3594407, 25.78 ,Voicemail - New Voicemail Account 1-10 Accounts
Ministry of Justice,HMCTS,30/11/2016,265000-IT & Telecommunications,CZ999-South East Region,ATOS IT SERVICES UK LTD,3594407, 25.78 ,Voicemail - New Voicemail Account 1-10 Accounts
Ministry of Justice,HMCTS,30/11/2016,265000-IT & Telecommunications,CZ999-South East Region,ATOS IT SERVICES UK LTD,3594407, 25.78 ,Voicemail - Removal Of Voicemail 1-10 Accounts
Ministry of Justice,HMCTS,01/11/2016,265000-IT & Telecommunications,CZ999-South East Region,ATOS IT SERVICES UK LTD,3563310, 28.84 ,Lenovo X240/Yoga Mains Adaptor
Ministry of Justice,HMCTS,01/11/2016,265000-IT & Telecommunications,CZ999-South East Region,ATOS IT SERVICES UK LTD,3563310, 30.27 ,4-Port USB Hub
Ministry of Justice,HMCTS,01/11/2016,265000-IT & Telecommunications,CZ999-South East Region,ATOS IT SERVICES UK LTD,3563310, 31.31 ,Ergonomic Keyboard [Microsoft Natural MultiMedia]
Ministry of Justice,HMCTS,01/11/2016,265000-IT & Telecommunications,CZ999-South East Region,ATOS IT SERVICES UK LTD,3563310, 36.66 ,Low-noise / soft touch keyboard
Ministry of Justice,HMCTS,01/11/2016,265000-IT & Telecommunications,CZ999-South East Region,ATOS IT SERVICES UK LTD,3563310, 38.94 ,Lenovo USB Gigabit Ethernet Adaptor
Ministry of Justice,HMCTS,01/11/2016,265000-IT & Telecommunications,CZ999-South East Region,ATOS IT SERVICES UK LTD,3563310, 45.76 ,Andrea NC181VM USB headset
Ministry of Justice,HMCTS,01/11/2016,265000-IT & Telecommunications,CZ999-South East Region,ATOS IT SERVICES UK LTD,3563310, 46.00 ,Provision and support of Secure Remote Access (RWSII) Capability
Ministry of Justice,HMCTS,01/11/2016,265000-IT & Telecommunications,CZ999-South East Region,ATOS IT SERVICES UK LTD,3563310, 46.00 ,Provision and support of Secure Remote Access (RWSII) Capability
Ministry of Justice,HMCTS,01/11/2016,265000-IT & Telecommunications,CZ999-South East Region,ATOS IT SERVICES UK LTD,3563310, 46.00 ,Provision and support of Secure Remote Access (RWSII) Capability
Ministry of Justice,HMCTS,30/11/2016,265000-IT & Telecommunications,CZ999-South East Region,ATOS IT SERVICES UK LTD,3594407, 46.00 ,Provision and support of Secure Remote Access (RWSII) Capability
Ministry of Justice,HMCTS,30/11/2016,265000-IT & Telecommunications,CZ999-South East Region,ATOS IT SERVICES UK LTD,3594407, 46.05 ,Logitech Trackman Cordless Ergonomic Mouse
Ministry of Justice,HMCTS,01/11/2016,265000-IT & Telecommunications,CZ999-South East Region,ATOS IT SERVICES UK LTD,3563310, 46.22 ,Request Olympus dictation and transcription software for a user.  Does not include Olympus Digital Professional Dictation Solution - DS-7000
Ministry of Justice,HMCTS,01/11/2016,265000-IT & Telecommunications,CZ999-South East Region,ATOS IT SERVICES UK LTD,3563310, 51.56 ,New IPT Handset 1 - 11 devices
Ministry of Justice,HMCTS,30/11/2016,265000-IT & Telecommunications,CZ999-South East Region,ATOS IT SERVICES UK LTD,3594407, 51.56 ,New IPT Handset 1 - 11 devices
Ministry of Justice,HMCTS,30/11/2016,265000-IT & Telecommunications,CZ999-South East Region,ATOS IT SERVICES UK LTD,3594407, 51.56 ,New IPT Mobility account with voicemail account 1-10 Accounts
Ministry of Justice,HMCTS,30/11/2016,265000-IT & Telecommunications,CZ999-South East Region,ATOS IT SERVICES UK LTD,3594407, 51.56 ,Pick Up Group - Amend
Ministry of Justice,HMCTS,01/11/2016,265000-IT & Telecommunications,CZ999-South East Region,ATOS IT SERVICES UK LTD,3563310, 58.10 ,Converse 2300 1-11 devices
Ministry of Justice,HMCTS,01/11/2016,265000-IT & Telecommunications,CZ999-South East Region,ATOS IT SERVICES UK LTD,3563310, 59.34 ,Converse 2100 1 -11 devices
Ministry of Justice,HMCTS,30/11/2016,265000-IT & Telecommunications,CZ999-South East Region,ATOS IT SERVICES UK LTD,3594407, 60.34 ,Desktop PC - HP DC8300
Ministry of Justice,HMCTS,01/11/2016,265000-IT & Telecommunications,CZ999-South East Region,ATOS IT SERVICES UK LTD,3563310, 61.80 ,Recovery of a redundant IPT handset from site 1-11 devices
Ministry of Justice,HMCTS,01/11/2016,265000-IT & Telecommunications,CZ999-South East Region,ATOS IT SERVICES UK LTD,3563310, 66.86 ,Return BlackBerry device (no longer required)
Ministry of Justice,HMCTS,01/11/2016,265000-IT & Telecommunications,CZ999-South East Region,ATOS IT SERVICES UK LTD,3563310, 67.31 ,Plantronics HW251 A Mono Headset 1-11 devices
Ministry of Justice,HMCTS,01/11/2016,265000-IT & Telecommunications,CZ999-South East Region,ATOS IT SERVICES UK LTD,3563310, 70.86 ,Plantronics HW251 A Mono Headset 1-11 devices
Ministry of Justice,HMCTS,01/11/2016,265000-IT & Telecommunications,CZ999-South East Region,ATOS IT SERVICES UK LTD,3563310, 74.90 ,Display port to VGA Cable Adapter
Ministry of Justice,HMCTS,01/11/2016,265000-IT & Telecommunications,CZ999-South East Region,ATOS IT SERVICES UK LTD,3563310, 78.26 ,Reassign BlackBerry device within Business Unit
Ministry of Justice,HMCTS,01/11/2016,265000-IT & Telecommunications,CZ999-South East Region,ATOS IT SERVICES UK LTD,3563310, 87.95 ,Plantronics HW261 A Duo Headset 1-11 devices
Ministry of Justice,HMCTS,30/11/2016,265000-IT & Telecommunications,CZ999-South East Region,ATOS IT SERVICES UK LTD,3594407, 92.00 ,Provision and support of Secure Remote Access (RWSII) Capability
Ministry of Justice,HMCTS,30/11/2016,265000-IT & Telecommunications,CZ999-South East Region,ATOS IT SERVICES UK LTD,3594407, 102.91 ,Set Print Device to default to postscript printing
Ministry of Justice,HMCTS,01/11/2016,265000-IT & Telecommunications,CZ999-South East Region,ATOS IT SERVICES UK LTD,3563310, 104.23 ,Plantronics HW261 N Duo Headset 1-11 devices
Ministry of Justice,HMCTS,01/11/2016,265000-IT & Telecommunications,CZ999-South East Region,ATOS IT SERVICES UK LTD,3563310, 104.23 ,Plantronics HW261 N Duo Headset 1-11 devices
Ministry of Justice,HMCTS,01/11/2016,265000-IT & Telecommunications,CZ999-South East Region,ATOS IT SERVICES UK LTD,3563310, 109.98 ,Low-noise / soft touch keyboard
Ministry of Justice,HMCTS,01/11/2016,265000-IT & Telecommunications,CZ999-South East Region,ATOS IT SERVICES UK LTD,3563310, 113.16 ,"HP 230W Docking Station for 8440p, 8540p, 8460p, 8560p, 8470p and 8570p laptops"
Ministry of Justice,HMCTS,01/11/2016,265000-IT & Telecommunications,CZ999-South East Region,ATOS IT SERVICES UK LTD,3563310, 115.36 ,Lenovo X240/Yoga Mains Adaptor
Ministry of Justice,HMCTS,01/11/2016,265000-IT & Telecommunications,CZ999-South East Region,ATOS IT SERVICES UK LTD,3563310, 115.36 ,Lenovo X240/Yoga Mains Adaptor
Ministry of Justice,HMCTS,01/11/2016,265000-IT & Telecommunications,CZ999-South East Region,ATOS IT SERVICES UK LTD,3563310, 115.36 ,Lenovo X240/Yoga Mains Adaptor
Ministry of Justice,HMCTS,30/11/2016,265000-IT & Telecommunications,CZ999-South East Region,ATOS IT SERVICES UK LTD,3594407, 128.90 ,Hunt Group - Extension
Ministry of Justice,HMCTS,30/11/2016,265000-IT & Telecommunications,CZ999-South East Region,ATOS IT SERVICES UK LTD,3594407, 144.00 ,Relocation of 2 desktop client devices to a different building.
Ministry of Justice,HMCTS,30/11/2016,265000-IT & Telecommunications,CZ999-South East Region,ATOS IT SERVICES UK LTD,3594407, 149.80 ,Display port to VGA Cable Adapter
Ministry of Justice,HMCTS,30/11/2016,265000-IT & Telecommunications,CZ999-South East Region,ATOS IT SERVICES UK LTD,3594407, 149.80 ,Display port to VGA Cable Adapter
Ministry of Justice,HMCTS,01/11/2016,265000-IT & Telecommunications,CZ999-South East Region,ATOS IT SERVICES UK LTD,3563310, 164.00 ,Pool Laptop
Ministry of Justice,HMCTS,30/11/2016,265000-IT & Telecommunications,CZ999-South East Region,ATOS IT SERVICES UK LTD,3594407, 201.88 ,Lenovo X240/Yoga Mains Adaptor
Ministry of Justice,HMCTS,01/11/2016,265000-IT & Telecommunications,CZ999-South East Region,ATOS IT SERVICES UK LTD,3563310, 216.00 ,Relocation of 3 desktop client devices to a different building.
Ministry of Justice,HMCTS,30/11/2016,265000-IT & Telecommunications,CZ999-South East Region,ATOS IT SERVICES UK LTD,3594407, 232.02 ,Hunt Group - Extension
Ministry of Justice,HMCTS,01/11/2016,265000-IT & Telecommunications,CZ999-South East Region,ATOS IT SERVICES UK LTD,3563310, 278.16 ,Site Configuration
Ministry of Justice,HMCTS,30/11/2016,265000-IT & Telecommunications,CZ999-South East Region,ATOS IT SERVICES UK LTD,3594407, 283.44 ,Plantronics HW251 A Mono Headset 1-11 devices
Ministry of Justice,HMCTS,01/11/2016,265000-IT & Telecommunications,CZ999-South East Region,ATOS IT SERVICES UK LTD,3563310, 309.00 ,Polycom Soundstation 2 Conference Phone 1-11 devices
Ministry of Justice,HMCTS,30/11/2016,265000-IT & Telecommunications,CZ999-South East Region,ATOS IT SERVICES UK LTD,3594407, 416.16 ,1 to 5 Devices Local Relocation (same Authority Premises) -  Printer or MFD
Ministry of Justice,HMCTS,01/11/2016,265000-IT & Telecommunications,CZ999-South East Region,ATOS IT SERVICES UK LTD,3563310, 488.99 ,1 to 5 Devices National Relocation -Printer or MFD (Multi Function Device)
Ministry of Justice,HMCTS,25/11/2016,222003-CIS Labour TFM Estates,CZ999-South East Region,MITIE FACILITIES SERVICES LTD,3590909," 1,016.57 ",Pest Control
Ministry of Justice,HMCTS,08/11/2016,223001-Printing Postage and Office expenditure,CZ999-South East Region,ROYAL MAIL GROUP PLC,3571996," 1,711.58 ","SE Regional consolidated - variable charges, Royal Mail - FY 16/17"
Ministry of Justice,HMCTS,01/11/2016,223001-Printing Postage and Office expenditure,CZ999-South East Region,ROYAL MAIL GROUP PLC,3564632," 1,820.91 ","SE Regional consolidated - variable charges, Royal Mail - FY 16/17"
Ministry of Justice,HMCTS,02/11/2016,223001-Printing Postage and Office expenditure,CZ999-South East Region,ROYAL MAIL GROUP PLC,3566852," 2,050.75 ","SE Regional consolidated - variable charges, Royal Mail - FY 16/17"
Ministry of Justice,HMCTS,04/11/2016,222003-CIS Labour TFM Estates,CZ999-South East Region,MITIE FACILITIES SERVICES LTD,3568582," 2,120.73 ",Waste Disposal
Ministry of Justice,HMCTS,01/11/2016,223001-Printing Postage and Office expenditure,CZ999-South East Region,ROYAL MAIL GROUP PLC,3564632," 2,463.97 ","SE Regional consolidated - variable charges, Royal Mail - FY 16/17"
Ministry of Justice,HMCTS,04/11/2016,222003-CIS Labour TFM Estates,CZ999-South East Region,MITIE FACILITIES SERVICES LTD,3568582,"-2,534.73 ",Waste Disposal
Ministry of Justice,HMCTS,08/11/2016,223001-Printing Postage and Office expenditure,CZ999-South East Region,ROYAL MAIL GROUP PLC,3571996," 2,620.25 ","SE Regional consolidated - variable charges, Royal Mail - FY 16/17"
Ministry of Justice,HMCTS,23/11/2016,610400-Debtors <1 year - Prepayments & Accrued Income,CZ999-South East Region,SLOUGH BOROUGH COUNCIL,3587252," 2,683.70 ",Rates Invoice
Ministry of Justice,HMCTS,22/11/2016,261000-Fuel and Utilities,CZ999-South East Region,CORONA ENERGY RETAIL 2 LTD,3585826," 2,806.03 ",SE Region Consolidated - Gas charges - 16/17
Ministry of Justice,HMCTS,23/11/2016,610400-Debtors <1 year - Prepayments & Accrued Income,CZ999-South East Region,TUNBRIDGE WELLS BOROUGH COUNCIL,3587283," 2,957.15 ",Rates Invoice
Ministry of Justice,HMCTS,23/11/2016,610400-Debtors <1 year - Prepayments & Accrued Income,CZ999-South East Region,MAIDSTONE BOROUGH COUNCIL,3587204," 3,454.15 ",Rates Invoice
Ministry of Justice,HMCTS,23/11/2016,610400-Debtors <1 year - Prepayments & Accrued Income,CZ999-South East Region,CHERWELL DISTRICT COUNCIL,3587111," 3,578.40 ",Rates Invoice
Ministry of Justice,HMCTS,23/11/2016,610400-Debtors <1 year - Prepayments & Accrued Income,CZ999-South East Region,BOROUGH COUNCIL OF KINGS LYNN & WEST NORFOLK,3587086," 3,603.25 ",Rates Invoice
Ministry of Justice,HMCTS,23/11/2016,610400-Debtors <1 year - Prepayments & Accrued Income,CZ999-South East Region,DARTFORD BOROUGH COUNCIL,3587134," 3,628.10 ",Rates Invoice
Ministry of Justice,HMCTS,02/11/2016,223001-Printing Postage and Office expenditure,CZ999-South East Region,ROYAL MAIL GROUP PLC,3566852," 3,659.92 ","SE Regional consolidated - variable charges, Royal Mail - FY 16/17"
Ministry of Justice,HMCTS,30/11/2016,610400-Debtors <1 year - Prepayments & Accrued Income,CZ999-South East Region,BOROUGH COUNCIL OF KINGS LYNN & WEST NORFOLK,3596796," 3,723.77 ",Rates Invoice
Ministry of Justice,HMCTS,30/11/2016,610400-Debtors <1 year - Prepayments & Accrued Income,CZ999-South East Region,BOROUGH COUNCIL OF KINGS LYNN & WEST NORFOLK,3596796," 3,727.50 ",Rates Invoice
Ministry of Justice,HMCTS,23/11/2016,610400-Debtors <1 year - Prepayments & Accrued Income,CZ999-South East Region,HARLOW COUNCIL,3587157," 3,876.60 ",Rates Invoice
Ministry of Justice,HMCTS,30/11/2016,610400-Debtors <1 year - Prepayments & Accrued Income,CZ999-South East Region,CHILTERN DISTRICT COUNCIL,3596797," 3,972.02 ",Rates Invoice
Ministry of Justice,HMCTS,30/11/2016,610400-Debtors <1 year - Prepayments & Accrued Income,CZ999-South East Region,CHILTERN DISTRICT COUNCIL,3596797," 3,976.00 ",Rates Invoice
Ministry of Justice,HMCTS,23/11/2016,610400-Debtors <1 year - Prepayments & Accrued Income,CZ999-South East Region,AYLESBURY VALE DISTRICT COUNCIL,3587075," 4,025.70 ",Rates Invoice
Ministry of Justice,HMCTS,23/11/2016,610400-Debtors <1 year - Prepayments & Accrued Income,CZ999-South East Region,WATFORD BOROUGH COUNCIL,3587288," 4,050.55 ",Rates Invoice
Ministry of Justice,HMCTS,23/11/2016,610400-Debtors <1 year - Prepayments & Accrued Income,CZ999-South East Region,SLOUGH BOROUGH COUNCIL,3587252," 4,199.65 ",Rates Invoice
Ministry of Justice,HMCTS,23/11/2016,610400-Debtors <1 year - Prepayments & Accrued Income,CZ999-South East Region,ST EDMUNDSBURY BOROUGH COUNCIL,3587267," 4,224.50 ",Rates Invoice
Ministry of Justice,HMCTS,23/11/2016,610400-Debtors <1 year - Prepayments & Accrued Income,CZ999-South East Region,MAIDSTONE BOROUGH COUNCIL,3587204," 4,522.70 ",Rates Invoice
Ministry of Justice,HMCTS,23/11/2016,610400-Debtors <1 year - Prepayments & Accrued Income,CZ999-South East Region,MOLE VALLEY DISTRICT COUNCIL,3587212," 4,547.55 ",Rates Invoice
Ministry of Justice,HMCTS,23/11/2016,610400-Debtors <1 year - Prepayments & Accrued Income,CZ999-South East Region,IPSWICH BOROUGH COUNCIL,3587168," 4,671.80 ",Rates Invoice
Ministry of Justice,HMCTS,23/11/2016,610400-Debtors <1 year - Prepayments & Accrued Income,CZ999-South East Region,SEVENOAKS DISTRICT COUNCIL,3587248," 4,721.50 ",Rates Invoice
Ministry of Justice,HMCTS,23/11/2016,610400-Debtors <1 year - Prepayments & Accrued Income,CZ999-South East Region,WEST BERKSHIRE COUNCIL,3587290," 4,870.60 ",Rates Invoice
Ministry of Justice,HMCTS,23/11/2016,610400-Debtors <1 year - Prepayments & Accrued Income,CZ999-South East Region,CHICHESTER DISTRICT COUNCIL,3587115," 5,268.20 ",Rates Invoice
Ministry of Justice,HMCTS,23/11/2016,610400-Debtors <1 year - Prepayments & Accrued Income,CZ999-South East Region,LUTON BOROUGH COUNCIL,3587203," 5,268.20 ",Rates Invoice
Ministry of Justice,HMCTS,23/11/2016,610400-Debtors <1 year - Prepayments & Accrued Income,CZ999-South East Region,STEVENAGE BOROUGH COUNCIL,3587270," 5,417.30 ",Rates Invoice
Ministry of Justice,HMCTS,23/11/2016,610400-Debtors <1 year - Prepayments & Accrued Income,CZ999-South East Region,EAST HERTFORDSHIRE DISTRICT COUNCIL,3587142," 5,516.70 ",Rates Invoice
Ministry of Justice,HMCTS,23/11/2016,610400-Debtors <1 year - Prepayments & Accrued Income,CZ999-South East Region,COLCHESTER BOROUGH COUNCIL,3587123," 5,715.50 ",Rates Invoice
Ministry of Justice,HMCTS,23/11/2016,610400-Debtors <1 year - Prepayments & Accrued Income,CZ999-South East Region,STEVENAGE BOROUGH COUNCIL,3587270," 5,715.50 ",Rates Invoice
Ministry of Justice,HMCTS,25/11/2016,222003-CIS Labour TFM Estates,CZ999-South East Region,MITIE FACILITIES SERVICES LTD,3590909," 5,788.20 ",Catering - Lease Contracts
Ministry of Justice,HMCTS,23/11/2016,610400-Debtors <1 year - Prepayments & Accrued Income,CZ999-South East Region,EPSOM & EWELL BOROUGH COUNCIL,3587146," 5,864.60 ",Rates Invoice
Ministry of Justice,HMCTS,23/11/2016,610400-Debtors <1 year - Prepayments & Accrued Income,CZ999-South East Region,MILTON KEYNES COUNCIL,3587211," 5,914.30 ",Rates Invoice
Ministry of Justice,HMCTS,23/11/2016,610400-Debtors <1 year - Prepayments & Accrued Income,CZ999-South East Region,CHERWELL DISTRICT COUNCIL,3587111," 6,311.90 ",Rates Invoice
Ministry of Justice,HMCTS,23/11/2016,610400-Debtors <1 year - Prepayments & Accrued Income,CZ999-South East Region,BOROUGH COUNCIL OF KINGS LYNN & WEST NORFOLK,3587086," 6,361.60 ",Rates Invoice
Ministry of Justice,HMCTS,23/11/2016,610400-Debtors <1 year - Prepayments & Accrued Income,CZ999-South East Region,CRAWLEY BOROUGH COUNCIL,3587131," 6,361.60 ",Rates Invoice
Ministry of Justice,HMCTS,23/11/2016,610400-Debtors <1 year - Prepayments & Accrued Income,CZ999-South East Region,EASTBOURNE BOROUGH COUNCIL,3587145," 6,560.40 ",Rates Invoice
Ministry of Justice,HMCTS,23/11/2016,610400-Debtors <1 year - Prepayments & Accrued Income,CZ999-South East Region,CANTERBURY CITY COUNCIL,3587104," 6,659.80 ",Rates Invoice
Ministry of Justice,HMCTS,23/11/2016,610400-Debtors <1 year - Prepayments & Accrued Income,CZ999-South East Region,ROYAL BOROUGH OF WINDSOR AND MAIDENHEAD,3587242," 6,659.80 ",Rates Invoice
Ministry of Justice,HMCTS,23/11/2016,610400-Debtors <1 year - Prepayments & Accrued Income,CZ999-South East Region,DARTFORD BOROUGH COUNCIL,3587134," 6,958.00 ",Rates Invoice
Ministry of Justice,HMCTS,23/11/2016,610400-Debtors <1 year - Prepayments & Accrued Income,CZ999-South East Region,SHEPWAY DISTRICT COUNCIL,3587250," 6,958.00 ",Rates Invoice
Ministry of Justice,HMCTS,23/11/2016,610400-Debtors <1 year - Prepayments & Accrued Income,CZ999-South East Region,READING BOROUGH COUNCIL,3587236," 7,007.70 ",Rates Invoice
Ministry of Justice,HMCTS,23/11/2016,610400-Debtors <1 year - Prepayments & Accrued Income,CZ999-South East Region,THANET DISTRICT COUNCIL,3587278," 7,355.60 ",Rates Invoice
Ministry of Justice,HMCTS,23/11/2016,610400-Debtors <1 year - Prepayments & Accrued Income,CZ999-South East Region,ST EDMUNDSBURY BOROUGH COUNCIL,3587267," 7,554.40 ",Rates Invoice
Ministry of Justice,HMCTS,23/11/2016,610400-Debtors <1 year - Prepayments & Accrued Income,CZ999-South East Region,WATFORD BOROUGH COUNCIL,3587288," 7,604.10 ",Rates Invoice
Ministry of Justice,HMCTS,23/11/2016,610400-Debtors <1 year - Prepayments & Accrued Income,CZ999-South East Region,BASILDON BOROUGH COUNCIL,3587077," 8,399.30 ",Rates Invoice
Ministry of Justice,HMCTS,23/11/2016,610400-Debtors <1 year - Prepayments & Accrued Income,CZ999-South East Region,HORSHAM DISTRICT COUNCIL,3587164," 9,095.10 ",Rates Invoice
Ministry of Justice,HMCTS,23/11/2016,610400-Debtors <1 year - Prepayments & Accrued Income,CZ999-South East Region,CHICHESTER DISTRICT COUNCIL,3587115," 9,293.90 ",Rates Invoice
Ministry of Justice,HMCTS,23/11/2016,610400-Debtors <1 year - Prepayments & Accrued Income,CZ999-South East Region,BRIGHTON & HOVE CITY COUNCIL,3587096," 9,691.50 ",Rates Invoice
Ministry of Justice,HMCTS,23/11/2016,610400-Debtors <1 year - Prepayments & Accrued Income,CZ999-South East Region,TUNBRIDGE WELLS BOROUGH COUNCIL,3587283," 10,089.10 ",Rates Invoice
Ministry of Justice,HMCTS,23/11/2016,610400-Debtors <1 year - Prepayments & Accrued Income,CZ999-South East Region,BRIGHTON & HOVE CITY COUNCIL,3587096," 10,298.76 ",Rates Invoice
Ministry of Justice,HMCTS,23/11/2016,610400-Debtors <1 year - Prepayments & Accrued Income,CZ999-South East Region,OXFORD CITY COUNCIL,3587229," 10,387.30 ",Rates Invoice
Ministry of Justice,HMCTS,23/11/2016,610400-Debtors <1 year - Prepayments & Accrued Income,CZ999-South East Region,WORTHING BOROUGH COUNCIL,3587299," 10,486.70 ",Rates Invoice
Ministry of Justice,HMCTS,23/11/2016,610400-Debtors <1 year - Prepayments & Accrued Income,CZ999-South East Region,AYLESBURY VALE DISTRICT COUNCIL,3587075," 10,983.70 ",Rates Invoice
Ministry of Justice,HMCTS,23/11/2016,610400-Debtors <1 year - Prepayments & Accrued Income,CZ999-South East Region,IPSWICH BOROUGH COUNCIL,3587168," 11,132.80 ",Rates Invoice
Ministry of Justice,HMCTS,23/11/2016,610400-Debtors <1 year - Prepayments & Accrued Income,CZ999-South East Region,WAVENEY DISTRICT COUNCIL,3587289," 11,629.80 ",Rates Invoice
Ministry of Justice,HMCTS,23/11/2016,610400-Debtors <1 year - Prepayments & Accrued Income,CZ999-South East Region,REIGATE & BANSTEAD BOROUGH COUNCIL,3587238," 11,679.50 ",Rates Invoice
Ministry of Justice,HMCTS,23/11/2016,610400-Debtors <1 year - Prepayments & Accrued Income,CZ999-South East Region,GREAT YARMOUTH BOROUGH COUNCIL,3587153," 11,729.20 ",Rates Invoice
Ministry of Justice,HMCTS,23/11/2016,610400-Debtors <1 year - Prepayments & Accrued Income,CZ999-South East Region,LEWES DISTRICT COUNCIL,3587177," 11,828.60 ",Rates Invoice
Ministry of Justice,HMCTS,23/11/2016,610400-Debtors <1 year - Prepayments & Accrued Income,CZ999-South East Region,BEDFORD BOROUGH COUNCIL,3587081," 12,176.50 ",Rates Invoice
Ministry of Justice,HMCTS,23/11/2016,610400-Debtors <1 year - Prepayments & Accrued Income,CZ999-South East Region,DOVER DISTRICT COUNCIL,3587138," 12,325.60 ",Rates Invoice
Ministry of Justice,HMCTS,23/11/2016,610400-Debtors <1 year - Prepayments & Accrued Income,CZ999-South East Region,ST ALBANS CITY & DISTRICT COUNCIL,3587266," 13,419.00 ",Rates Invoice
Ministry of Justice,HMCTS,25/11/2016,222003-CIS Labour TFM Estates,CZ999-South East Region,MITIE FACILITIES SERVICES LTD,3590909," 14,036.46 ",Management Costs
Ministry of Justice,HMCTS,23/11/2016,610400-Debtors <1 year - Prepayments & Accrued Income,CZ999-South East Region,MEDWAY COUNCIL,3587207," 14,413.00 ",Rates Invoice
Ministry of Justice,HMCTS,23/11/2016,610400-Debtors <1 year - Prepayments & Accrued Income,CZ999-South East Region,LUTON BOROUGH COUNCIL,3587203," 15,531.25 ",Rates Invoice
Ministry of Justice,HMCTS,23/11/2016,610400-Debtors <1 year - Prepayments & Accrued Income,CZ999-South East Region,WYCOMBE DISTRICT COUNCIL,3587301," 15,904.00 ",Rates Invoice
Ministry of Justice,HMCTS,23/11/2016,610400-Debtors <1 year - Prepayments & Accrued Income,CZ999-South East Region,SPELTHORNE BOROUGH COUNCIL,3587265," 16,276.75 ",Rates Invoice
Ministry of Justice,HMCTS,23/11/2016,610400-Debtors <1 year - Prepayments & Accrued Income,CZ999-South East Region,BRIGHTON & HOVE CITY COUNCIL,3587096," 17,074.25 ",Rates Invoice
Ministry of Justice,HMCTS,23/11/2016,610400-Debtors <1 year - Prepayments & Accrued Income,CZ999-South East Region,SOUTHEND-ON-SEA BOROUGH COUNCIL,3587264," 17,146.50 ",Rates Invoice
Ministry of Justice,HMCTS,23/11/2016,610400-Debtors <1 year - Prepayments & Accrued Income,CZ999-South East Region,HASTINGS BOROUGH COUNCIL,3587160," 17,519.25 ",Rates Invoice
Ministry of Justice,HMCTS,23/11/2016,610400-Debtors <1 year - Prepayments & Accrued Income,CZ999-South East Region,NORWICH CITY COUNCIL,3587226," 17,767.75 ",Rates Invoice
Ministry of Justice,HMCTS,23/11/2016,610400-Debtors <1 year - Prepayments & Accrued Income,CZ999-South East Region,CAMBRIDGE CITY COUNCIL,3587102," 18,513.25 ",Rates Invoice
Ministry of Justice,HMCTS,15/11/2016,222003-CIS Labour TFM Estates,CZ999-South East Region,MITIE FACILITIES SERVICES LTD,3578038," 19,337.97 ",Grounds Maintenance
Ministry of Justice,HMCTS,23/11/2016,610400-Debtors <1 year - Prepayments & Accrued Income,CZ999-South East Region,GUILDFORD BOROUGH COUNCIL,3587154," 19,880.00 ",Rates Invoice
Ministry of Justice,HMCTS,23/11/2016,610400-Debtors <1 year - Prepayments & Accrued Income,CZ999-South East Region,CHELMSFORD BOROUGH COUNCIL,3587110," 20,501.25 ",Rates Invoice
Ministry of Justice,HMCTS,23/11/2016,610400-Debtors <1 year - Prepayments & Accrued Income,CZ999-South East Region,READING BOROUGH COUNCIL,3587236," 20,625.50 ",Rates Invoice
Ministry of Justice,HMCTS,23/11/2016,610400-Debtors <1 year - Prepayments & Accrued Income,CZ999-South East Region,GUILDFORD BOROUGH COUNCIL,3587154," 20,874.00 ",Rates Invoice
Ministry of Justice,HMCTS,23/11/2016,610400-Debtors <1 year - Prepayments & Accrued Income,CZ999-South East Region,PETERBOROUGH CITY COUNCIL,3587231," 21,246.75 ",Rates Invoice
Ministry of Justice,HMCTS,15/11/2016,222003-CIS Labour TFM Estates,CZ999-South East Region,MITIE FACILITIES SERVICES LTD,3578038," 21,297.09 ",CIS Labour - Brighton Family Centre - MITIE FACILITIES LTD - Brighton Family Centre - TO-SE-16-17-2068 - BMS and fan coil Project
Ministry of Justice,HMCTS,23/11/2016,610400-Debtors <1 year - Prepayments & Accrued Income,CZ999-South East Region,MILTON KEYNES COUNCIL,3587211," 21,743.80 ",Rates Invoice
Ministry of Justice,HMCTS,23/11/2016,610400-Debtors <1 year - Prepayments & Accrued Income,CZ999-South East Region,PETERBOROUGH CITY COUNCIL,3587231," 22,986.25 ",Rates Invoice
Ministry of Justice,HMCTS,18/11/2016,222003-CIS Labour TFM Estates,CZ999-South East Region,MITIE FACILITIES SERVICES LTD,3582879," 24,282.92 ",CIS Labour - Hertford Magistrates' - MITIE FACILITIES SERVICES LTD - TO-SE-16-17-1628 - 6036472 - Carry out repairs to roof
Ministry of Justice,HMCTS,30/11/2016,532000-Tangible GBV - Additions,CZ999-South East Region,MITIE FACILITIES SERVICES LTD,3595267," 25,798.98 ",CIS Labour - Chelmsford Crown - MITIE FACILITIES SERVICES LTD - BPRN 2820 - Chelmsford Crown - Emergency lighting replacement - TO-SE-15-16-2228
Ministry of Justice,HMCTS,23/11/2016,610400-Debtors <1 year - Prepayments & Accrued Income,CZ999-South East Region,HUNTINGDONSHIRE DISTRICT COUNCIL,3587166," 27,086.50 ",Rates Invoice
Ministry of Justice,HMCTS,29/11/2016,610400-Debtors <1 year - Prepayments & Accrued Income,CZ999-South East Region,VINE PROPERTY MANAGEMENT,3594324," 27,437.02 ",Service charge invoice
Ministry of Justice,HMCTS,23/11/2016,610400-Debtors <1 year - Prepayments & Accrued Income,CZ999-South East Region,CAMBRIDGE CITY COUNCIL,3587102," 27,832.00 ",Rates Invoice
Ministry of Justice,HMCTS,23/11/2016,610400-Debtors <1 year - Prepayments & Accrued Income,CZ999-South East Region,CHELMSFORD BOROUGH COUNCIL,3587110," 27,832.00 ",Rates Invoice
Ministry of Justice,HMCTS,08/11/2016,532000-Tangible GBV - Additions,CZ999-South East Region,MOTT MACDONALD LTD,3571067," 27,961.33 ",Oxford Combined - MOTT MACDONALD - 435/15/3447 - Client Representative & Multi-Dis Designer Professional fees in relation to the HMCTS Enabling works
Ministry of Justice,HMCTS,15/11/2016,222003-CIS Labour TFM Estates,CZ999-South East Region,MITIE FACILITIES SERVICES LTD,3578038," 29,055.44 ",Internal Repair & Maintenance
Ministry of Justice,HMCTS,23/11/2016,610400-Debtors <1 year - Prepayments & Accrued Income,CZ999-South East Region,OXFORD CITY COUNCIL,3587229," 29,074.50 ",Rates Invoice
Ministry of Justice,HMCTS,29/11/2016,532000-Tangible GBV - Additions,CZ999-South East Region,MITIE FACILITIES SERVICES LTD,3593537," 29,293.37 ",CIS Labour  - Slough County - Mitie Facilities Service Ltd - TO-SE-16-17-1390:  Replacement of Fire Alarm System
Ministry of Justice,HMCTS,22/11/2016,532000-Tangible GBV - Additions,CZ999-South East Region,TURNER & TOWNSEND PROJECT MANAGEMENT LTD,3587039," 30,380.62 ","Southend Crown - Turner & Townsend - Project Management & Lead Design fees for the replacement FA System for Hard Wired L2 System, and 4 other Projects"
Ministry of Justice,HMCTS,23/11/2016,610400-Debtors <1 year - Prepayments & Accrued Income,CZ999-South East Region,CHELMSFORD BOROUGH COUNCIL,3587110," 30,565.50 ",Rates Invoice
Ministry of Justice,HMCTS,04/11/2016,532000-Tangible GBV - Additions,CZ999-South East Region,MITIE FACILITIES SERVICES LTD,3568582," 30,657.35 ",CIS Labour - Brighton County - Mitie Facilities - TO-SE-16-17-2270: Conversion of existing lighting to LED Lamps
Ministry of Justice,HMCTS,23/11/2016,610400-Debtors <1 year - Prepayments & Accrued Income,CZ999-South East Region,COLCHESTER BOROUGH COUNCIL,3587123," 31,558.50 ",Rates Invoice
Ministry of Justice,HMCTS,23/11/2016,610400-Debtors <1 year - Prepayments & Accrued Income,CZ999-South East Region,NORWICH CITY COUNCIL,3587226," 31,808.00 ",Rates Invoice
Ministry of Justice,HMCTS,15/11/2016,532000-Tangible GBV - Additions,CZ999-South East Region,TURNER & TOWNSEND PROJECT MANAGEMENT LTD,3579170," 32,012.98 ",Aylesbury Magistrates - Turner & Townsend - Project & Client Management fees for the approved Court Reform enabling works
Ministry of Justice,HMCTS,23/11/2016,610400-Debtors <1 year - Prepayments & Accrued Income,CZ999-South East Region,CHELMSFORD BOROUGH COUNCIL,3587110," 32,553.50 ",Rates Invoice
Ministry of Justice,HMCTS,23/11/2016,610400-Debtors <1 year - Prepayments & Accrued Income,CZ999-South East Region,LUTON BOROUGH COUNCIL,3587203," 33,050.50 ",Rates Invoice
Ministry of Justice,HMCTS,23/11/2016,610400-Debtors <1 year - Prepayments & Accrued Income,CZ999-South East Region,ST ALBANS CITY & DISTRICT COUNCIL,3587266," 33,050.50 ",Rates Invoice
Ministry of Justice,HMCTS,23/11/2016,610400-Debtors <1 year - Prepayments & Accrued Income,CZ999-South East Region,BASILDON BOROUGH COUNCIL,3587077," 38,269.00 ",Rates Invoice
Ministry of Justice,HMCTS,04/11/2016,532000-Tangible GBV - Additions,CZ999-South East Region,MITIE FACILITIES SERVICES LTD,3568582," 39,855.22 ",CIS Labour - Brighton Law Courts - Mitie Facilities - TO-SE-16-17-1785 - Brighton Law - LED Lighting To Courtrooms
Ministry of Justice,HMCTS,04/11/2016,222003-CIS Labour TFM Estates,CZ999-South East Region,MITIE FACILITIES SERVICES LTD,3568582," 40,840.91 ",CIS Labour - Peterborough Magistrates - Mitie Facilities - TO-SE-16-17-1819 - 6201825 - Cooling towers remedial works
Ministry of Justice,HMCTS,23/11/2016,610400-Debtors <1 year - Prepayments & Accrued Income,CZ999-South East Region,CANTERBURY CITY COUNCIL,3587104," 41,996.50 ",Rates Invoice
Ministry of Justice,HMCTS,23/11/2016,610400-Debtors <1 year - Prepayments & Accrued Income,CZ999-South East Region,READING BOROUGH COUNCIL,3587236," 46,469.50 ",Rates Invoice
Ministry of Justice,HMCTS,01/11/2016,223001-Printing Postage and Office expenditure,CZ999-South East Region,ROYAL MAIL GROUP PLC,3564632," 51,512.02 ","SE Regional consolidated - variable charges, Royal Mail - FY 16/17"
Ministry of Justice,HMCTS,02/11/2016,223001-Printing Postage and Office expenditure,CZ999-South East Region,ROYAL MAIL GROUP PLC,3566852," 53,207.31 ","SE Regional consolidated - variable charges, Royal Mail - FY 16/17"
Ministry of Justice,HMCTS,08/11/2016,223001-Printing Postage and Office expenditure,CZ999-South East Region,ROYAL MAIL GROUP PLC,3571996," 54,064.69 ","SE Regional consolidated - variable charges, Royal Mail - FY 16/17"
Ministry of Justice,HMCTS,23/11/2016,610400-Debtors <1 year - Prepayments & Accrued Income,CZ999-South East Region,MAIDSTONE BOROUGH COUNCIL,3587204," 56,658.00 ",Rates Invoice
Ministry of Justice,HMCTS,25/11/2016,222003-CIS Labour TFM Estates,CZ999-South East Region,MITIE FACILITIES SERVICES LTD,3590909," 57,452.24 ",Waste Disposal
Ministry of Justice,HMCTS,08/11/2016,532000-Tangible GBV - Additions,CZ999-South East Region,MITIE FACILITIES SERVICES LTD,3571066," 62,915.86 ",CIS Labour - Brighton Family Centre - Mitie Facilities Service Ltd - TO-SE-15-16-2229: Emergency Lighting Replacement
Ministry of Justice,HMCTS,29/11/2016,532000-Tangible GBV - Additions,CZ999-South East Region,MITIE FACILITIES SERVICES LTD,3593537," 62,972.34 ",CIS Labour - Oxford Combined - Mitie Facilities Service Ltd -TO-SE-16-17-1594: Creation of Tribunal Hearing Room
Ministry of Justice,HMCTS,04/11/2016,532000-Tangible GBV - Additions,CZ999-South East Region,MITIE FACILITIES SERVICES LTD,3568582," 65,977.74 ",CIS Labour - Luton Magistrates'  - Mitie Facilities - TO-SE-16-17-1683: 6035154 - Creation of DDA Hearing Rooms & WC
Ministry of Justice,HMCTS,22/11/2016,261000-Fuel and Utilities,CZ999-South East Region,CORONA ENERGY RETAIL 2 LTD,3585826," 66,664.57 ",SE Region Consolidated - Gas charges - 16/17
Ministry of Justice,HMCTS,29/11/2016,532000-Tangible GBV - Additions,CZ999-South East Region,MITIE FACILITIES SERVICES LTD,3593537," 68,082.92 ",CIS Labour - Reading Crown - Mitie Facilities - TO-SE-16-17-1797 - 6248794 - Mains Water Pipe Replacement
Ministry of Justice,HMCTS,15/11/2016,222003-CIS Labour TFM Estates,CZ999-South East Region,MITIE FACILITIES SERVICES LTD,3578038," 95,438.38 ",Management Costs
Ministry of Justice,HMCTS,01/11/2016,532000-Tangible GBV - Additions,CZ999-South East Region,MITIE FACILITIES SERVICES LTD,3563561," 103,705.20 ",CIS Labour - Basildon Combined - Mitie Facilities - TO-SE-16-17-1718: replacement of chillers
Ministry of Justice,HMCTS,30/11/2016,532000-Tangible GBV - Additions,CZ999-South East Region,MITIE FACILITIES SERVICES LTD,3595267," 119,424.32 ",CIS Labour - Norwich Magistrates - Mitie Facilities - TO-SE-16-17-1794 - 6248576 - Boiler & pipework replacement
Ministry of Justice,HMCTS,29/11/2016,222003-CIS Labour TFM Estates,CZ999-South East Region,MITIE FACILITIES SERVICES LTD,3593537," 142,400.85 ",CIS Labour - Chelmsford Magistrates' - Mitie Facilities Service Ltd - Osprey House reconfiguration - TO-SE-16-17-1225
Ministry of Justice,HMCTS,15/11/2016,222003-CIS Labour TFM Estates,CZ999-South East Region,MITIE FACILITIES SERVICES LTD,3578038," 148,322.37 ",M&E Repair & Maintenance
Ministry of Justice,HMCTS,25/11/2016,222003-CIS Labour TFM Estates,CZ999-South East Region,MITIE FACILITIES SERVICES LTD,3590909," 188,192.71 ",Cleaning
Ministry of Justice,HMCTS,25/11/2016,222003-CIS Labour TFM Estates,CZ999-South East Region,MITIE FACILITIES SERVICES LTD,3590909," 434,801.45 ",Security
Ministry of Justice,HMCTS,01/11/2016,265000-IT & Telecommunications,DZ999-South West Region,ATOS IT SERVICES UK LTD,3563310, 5.00 ,DVI to VGA Cable Adapter
Ministry of Justice,HMCTS,18/11/2016,261000-Fuel and Utilities,DZ999-South West Region,CORONA ENERGY RETAIL 2 LTD,3582643, 8.73 ,HMCTS SW Corona gas consolidated charge.
Ministry of Justice,HMCTS,30/11/2016,265000-IT & Telecommunications,DZ999-South West Region,ATOS IT SERVICES UK LTD,3594407, 9.75 ,Logitech M185 Bluetooth Scroll Mouse
Ministry of Justice,HMCTS,01/11/2016,265000-IT & Telecommunications,DZ999-South West Region,ATOS IT SERVICES UK LTD,3563310, 14.48 ,HP Standard USB Keyboard
Ministry of Justice,HMCTS,01/11/2016,265000-IT & Telecommunications,DZ999-South West Region,ATOS IT SERVICES UK LTD,3563310, 14.98 ,Display port to VGA Cable Adapter
Ministry of Justice,HMCTS,01/11/2016,265000-IT & Telecommunications,DZ999-South West Region,ATOS IT SERVICES UK LTD,3563310, 14.98 ,Display port to VGA Cable Adapter
Ministry of Justice,HMCTS,01/11/2016,265000-IT & Telecommunications,DZ999-South West Region,ATOS IT SERVICES UK LTD,3563310, 18.33 ,Cherry eVolution WHITE STREAM PS/2 and USB
Ministry of Justice,HMCTS,01/11/2016,265000-IT & Telecommunications,DZ999-South West Region,ATOS IT SERVICES UK LTD,3563310, 18.33 ,Cherry eVolution WHITE STREAM PS/2 and USB
Ministry of Justice,HMCTS,01/11/2016,265000-IT & Telecommunications,DZ999-South West Region,ATOS IT SERVICES UK LTD,3563310, 18.33 ,Low-noise / soft touch keyboard
Ministry of Justice,HMCTS,01/11/2016,265000-IT & Telecommunications,DZ999-South West Region,ATOS IT SERVICES UK LTD,3563310, 18.33 ,Low-noise / soft touch keyboard
Ministry of Justice,HMCTS,30/11/2016,265000-IT & Telecommunications,DZ999-South West Region,ATOS IT SERVICES UK LTD,3594407, 18.33 ,Low-noise / soft touch keyboard
Ministry of Justice,HMCTS,01/11/2016,265000-IT & Telecommunications,DZ999-South West Region,ATOS IT SERVICES UK LTD,3563310, 19.48 ,HP USB/PS2 Optical Scroll Mouse
Ministry of Justice,HMCTS,01/11/2016,265000-IT & Telecommunications,DZ999-South West Region,ATOS IT SERVICES UK LTD,3563310, 25.78 ,Fixed IPT Phone Change 1-10 Devices
Ministry of Justice,HMCTS,01/11/2016,265000-IT & Telecommunications,DZ999-South West Region,ATOS IT SERVICES UK LTD,3563310, 25.78 ,Fixed IPT Phone Transfer to a new user 1-10 Devices
Ministry of Justice,HMCTS,30/11/2016,265000-IT & Telecommunications,DZ999-South West Region,ATOS IT SERVICES UK LTD,3594407, 25.78 ,Hunt Group - Amendment
Ministry of Justice,HMCTS,30/11/2016,265000-IT & Telecommunications,DZ999-South West Region,ATOS IT SERVICES UK LTD,3594407, 25.78 ,New IPT Handset 1 - 11 devices
Ministry of Justice,HMCTS,30/11/2016,265000-IT & Telecommunications,DZ999-South West Region,ATOS IT SERVICES UK LTD,3594407, 25.78 ,Voicemail - Removal Of Voicemail 1-10 Accounts
Ministry of Justice,HMCTS,01/11/2016,265000-IT & Telecommunications,DZ999-South West Region,ATOS IT SERVICES UK LTD,3563310, 28.84 ,Lenovo X240/Yoga Mains Adaptor
Ministry of Justice,HMCTS,01/11/2016,265000-IT & Telecommunications,DZ999-South West Region,ATOS IT SERVICES UK LTD,3563310, 28.84 ,Lenovo X240/Yoga Mains Adaptor
Ministry of Justice,HMCTS,30/11/2016,265000-IT & Telecommunications,DZ999-South West Region,ATOS IT SERVICES UK LTD,3594407, 28.84 ,Lenovo X240/Yoga Mains Adaptor
Ministry of Justice,HMCTS,30/11/2016,265000-IT & Telecommunications,DZ999-South West Region,ATOS IT SERVICES UK LTD,3594407, 29.96 ,Display port to VGA Cable Adapter
Ministry of Justice,HMCTS,01/11/2016,265000-IT & Telecommunications,DZ999-South West Region,ATOS IT SERVICES UK LTD,3563310, 36.66 ,Cherry eVolution WHITE STREAM PS/2 and USB
Ministry of Justice,HMCTS,01/11/2016,265000-IT & Telecommunications,DZ999-South West Region,ATOS IT SERVICES UK LTD,3563310, 46.00 ,Provision and support of Secure Remote Access (RWSII) Capability
Ministry of Justice,HMCTS,01/11/2016,265000-IT & Telecommunications,DZ999-South West Region,ATOS IT SERVICES UK LTD,3563310, 46.22 ,Request Olympus dictation and transcription software for a user.  Does not include Olympus Digital Professional Dictation Solution - DS-7000
Ministry of Justice,HMCTS,30/11/2016,265000-IT & Telecommunications,DZ999-South West Region,ATOS IT SERVICES UK LTD,3594407, 51.45 ,1.82m mini display port to DVI cable.
Ministry of Justice,HMCTS,30/11/2016,265000-IT & Telecommunications,DZ999-South West Region,ATOS IT SERVICES UK LTD,3594407, 54.99 ,Low-noise / soft touch keyboard
Ministry of Justice,HMCTS,01/11/2016,265000-IT & Telecommunications,DZ999-South West Region,ATOS IT SERVICES UK LTD,3563310, 59.92 ,Display port to VGA Cable Adapter
Ministry of Justice,HMCTS,30/11/2016,265000-IT & Telecommunications,DZ999-South West Region,ATOS IT SERVICES UK LTD,3594407, 59.92 ,Display port to VGA Cable Adapter
Ministry of Justice,HMCTS,01/11/2016,265000-IT & Telecommunications,DZ999-South West Region,ATOS IT SERVICES UK LTD,3563310, 67.31 ,Plantronics HW251 A Mono Headset 1-11 devices
Ministry of Justice,HMCTS,01/11/2016,265000-IT & Telecommunications,DZ999-South West Region,ATOS IT SERVICES UK LTD,3563310, 74.90 ,Display port to VGA Cable Adapter
Ministry of Justice,HMCTS,01/11/2016,265000-IT & Telecommunications,DZ999-South West Region,ATOS IT SERVICES UK LTD,3563310, 78.26 ,Reassign BlackBerry device within Business Unit
Ministry of Justice,HMCTS,01/11/2016,265000-IT & Telecommunications,DZ999-South West Region,ATOS IT SERVICES UK LTD,3563310, 78.26 ,Reassign BlackBerry device within Business Unit
Ministry of Justice,HMCTS,30/11/2016,265000-IT & Telecommunications,DZ999-South West Region,ATOS IT SERVICES UK LTD,3594407, 78.26 ,Reassign BlackBerry device within Business Unit
Ministry of Justice,HMCTS,30/11/2016,265000-IT & Telecommunications,DZ999-South West Region,ATOS IT SERVICES UK LTD,3594407, 89.88 ,Display port to VGA Cable Adapter
Ministry of Justice,HMCTS,01/11/2016,265000-IT & Telecommunications,DZ999-South West Region,ATOS IT SERVICES UK LTD,3563310, 174.16 ,Plantronics HW251 N Mono Headset 1-11 devices
Ministry of Justice,HMCTS,01/11/2016,265000-IT & Telecommunications,DZ999-South West Region,ATOS IT SERVICES UK LTD,3563310, 281.23 ,Lenovo X240 Windows 8.1 Laptop Monitor Kit
Ministry of Justice,HMCTS,11/11/2016,261000-Fuel and Utilities,DZ999-South West Region,BRITISH GAS BUSINESS,3575414, 286.18 ,SW Electricity Consolidated Bill -
Ministry of Justice,HMCTS,23/11/2016,610400-Debtors <1 year - Prepayments & Accrued Income,DZ999-South West Region,SOUTHAMPTON CITY COUNCIL,3587263," 2,509.85 ",Rates Invoice
Ministry of Justice,HMCTS,23/11/2016,610400-Debtors <1 year - Prepayments & Accrued Income,DZ999-South West Region,NEW FOREST DISTRICT COUNCIL,3587215," 2,609.25 ",Rates Invoice
Ministry of Justice,HMCTS,25/11/2016,222003-CIS Labour TFM Estates,DZ999-South West Region,MITIE FACILITIES SERVICES LTD,3590909," 2,665.65 ",Pest Control
Ministry of Justice,HMCTS,23/11/2016,610400-Debtors <1 year - Prepayments & Accrued Income,DZ999-South West Region,TEIGNBRIDGE DISTRICT COUNCIL,3587276," 3,056.55 ",Rates Invoice
Ministry of Justice,HMCTS,23/11/2016,610400-Debtors <1 year - Prepayments & Accrued Income,DZ999-South West Region,EAST HAMPSHIRE DISTRICT COUNCIL,3587141," 3,064.01 ",Rates Invoice
Ministry of Justice,HMCTS,23/11/2016,610400-Debtors <1 year - Prepayments & Accrued Income,DZ999-South West Region,TORBAY COUNCIL,3587280," 3,230.50 ",Rates Invoice
Ministry of Justice,HMCTS,23/11/2016,610400-Debtors <1 year - Prepayments & Accrued Income,DZ999-South West Region,EXETER CITY COUNCIL,3587147," 3,329.90 ",Rates Invoice
Ministry of Justice,HMCTS,23/11/2016,610400-Debtors <1 year - Prepayments & Accrued Income,DZ999-South West Region,HAVANT BOROUGH COUNCIL,3587161," 3,404.45 ",Rates Invoice
Ministry of Justice,HMCTS,23/11/2016,610400-Debtors <1 year - Prepayments & Accrued Income,DZ999-South West Region,NORTH DEVON DISTRICT COUNCIL,3587219," 3,702.65 ",Rates Invoice
Ministry of Justice,HMCTS,25/11/2016,222003-CIS Labour TFM Estates,DZ999-South West Region,MITIE FACILITIES SERVICES LTD,3590909," 4,037.82 ",Catering - Lease Contracts
Ministry of Justice,HMCTS,23/11/2016,610400-Debtors <1 year - Prepayments & Accrued Income,DZ999-South West Region,RUSHMOOR BOROUGH COUNCIL,3587243," 4,249.35 ",Rates Invoice
Ministry of Justice,HMCTS,23/11/2016,610400-Debtors <1 year - Prepayments & Accrued Income,DZ999-South West Region,WINCHESTER CITY COUNCIL,3587296," 4,423.30 ",Rates Invoice
Ministry of Justice,HMCTS,23/11/2016,610400-Debtors <1 year - Prepayments & Accrued Income,DZ999-South West Region,GLOUCESTER CITY COUNCIL,3587152," 4,746.35 ",Rates Invoice
Ministry of Justice,HMCTS,23/11/2016,610400-Debtors <1 year - Prepayments & Accrued Income,DZ999-South West Region,SOUTH SOMERSET DISTRICT COUNCIL,3587261," 5,168.80 ",Rates Invoice
Ministry of Justice,HMCTS,23/11/2016,610400-Debtors <1 year - Prepayments & Accrued Income,DZ999-South West Region,SOUTH SOMERSET DISTRICT COUNCIL,3587261," 5,268.20 ",Rates Invoice
Ministry of Justice,HMCTS,23/11/2016,610400-Debtors <1 year - Prepayments & Accrued Income,DZ999-South West Region,TORBAY COUNCIL,3587280," 5,367.60 ",Rates Invoice
Ministry of Justice,HMCTS,25/11/2016,222003-CIS Labour TFM Estates,DZ999-South West Region,MITIE FACILITIES SERVICES LTD,3590909," 7,630.42 ",Management Costs
Ministry of Justice,HMCTS,23/11/2016,610400-Debtors <1 year - Prepayments & Accrued Income,DZ999-South West Region,WEYMOUTH & PORTLAND BOROUGH COUNCIL,3587293," 7,753.20 ",Rates Invoice
Ministry of Justice,HMCTS,23/11/2016,610400-Debtors <1 year - Prepayments & Accrued Income,DZ999-South West Region,CORNWALL COUNCIL - NORTH CORNWALL DIVISION,3587127," 7,952.00 ",Rates Invoice
Ministry of Justice,HMCTS,23/11/2016,610400-Debtors <1 year - Prepayments & Accrued Income,DZ999-South West Region,TAUNTON DEANE BOROUGH COUNCIL,3587275," 8,051.40 ",Rates Invoice
Ministry of Justice,HMCTS,23/11/2016,610400-Debtors <1 year - Prepayments & Accrued Income,DZ999-South West Region,CORNWALL COUNCIL - CARRICK DIVISION,3587126," 9,045.40 ",Rates Invoice
Ministry of Justice,HMCTS,23/11/2016,610400-Debtors <1 year - Prepayments & Accrued Income,DZ999-South West Region,PORTSMOUTH CITY COUNCIL,3587233," 9,750.97 ",Rates Invoice
Ministry of Justice,HMCTS,23/11/2016,610400-Debtors <1 year - Prepayments & Accrued Income,DZ999-South West Region,SALFORD CITY COUNCIL,3587244," 9,754.83 ",Rates Invoice
Ministry of Justice,HMCTS,23/11/2016,610400-Debtors <1 year - Prepayments & Accrued Income,DZ999-South West Region,BASINGSTOKE & DEANE BOROUGH COUNCIL,3587078," 9,790.90 ",Rates Invoice
Ministry of Justice,HMCTS,23/11/2016,610400-Debtors <1 year - Prepayments & Accrued Income,DZ999-South West Region,SWINDON BOROUGH COUNCIL,3587273," 9,940.00 ",Rates Invoice
Ministry of Justice,HMCTS,18/11/2016,222003-CIS Labour TFM Estates,DZ999-South West Region,MITIE FACILITIES SERVICES LTD,3582879," 10,298.17 ",Grounds Maintenance
Ministry of Justice,HMCTS,23/11/2016,610400-Debtors <1 year - Prepayments & Accrued Income,DZ999-South West Region,BOURNEMOUTH BOROUGH COUNCIL,3587092," 10,437.00 ",Rates Invoice
Ministry of Justice,HMCTS,23/11/2016,610400-Debtors <1 year - Prepayments & Accrued Income,DZ999-South West Region,PLYMOUTH CITY COUNCIL,3587232," 10,536.40 ",Rates Invoice
Ministry of Justice,HMCTS,23/11/2016,610400-Debtors <1 year - Prepayments & Accrued Income,DZ999-South West Region,GLOUCESTER CITY COUNCIL,3587152," 10,934.00 ",Rates Invoice
Ministry of Justice,HMCTS,23/11/2016,610400-Debtors <1 year - Prepayments & Accrued Income,DZ999-South West Region,TAUNTON DEANE BOROUGH COUNCIL,3587275," 10,934.00 ",Rates Invoice
Ministry of Justice,HMCTS,23/11/2016,610400-Debtors <1 year - Prepayments & Accrued Income,DZ999-South West Region,SOUTH GLOUCESTERSHIRE COUNCIL,3587254," 10,983.70 ",Rates Invoice
Ministry of Justice,HMCTS,23/11/2016,610400-Debtors <1 year - Prepayments & Accrued Income,DZ999-South West Region,BOROUGH OF POOLE,3587090," 11,480.70 ",Rates Invoice
Ministry of Justice,HMCTS,23/11/2016,610400-Debtors <1 year - Prepayments & Accrued Income,DZ999-South West Region,FAREHAM BOROUGH COUNCIL,3587148," 13,419.00 ",Rates Invoice
Ministry of Justice,HMCTS,23/11/2016,610400-Debtors <1 year - Prepayments & Accrued Income,DZ999-South West Region,PLYMOUTH CITY COUNCIL,3587232," 14,313.60 ",Rates Invoice
Ministry of Justice,HMCTS,23/11/2016,610400-Debtors <1 year - Prepayments & Accrued Income,DZ999-South West Region,SWINDON BOROUGH COUNCIL,3587273," 16,401.00 ",Rates Invoice
Ministry of Justice,HMCTS,23/11/2016,610400-Debtors <1 year - Prepayments & Accrued Income,DZ999-South West Region,WILTSHIRE COUNCIL,3587295," 16,455.38 ",Rates Invoice
Ministry of Justice,HMCTS,23/11/2016,610400-Debtors <1 year - Prepayments & Accrued Income,DZ999-South West Region,ISLE OF WIGHT COUNCIL,3587171," 17,494.40 ",Rates Invoice
Ministry of Justice,HMCTS,23/11/2016,610400-Debtors <1 year - Prepayments & Accrued Income,DZ999-South West Region,BATH & NORTH EAST SOMERSET COUNCIL,3587080," 18,761.75 ",Rates Invoice
Ministry of Justice,HMCTS,23/11/2016,610400-Debtors <1 year - Prepayments & Accrued Income,DZ999-South West Region,CORNWALL COUNCIL - CARRICK DIVISION,3587126," 20,874.00 ",Rates Invoice
Ministry of Justice,HMCTS,18/11/2016,222003-CIS Labour TFM Estates,DZ999-South West Region,MITIE FACILITIES SERVICES LTD,3582879," 21,228.77 ",Internal Repair & Maintenance
Ministry of Justice,HMCTS,25/11/2016,222003-CIS Labour TFM Estates,DZ999-South West Region,MITIE FACILITIES SERVICES LTD,3590909," 24,486.63 ",Waste Disposal
Ministry of Justice,HMCTS,23/11/2016,610400-Debtors <1 year - Prepayments & Accrued Income,DZ999-South West Region,WILTSHIRE COUNCIL,3587295," 28,648.68 ",Rates Invoice
Ministry of Justice,HMCTS,11/11/2016,261000-Fuel and Utilities,DZ999-South West Region,BRITISH GAS BUSINESS,3575414," 31,027.34 ",SW Electricity Consolidated Bill -
Ministry of Justice,HMCTS,04/11/2016,532000-Tangible GBV - Additions,DZ999-South West Region,MITIE FACILITIES SERVICES LTD,3568582," 34,152.36 ",CIS Labour - Truro Combined - MITIE FACILITIES - Replacement of Door Access System - THIS REPLACES PO 20000194866
Ministry of Justice,HMCTS,23/11/2016,610400-Debtors <1 year - Prepayments & Accrued Income,DZ999-South West Region,WINCHESTER CITY COUNCIL,3587296," 34,790.00 ",Rates Invoice
Ministry of Justice,HMCTS,23/11/2016,610400-Debtors <1 year - Prepayments & Accrued Income,DZ999-South West Region,NORTH SOMERSET COUNCIL,3587222," 38,020.50 ",Rates Invoice
Ministry of Justice,HMCTS,23/11/2016,610400-Debtors <1 year - Prepayments & Accrued Income,DZ999-South West Region,PORTSMOUTH CITY COUNCIL,3587233," 38,517.50 ",Rates Invoice
Ministry of Justice,HMCTS,18/11/2016,261000-Fuel and Utilities,DZ999-South West Region,CORONA ENERGY RETAIL 2 LTD,3582643," 40,118.58 ",HMCTS SW Corona gas consolidated charge.
Ministry of Justice,HMCTS,23/11/2016,610400-Debtors <1 year - Prepayments & Accrued Income,DZ999-South West Region,BOURNEMOUTH BOROUGH COUNCIL,3587092," 42,990.50 ",Rates Invoice
Ministry of Justice,HMCTS,23/11/2016,610400-Debtors <1 year - Prepayments & Accrued Income,DZ999-South West Region,EXETER CITY COUNCIL,3587147," 45,475.50 ",Rates Invoice
Ministry of Justice,HMCTS,04/11/2016,532000-Tangible GBV - Additions,DZ999-South West Region,MOTT MACDONALD LTD,3568597," 49,709.02 ",Swindon Combined - MOTT MACDONALD - 230/15/3456- Client Representative & Multi-Dis Designer Professional fees in relation to the HMCTS Enabling works
Ministry of Justice,HMCTS,23/11/2016,610400-Debtors <1 year - Prepayments & Accrued Income,DZ999-South West Region,BRISTOL CITY COUNCIL,3587097," 50,694.00 ",Rates Invoice
Ministry of Justice,HMCTS,23/11/2016,610400-Debtors <1 year - Prepayments & Accrued Income,DZ999-South West Region,BRISTOL CITY COUNCIL,3587097," 52,185.00 ",Rates Invoice
Ministry of Justice,HMCTS,22/11/2016,222003-CIS Labour TFM Estates,DZ999-South West Region,MITIE FACILITIES SERVICES LTD,3586045," 56,721.60 ",CIS Labour - Gloucester County - Mitie Facilities - TO-SW-16-17-1310: Refurbishment of 2no lifts on site
Ministry of Justice,HMCTS,02/11/2016,532000-Tangible GBV - Additions,DZ999-South West Region,MITIE FACILITIES SERVICES LTD,3565738," 61,199.28 ",Bristol Crown - Mitie Facilities Services - TO-SW-15-16-1537: PPD Project - Replacement of 2no Lifts
Ministry of Justice,HMCTS,23/11/2016,610400-Debtors <1 year - Prepayments & Accrued Income,DZ999-South West Region,BRISTOL CITY COUNCIL,3587097," 67,095.00 ",Rates Invoice
Ministry of Justice,HMCTS,18/11/2016,222003-CIS Labour TFM Estates,DZ999-South West Region,MITIE FACILITIES SERVICES LTD,3582879," 70,541.53 ",Management Costs
Ministry of Justice,HMCTS,29/11/2016,532000-Tangible GBV - Additions,DZ999-South West Region,MITIE FACILITIES SERVICES LTD,3593537," 70,750.44 ",CIS Labour - Bournemouth Combined - Mitie Facilities - TO-SW-16-17-1180: Replace BMS System
Ministry of Justice,HMCTS,23/11/2016,610400-Debtors <1 year - Prepayments & Accrued Income,DZ999-South West Region,SOUTHAMPTON CITY COUNCIL,3587263," 73,556.00 ",Rates Invoice
Ministry of Justice,HMCTS,18/11/2016,222003-CIS Labour TFM Estates,DZ999-South West Region,MITIE FACILITIES SERVICES LTD,3582879," 101,916.08 ",M&E Repair & Maintenance
Ministry of Justice,HMCTS,25/11/2016,222003-CIS Labour TFM Estates,DZ999-South West Region,MITIE FACILITIES SERVICES LTD,3590909," 119,723.58 ",Cleaning
Ministry of Justice,HMCTS,08/11/2016,610400-Debtors <1 year - Prepayments & Accrued Income,DZ999-South West Region,DEVON COUNTY COUNCIL,3570897," 195,110.77 ",Service charge invoice
Ministry of Justice,HMCTS,25/11/2016,222003-CIS Labour TFM Estates,DZ999-South West Region,MITIE FACILITIES SERVICES LTD,3590909," 222,445.63 ",Security
Ministry of Justice,HMCTS,15/11/2016,610400-Debtors <1 year - Prepayments & Accrued Income,DZ999-South West Region,PORTSMOUTH CITY COUNCIL,468046," 280,703.46 ",Rates Invoice
Ministry of Justice,HMCTS,11/11/2016,262000-SCA Costs,DZ999-South West Region,SERVICES SUPPORT (AVON & SOMERSET) LTD,3576556," 712,448.62 ",Worle Area Office / Bristol - Services Support (Avon & Somerset) Ltd - Unitary Charges for Worle & Bristol PFI - Monthly 16/17
Ministry of Justice,HMCTS,30/11/2016,265000-IT & Telecommunications,EZ999-Wales Region,ATOS IT SERVICES UK LTD,3594407, 5.25 ,3m Cat6 network cable (purple)
Ministry of Justice,HMCTS,30/11/2016,265000-IT & Telecommunications,EZ999-Wales Region,ATOS IT SERVICES UK LTD,3594407, 14.98 ,Display port to VGA Cable Adapter
Ministry of Justice,HMCTS,01/11/2016,265000-IT & Telecommunications,EZ999-Wales Region,ATOS IT SERVICES UK LTD,3563310, 25.78 ,Deletion of a Mobility user account 1-10 Accounts
Ministry of Justice,HMCTS,01/11/2016,265000-IT & Telecommunications,EZ999-Wales Region,ATOS IT SERVICES UK LTD,3563310, 25.78 ,Fixed IPT Phone Transfer to a new user 1-10 Devices
Ministry of Justice,HMCTS,30/11/2016,265000-IT & Telecommunications,EZ999-Wales Region,ATOS IT SERVICES UK LTD,3594407, 25.78 ,Analogue Extension Configuration Changes 1 - 10
Ministry of Justice,HMCTS,30/11/2016,265000-IT & Telecommunications,EZ999-Wales Region,ATOS IT SERVICES UK LTD,3594407, 25.78 ,Analogue Extension Configuration Changes 1 - 10
Ministry of Justice,HMCTS,30/11/2016,265000-IT & Telecommunications,EZ999-Wales Region,ATOS IT SERVICES UK LTD,3594407, 25.78 ,Change Dialing Permissions 1-10 Devices
Ministry of Justice,HMCTS,30/11/2016,265000-IT & Telecommunications,EZ999-Wales Region,ATOS IT SERVICES UK LTD,3594407, 25.78 ,Hunt Group - Extension
Ministry of Justice,HMCTS,30/11/2016,265000-IT & Telecommunications,EZ999-Wales Region,ATOS IT SERVICES UK LTD,3594407, 25.78 ,Hunt Group - Extension
Ministry of Justice,HMCTS,30/11/2016,265000-IT & Telecommunications,EZ999-Wales Region,ATOS IT SERVICES UK LTD,3594407, 25.78 ,Hunt Group - Extension
Ministry of Justice,HMCTS,30/11/2016,265000-IT & Telecommunications,EZ999-Wales Region,ATOS IT SERVICES UK LTD,3594407, 25.78 ,Mobility Handset Conversion to Fixed Handset with new user details 1- 11 devices
Ministry of Justice,HMCTS,30/11/2016,265000-IT & Telecommunications,EZ999-Wales Region,ATOS IT SERVICES UK LTD,3594407, 25.78 ,New IPT Handset 1 - 11 devices
Ministry of Justice,HMCTS,30/11/2016,265000-IT & Telecommunications,EZ999-Wales Region,ATOS IT SERVICES UK LTD,3594407, 37.45 ,Installation of 2-5 desktop client devices
Ministry of Justice,HMCTS,01/11/2016,265000-IT & Telecommunications,EZ999-Wales Region,ATOS IT SERVICES UK LTD,3563310, 46.00 ,Provision and support of Secure Remote Access (RWSII) Capability
Ministry of Justice,HMCTS,01/11/2016,265000-IT & Telecommunications,EZ999-Wales Region,ATOS IT SERVICES UK LTD,3563310, 116.00 ,Relocation of a single desktop client device to a different building.
Ministry of Justice,HMCTS,01/11/2016,265000-IT & Telecommunications,EZ999-Wales Region,ATOS IT SERVICES UK LTD,3563310, 119.84 ,Display port to VGA Cable Adapter
Ministry of Justice,HMCTS,11/11/2016,261000-Fuel and Utilities,EZ999-Wales Region,BRITISH GAS BUSINESS,3575414, 240.94 ,HMCTS Wales BGB electricty charges.
Ministry of Justice,HMCTS,04/11/2016,222003-CIS Labour TFM Estates,EZ999-Wales Region,G4S FACILITIES MANAGEMENT (UK) LTD,3568405, 622.98 ,Catering
Ministry of Justice,HMCTS,22/11/2016,222003-CIS Labour TFM Estates,EZ999-Wales Region,G4S FACILITIES MANAGEMENT (UK) LTD,3585900, 622.98 ,Catering
Ministry of Justice,HMCTS,01/11/2016,265000-IT & Telecommunications,EZ999-Wales Region,ATOS IT SERVICES UK LTD,3563310, 926.52 ,"Small Form Laptop - Lenovo ThinkPad X250 - [12.5"" screen] (Windows 8.1)"
Ministry of Justice,HMCTS,04/11/2016,222003-CIS Labour TFM Estates,EZ999-Wales Region,G4S FACILITIES MANAGEMENT (UK) LTD,3568405,-948.29 ,Pest
Ministry of Justice,HMCTS,22/11/2016,222003-CIS Labour TFM Estates,EZ999-Wales Region,G4S FACILITIES MANAGEMENT (UK) LTD,3585900, 948.29 ,Pest
Ministry of Justice,HMCTS,01/11/2016,265000-IT & Telecommunications,EZ999-Wales Region,ATOS IT SERVICES UK LTD,3563310, 977.98 ,1 to 5 Devices National Relocation -Printer or MFD (Multi Function Device)
Ministry of Justice,HMCTS,22/11/2016,222003-CIS Labour TFM Estates,EZ999-Wales Region,G4S FACILITIES MANAGEMENT (UK) LTD,3585900," 1,547.42 ",Management Costs
Ministry of Justice,HMCTS,04/11/2016,222003-CIS Labour TFM Estates,EZ999-Wales Region,G4S FACILITIES MANAGEMENT (UK) LTD,3568405," 1,896.58 ",Pest
Ministry of Justice,HMCTS,23/11/2016,610400-Debtors <1 year - Prepayments & Accrued Income,EZ999-Wales Region,POWYS COUNTY COUNCIL,3587234," 2,575.80 ",Rates Invoice
Ministry of Justice,HMCTS,23/11/2016,610400-Debtors <1 year - Prepayments & Accrued Income,EZ999-Wales Region,MONMOUTHSHIRE COUNTY COUNCIL,3587213," 2,600.10 ",Rates Invoice
Ministry of Justice,HMCTS,23/11/2016,610400-Debtors <1 year - Prepayments & Accrued Income,EZ999-Wales Region,CAERPHILLY COUNTY BOROUGH COUNCIL,3587100," 3,134.70 ",Rates Invoice
Ministry of Justice,HMCTS,23/11/2016,610400-Debtors <1 year - Prepayments & Accrued Income,EZ999-Wales Region,CITY & COUNTY OF SWANSEA,3587117," 3,426.00 ",Rates Invoice
Ministry of Justice,HMCTS,23/11/2016,610400-Debtors <1 year - Prepayments & Accrued Income,EZ999-Wales Region,NEATH PORT TALBOT C.B.C.,3587214," 3,888.00 ",Rates Invoice
Ministry of Justice,HMCTS,23/11/2016,610400-Debtors <1 year - Prepayments & Accrued Income,EZ999-Wales Region,TORFAEN COUNTY BOROUGH COUNCIL,3587281," 4,098.48 ",Rates Invoice
Ministry of Justice,HMCTS,23/11/2016,610400-Debtors <1 year - Prepayments & Accrued Income,EZ999-Wales Region,NEWPORT CITY COUNCIL,3587218," 4,252.50 ",Rates Invoice
Ministry of Justice,HMCTS,23/11/2016,610400-Debtors <1 year - Prepayments & Accrued Income,EZ999-Wales Region,CAERPHILLY COUNTY BOROUGH COUNCIL,3587100," 4,689.90 ",Rates Invoice
Ministry of Justice,HMCTS,23/11/2016,610400-Debtors <1 year - Prepayments & Accrued Income,EZ999-Wales Region,CONWY COUNTY BOROUGH COUNCIL,3587124," 4,727.80 ",Rates Invoice
Ministry of Justice,HMCTS,25/11/2016,222003-CIS Labour TFM Estates,EZ999-Wales Region,G4S FACILITIES MANAGEMENT (UK) LTD,3590779," 5,588.22 ",Management Costs
Ministry of Justice,HMCTS,23/11/2016,610400-Debtors <1 year - Prepayments & Accrued Income,EZ999-Wales Region,POWYS COUNTY COUNCIL,3587234," 5,589.00 ",Rates Invoice
Ministry of Justice,HMCTS,23/11/2016,610400-Debtors <1 year - Prepayments & Accrued Income,EZ999-Wales Region,PEMBROKESHIRE COUNTY COUNCIL,3587230," 5,637.60 ",Rates Invoice
Ministry of Justice,HMCTS,04/11/2016,222003-CIS Labour TFM Estates,EZ999-Wales Region,G4S FACILITIES MANAGEMENT (UK) LTD,3568405," 5,863.01 ",Grounds Maintenance
Ministry of Justice,HMCTS,22/11/2016,222003-CIS Labour TFM Estates,EZ999-Wales Region,G4S FACILITIES MANAGEMENT (UK) LTD,3585900," 5,863.01 ",Grounds Maintenance
Ministry of Justice,HMCTS,23/11/2016,610400-Debtors <1 year - Prepayments & Accrued Income,EZ999-Wales Region,RHONDDA CYNON TAFF,3587239," 5,880.60 ",Rates Invoice
Ministry of Justice,HMCTS,23/11/2016,610400-Debtors <1 year - Prepayments & Accrued Income,EZ999-Wales Region,NEWPORT CITY COUNCIL,3587218," 6,901.20 ",Rates Invoice
Ministry of Justice,HMCTS,23/11/2016,610400-Debtors <1 year - Prepayments & Accrued Income,EZ999-Wales Region,WREXHAM COUNTY BOROUGH COUNCIL,3587300," 7,095.60 ",Rates Invoice
Ministry of Justice,HMCTS,23/11/2016,610400-Debtors <1 year - Prepayments & Accrued Income,EZ999-Wales Region,CEREDIGION COUNTY COUNCIL,3587108," 7,533.00 ",Rates Invoice
Ministry of Justice,HMCTS,23/11/2016,610400-Debtors <1 year - Prepayments & Accrued Income,EZ999-Wales Region,RHONDDA CYNON TAFF,3587239," 8,116.20 ",Rates Invoice
Ministry of Justice,HMCTS,23/11/2016,610400-Debtors <1 year - Prepayments & Accrued Income,EZ999-Wales Region,CITY & COUNTY OF SWANSEA,3587117," 8,602.00 ",Rates Invoice
Ministry of Justice,HMCTS,23/11/2016,610400-Debtors <1 year - Prepayments & Accrued Income,EZ999-Wales Region,CITY & COUNTY OF SWANSEA,3587117," 8,699.00 ",Rates Invoice
Ministry of Justice,HMCTS,23/11/2016,610400-Debtors <1 year - Prepayments & Accrued Income,EZ999-Wales Region,BRIDGEND COUNTY BOROUGH COUNCIL,3587095," 8,893.80 ",Rates Invoice
Ministry of Justice,HMCTS,23/11/2016,610400-Debtors <1 year - Prepayments & Accrued Income,EZ999-Wales Region,NEATH PORT TALBOT C.B.C.,3587214," 9,039.60 ",Rates Invoice
Ministry of Justice,HMCTS,22/11/2016,532000-Tangible GBV - Additions,EZ999-Wales Region,GALLIFORD TRY CONSTRUCTION (UK) LTD,3585902," 9,344.03 ",CIS Labour - Caernarfon CJC - Galliford Try - Court Reform Enabling Works
Ministry of Justice,HMCTS,11/11/2016,532000-Tangible GBV - Additions,EZ999-Wales Region,MOTT MACDONALD LTD,3575675," 9,559.32 ",Caernarfon CJC - Mott McDonald - Professional Fees
Ministry of Justice,HMCTS,23/11/2016,610400-Debtors <1 year - Prepayments & Accrued Income,EZ999-Wales Region,FLINTSHIRE COUNTY COUNCIL,3587149," 11,080.75 ",Rates Invoice
Ministry of Justice,HMCTS,04/11/2016,222003-CIS Labour TFM Estates,EZ999-Wales Region,G4S FACILITIES MANAGEMENT (UK) LTD,3568405,"-12,468.07 ",Waste disposal
Ministry of Justice,HMCTS,22/11/2016,222003-CIS Labour TFM Estates,EZ999-Wales Region,G4S FACILITIES MANAGEMENT (UK) LTD,3585900," 12,468.07 ",Waste disposal
Ministry of Justice,HMCTS,22/11/2016,222003-CIS Labour TFM Estates,EZ999-Wales Region,G4S FACILITIES MANAGEMENT (UK) LTD,3585900," 12,766.36 ",Internal Maintenance
Ministry of Justice,HMCTS,04/11/2016,222003-CIS Labour TFM Estates,EZ999-Wales Region,G4S FACILITIES MANAGEMENT (UK) LTD,3568405," 12,852.60 ",Internal Maintenance
Ministry of Justice,HMCTS,25/11/2016,610400-Debtors <1 year - Prepayments & Accrued Income,EZ999-Wales Region,CBRE LTD,3590693," 14,259.60 ",Service charge invoice
Ministry of Justice,HMCTS,22/11/2016,222003-CIS Labour TFM Estates,EZ999-Wales Region,G4S FACILITIES MANAGEMENT (UK) LTD,3585900," 15,044.67 ",Management Costs
Ministry of Justice,HMCTS,04/11/2016,222003-CIS Labour TFM Estates,EZ999-Wales Region,G4S FACILITIES MANAGEMENT (UK) LTD,3568405,"-15,066.75 ",Management Costs
Ministry of Justice,HMCTS,23/11/2016,610400-Debtors <1 year - Prepayments & Accrued Income,EZ999-Wales Region,NEWPORT CITY COUNCIL,3587218," 16,159.50 ",Rates Invoice
Ministry of Justice,HMCTS,25/11/2016,610400-Debtors <1 year - Prepayments & Accrued Income,EZ999-Wales Region,CBRE LTD,3590693," 16,395.00 ",Rent Invoice
Ministry of Justice,HMCTS,22/11/2016,222003-CIS Labour TFM Estates,EZ999-Wales Region,G4S FACILITIES MANAGEMENT (UK) LTD,3585900," 16,398.56 ",Internal Maintenance
Ministry of Justice,HMCTS,23/11/2016,610400-Debtors <1 year - Prepayments & Accrued Income,EZ999-Wales Region,CARDIFF COUNTY COUNCIL,3587105," 16,402.50 ",Rates Invoice
Ministry of Justice,HMCTS,23/11/2016,610400-Debtors <1 year - Prepayments & Accrued Income,EZ999-Wales Region,NEWPORT CITY COUNCIL,3587218," 16,402.50 ",Rates Invoice
Ministry of Justice,HMCTS,30/11/2016,610400-Debtors <1 year - Prepayments & Accrued Income,EZ999-Wales Region,CITY & COUNTY OF SWANSEA,3596798," 18,104.00 ",Rates Invoice
Ministry of Justice,HMCTS,30/11/2016,610400-Debtors <1 year - Prepayments & Accrued Income,EZ999-Wales Region,CITY & COUNTY OF SWANSEA,3596798," 18,104.00 ",Rates Invoice
Ministry of Justice,HMCTS,23/11/2016,610400-Debtors <1 year - Prepayments & Accrued Income,EZ999-Wales Region,MERTHYR TYDFIL COUNTY BOROUGH COUNCIL,3587208," 19,926.00 ",Rates Invoice
Ministry of Justice,HMCTS,22/11/2016,222003-CIS Labour TFM Estates,EZ999-Wales Region,G4S FACILITIES MANAGEMENT (UK) LTD,3585900," 20,309.47 ",M&E
Ministry of Justice,HMCTS,23/11/2016,610400-Debtors <1 year - Prepayments & Accrued Income,EZ999-Wales Region,CYNGOR GWYNEDD COUNCIL,3587132," 20,582.10 ",Rates Invoice
Ministry of Justice,HMCTS,23/11/2016,610400-Debtors <1 year - Prepayments & Accrued Income,EZ999-Wales Region,CARDIFF COUNTY COUNCIL,3587105," 24,056.92 ",Rates Invoice
Ministry of Justice,HMCTS,04/11/2016,222003-CIS Labour TFM Estates,EZ999-Wales Region,G4S FACILITIES MANAGEMENT (UK) LTD,3568405," 24,936.14 ",Waste disposal
Ministry of Justice,HMCTS,25/11/2016,222003-CIS Labour TFM Estates,EZ999-Wales Region,G4S FACILITIES MANAGEMENT (UK) LTD,3590779," 25,653.35 ",CIS Labour Newport county - G4S - Floor Re-screed
Ministry of Justice,HMCTS,11/11/2016,261000-Fuel and Utilities,EZ999-Wales Region,BRITISH GAS BUSINESS,3575414," 25,838.68 ",HMCTS Wales BGB electricty charges.
Ministry of Justice,HMCTS,04/11/2016,222003-CIS Labour TFM Estates,EZ999-Wales Region,G4S FACILITIES MANAGEMENT (UK) LTD,3568405," 30,133.50 ",Management Costs
Ministry of Justice,HMCTS,25/11/2016,222003-CIS Labour TFM Estates,EZ999-Wales Region,G4S FACILITIES MANAGEMENT (UK) LTD,3590779," 31,926.42 ",Internal Maintenance
Ministry of Justice,HMCTS,25/11/2016,222003-CIS Labour TFM Estates,EZ999-Wales Region,G4S FACILITIES MANAGEMENT (UK) LTD,3590779," 34,043.00 ",CIS Labour - Llandudno Magistrates.- G4S - Floor covering
Ministry of Justice,HMCTS,30/11/2016,610400-Debtors <1 year - Prepayments & Accrued Income,EZ999-Wales Region,CITY & COUNTY OF SWANSEA,3596798,"-36,208.00 ",Rates Invoice
Ministry of Justice,HMCTS,23/11/2016,610400-Debtors <1 year - Prepayments & Accrued Income,EZ999-Wales Region,CARDIFF COUNTY COUNCIL,3587105," 38,637.00 ",Rates Invoice
Ministry of Justice,HMCTS,04/11/2016,222003-CIS Labour TFM Estates,EZ999-Wales Region,G4S FACILITIES MANAGEMENT (UK) LTD,3568405," 47,031.57 ",Management Costs
Ministry of Justice,HMCTS,22/11/2016,222003-CIS Labour TFM Estates,EZ999-Wales Region,G4S FACILITIES MANAGEMENT (UK) LTD,3585900," 47,031.57 ",Management Costs
Ministry of Justice,HMCTS,04/11/2016,222003-CIS Labour TFM Estates,EZ999-Wales Region,G4S FACILITIES MANAGEMENT (UK) LTD,3568405," 60,211.52 ",M&E
Ministry of Justice,HMCTS,22/11/2016,222003-CIS Labour TFM Estates,EZ999-Wales Region,G4S FACILITIES MANAGEMENT (UK) LTD,3585900," 60,211.52 ",M&E
Ministry of Justice,HMCTS,22/11/2016,222003-CIS Labour TFM Estates,EZ999-Wales Region,G4S FACILITIES MANAGEMENT (UK) LTD,3585900," 72,537.28 ",Cleaning
Ministry of Justice,HMCTS,04/11/2016,222003-CIS Labour TFM Estates,EZ999-Wales Region,G4S FACILITIES MANAGEMENT (UK) LTD,3568405,"-74,092.55 ",Cleaning
Ministry of Justice,HMCTS,04/11/2016,222003-CIS Labour TFM Estates,EZ999-Wales Region,G4S FACILITIES MANAGEMENT (UK) LTD,3568405," 148,185.10 ",Cleaning
Ministry of Justice,HMCTS,04/11/2016,222003-CIS Labour TFM Estates,EZ999-Wales Region,G4S FACILITIES MANAGEMENT (UK) LTD,3568405,"-167,607.37 ",Security
Ministry of Justice,HMCTS,22/11/2016,222003-CIS Labour TFM Estates,EZ999-Wales Region,G4S FACILITIES MANAGEMENT (UK) LTD,3585900," 168,282.83 ",Security
Ministry of Justice,HMCTS,04/11/2016,222003-CIS Labour TFM Estates,EZ999-Wales Region,G4S FACILITIES MANAGEMENT (UK) LTD,3568405," 335,214.74 ",Security
Ministry of Justice,HMCTS,22/11/2016,223000-Other Expenditure,FC999-Centrally Managed Costs by F&G,GOVERNMENT LEGAL DEPARTMENT,11923," 3,303.00 ",Advice from Treasury Solicitors
Ministry of Justice,HMCTS,01/11/2016,223000-Other Expenditure,FC999-Centrally Managed Costs by F&G,KENT COUNTY COUNCIL,3563507," 33,735.45 ",HMCTS HQ HR Support - Pension Recharges - Kent Council FY 15/16
Ministry of Justice,HMCTS,22/11/2016,223000-Other Expenditure,FC999-Centrally Managed Costs by F&G,GOVERNMENT LEGAL DEPARTMENT,11923," 71,874.08 ",Advice from Treasury Solicitors
Ministry of Justice,HMCTS,08/11/2016,223000-Other Expenditure,FC999-Centrally Managed Costs by F&G,WEST YORKSHIRE PENSION FUND,3572068," 130,392.15 ",HMCTS HQ HR Support - Pension Recharges - West Yorkshire Pension Fund FY 15/16
Ministry of Justice,HMCTS,30/11/2016,265000-IT & Telecommunications,FZ999-Midlands Region,ATOS IT SERVICES UK LTD,3594407, 5.00 ,3M USB Device Cable
Ministry of Justice,HMCTS,01/11/2016,265000-IT & Telecommunications,FZ999-Midlands Region,ATOS IT SERVICES UK LTD,3563310, 12.00 ,Blackberry Cost Centre changes ( including Air time)
Ministry of Justice,HMCTS,01/11/2016,265000-IT & Telecommunications,FZ999-Midlands Region,ATOS IT SERVICES UK LTD,3563310, 13.12 ,SCSI External cable
Ministry of Justice,HMCTS,01/11/2016,265000-IT & Telecommunications,FZ999-Midlands Region,ATOS IT SERVICES UK LTD,3563310, 14.98 ,Display port to VGA Cable Adapter
Ministry of Justice,HMCTS,01/11/2016,265000-IT & Telecommunications,FZ999-Midlands Region,ATOS IT SERVICES UK LTD,3563310, 14.98 ,Display port to VGA Cable Adapter
Ministry of Justice,HMCTS,01/11/2016,265000-IT & Telecommunications,FZ999-Midlands Region,ATOS IT SERVICES UK LTD,3563310, 18.33 ,Cherry eVolution WHITE STREAM PS/2 and USB
Ministry of Justice,HMCTS,01/11/2016,265000-IT & Telecommunications,FZ999-Midlands Region,ATOS IT SERVICES UK LTD,3563310, 25.78 ,Hunt Group - Extension
Ministry of Justice,HMCTS,01/11/2016,265000-IT & Telecommunications,FZ999-Midlands Region,ATOS IT SERVICES UK LTD,3563310, 25.78 ,Hunt Group - Extension
Ministry of Justice,HMCTS,01/11/2016,265000-IT & Telecommunications,FZ999-Midlands Region,ATOS IT SERVICES UK LTD,3563310, 25.78 ,Hunt Group - New Default Creation
Ministry of Justice,HMCTS,01/11/2016,265000-IT & Telecommunications,FZ999-Midlands Region,ATOS IT SERVICES UK LTD,3563310, 25.78 ,Pick Up Group - Amend
Ministry of Justice,HMCTS,01/11/2016,265000-IT & Telecommunications,FZ999-Midlands Region,ATOS IT SERVICES UK LTD,3563310, 25.78 ,Pick Up Group - New
Ministry of Justice,HMCTS,01/11/2016,265000-IT & Telecommunications,FZ999-Midlands Region,ATOS IT SERVICES UK LTD,3563310, 25.78 ,Voicemail - Removal Of Voicemail 1-10 Accounts
Ministry of Justice,HMCTS,30/11/2016,265000-IT & Telecommunications,FZ999-Midlands Region,ATOS IT SERVICES UK LTD,3594407, 25.78 ,Change Dialing Permissions 1-10 Devices
Ministry of Justice,HMCTS,30/11/2016,265000-IT & Telecommunications,FZ999-Midlands Region,ATOS IT SERVICES UK LTD,3594407, 25.78 ,Hunt Group - Extension
Ministry of Justice,HMCTS,30/11/2016,265000-IT & Telecommunications,FZ999-Midlands Region,ATOS IT SERVICES UK LTD,3594407, 25.78 ,Mobility Handset Conversion to Fixed Handset with new user details 1- 11 devices
Ministry of Justice,HMCTS,30/11/2016,265000-IT & Telecommunications,FZ999-Midlands Region,ATOS IT SERVICES UK LTD,3594407, 36.06 ,Mediatrix Patch Lead and Sturctured Cabling Adaptor
Ministry of Justice,HMCTS,01/11/2016,265000-IT & Telecommunications,FZ999-Midlands Region,ATOS IT SERVICES UK LTD,3563310, 46.00 ,Provision and support of Secure Remote Access (RWSII) Capability
Ministry of Justice,HMCTS,01/11/2016,265000-IT & Telecommunications,FZ999-Midlands Region,ATOS IT SERVICES UK LTD,3563310, 46.00 ,Provision and support of Secure Remote Access (RWSII) Capability
Ministry of Justice,HMCTS,30/11/2016,265000-IT & Telecommunications,FZ999-Midlands Region,ATOS IT SERVICES UK LTD,3594407, 46.00 ,Provision and support of Secure Remote Access (RWSII) Capability
Ministry of Justice,HMCTS,01/11/2016,265000-IT & Telecommunications,FZ999-Midlands Region,ATOS IT SERVICES UK LTD,3563310, 51.56 ,Hunt Group - Extension
Ministry of Justice,HMCTS,01/11/2016,265000-IT & Telecommunications,FZ999-Midlands Region,ATOS IT SERVICES UK LTD,3563310, 51.56 ,Pick Up Group - Amend
Ministry of Justice,HMCTS,01/11/2016,265000-IT & Telecommunications,FZ999-Midlands Region,ATOS IT SERVICES UK LTD,3563310, 70.86 ,Plantronics HW251 A Mono Headset 1-11 devices
Ministry of Justice,HMCTS,01/11/2016,265000-IT & Telecommunications,FZ999-Midlands Region,ATOS IT SERVICES UK LTD,3563310, 78.26 ,Reassign BlackBerry device within Business Unit
Ministry of Justice,HMCTS,30/11/2016,265000-IT & Telecommunications,FZ999-Midlands Region,ATOS IT SERVICES UK LTD,3594407, 168.02 ,RollerMouse Pro2
Ministry of Justice,HMCTS,30/11/2016,265000-IT & Telecommunications,FZ999-Midlands Region,ATOS IT SERVICES UK LTD,3594407, 206.24 ,Mobility Handset Conversion to Fixed Handset with new user details 1- 11 devices
Ministry of Justice,HMCTS,30/11/2016,265000-IT & Telecommunications,FZ999-Midlands Region,ATOS IT SERVICES UK LTD,3594407, 222.62 ,"24"" LCD Display"
Ministry of Justice,HMCTS,30/11/2016,265000-IT & Telecommunications,FZ999-Midlands Region,ATOS IT SERVICES UK LTD,3594407, 232.02 ,Mobility Handset Conversion to Fixed Handset with new user details 1- 11 devices
Ministry of Justice,HMCTS,30/11/2016,265000-IT & Telecommunications,FZ999-Midlands Region,ATOS IT SERVICES UK LTD,3594407, 258.33 ,HP OfficeJet 100 Mobile Printer
Ministry of Justice,HMCTS,30/11/2016,265000-IT & Telecommunications,FZ999-Midlands Region,ATOS IT SERVICES UK LTD,3594407, 281.23 ,"22"" LCD Display (XP)"
Ministry of Justice,HMCTS,22/11/2016,222003-CIS Labour TFM Estates,FZ999-Midlands Region,G4S FACILITIES MANAGEMENT (UK) LTD,3585900, 463.29 ,Management Costs
Ministry of Justice,HMCTS,04/11/2016,222003-CIS Labour TFM Estates,FZ999-Midlands Region,G4S FACILITIES MANAGEMENT (UK) LTD,3568405, 475.93 ,Catering
Ministry of Justice,HMCTS,22/11/2016,222003-CIS Labour TFM Estates,FZ999-Midlands Region,G4S FACILITIES MANAGEMENT (UK) LTD,3585900, 475.93 ,Catering
Ministry of Justice,HMCTS,01/11/2016,265000-IT & Telecommunications,FZ999-Midlands Region,ATOS IT SERVICES UK LTD,3563310, 488.99 ,1 to 5 Devices National Relocation -Printer or MFD (Multi Function Device)
Ministry of Justice,HMCTS,01/11/2016,265000-IT & Telecommunications,FZ999-Midlands Region,ATOS IT SERVICES UK LTD,3563310, 488.99 ,1 to 5 Devices National Relocation -Printer or MFD (Multi Function Device)
Ministry of Justice,HMCTS,18/11/2016,223001-Printing Postage and Office expenditure,FZ999-Midlands Region,ROYAL MAIL GROUP PLC,3584000, 505.84 ,Royal Mail fixed charges 2015/16. Summary Account 0133084000.
Ministry of Justice,HMCTS,22/11/2016,222003-CIS Labour TFM Estates,FZ999-Midlands Region,G4S FACILITIES MANAGEMENT (UK) LTD,3585900, 583.00 ,Waste disposal
Ministry of Justice,HMCTS,18/11/2016,261000-Fuel and Utilities,FZ999-Midlands Region,CORONA ENERGY RETAIL 2 LTD,3582643, 780.65 ,Corona Energy gas HMCTS Midlands.
Ministry of Justice,HMCTS,01/11/2016,265000-IT & Telecommunications,FZ999-Midlands Region,ATOS IT SERVICES UK LTD,3563310, 860.00 ,1 to 5 Devices Xerox A4 Black & White Laser Printer 3600EDN
Ministry of Justice,HMCTS,01/11/2016,265000-IT & Telecommunications,FZ999-Midlands Region,ATOS IT SERVICES UK LTD,3563310, 926.52 ,"Small Form Laptop - Lenovo ThinkPad X250 - [12.5"" screen] (Windows 8.1)"
Ministry of Justice,HMCTS,22/11/2016,222003-CIS Labour TFM Estates,FZ999-Midlands Region,G4S FACILITIES MANAGEMENT (UK) LTD,3585900," 1,160.50 ",Pest
Ministry of Justice,HMCTS,01/11/2016,265000-IT & Telecommunications,FZ999-Midlands Region,ATOS IT SERVICES UK LTD,3563310," 1,398.30 ",Standard Power Down Request for DISC connected site with on site engineer assistance required
Ministry of Justice,HMCTS,04/11/2016,222003-CIS Labour TFM Estates,FZ999-Midlands Region,G4S FACILITIES MANAGEMENT (UK) LTD,3568405," 1,528.28 ",Pest
Ministry of Justice,HMCTS,22/11/2016,222003-CIS Labour TFM Estates,FZ999-Midlands Region,G4S FACILITIES MANAGEMENT (UK) LTD,3585900," 1,528.28 ",Pest
Ministry of Justice,HMCTS,23/11/2016,610400-Debtors <1 year - Prepayments & Accrued Income,FZ999-Midlands Region,NEWCASTLE UNDER LYME BOROUGH COUNCIL,3587217," 2,733.50 ",Rates Invoice
Ministry of Justice,HMCTS,23/11/2016,610400-Debtors <1 year - Prepayments & Accrued Income,FZ999-Midlands Region,LINCOLN CITY COUNCIL,3587178," 3,006.85 ",Rates Invoice
Ministry of Justice,HMCTS,23/11/2016,610400-Debtors <1 year - Prepayments & Accrued Income,FZ999-Midlands Region,CANNOCK CHASE DISTRICT COUNCIL,3587103," 3,081.40 ",Rates Invoice
Ministry of Justice,HMCTS,23/11/2016,610400-Debtors <1 year - Prepayments & Accrued Income,FZ999-Midlands Region,NORTHAMPTON BOROUGH COUNCIL,3587224," 3,280.20 ",Rates Invoice
Ministry of Justice,HMCTS,11/11/2016,532000-Tangible GBV - Additions,FZ999-Midlands Region,MOTT MACDONALD LTD,3575675," 3,600.64 ",Stafford CCC - Mott McDonald - Professional Fees
Ministry of Justice,HMCTS,23/11/2016,610400-Debtors <1 year - Prepayments & Accrued Income,FZ999-Midlands Region,EAST STAFFORDSHIRE BOROUGH COUNCIL,3587144," 3,628.10 ",Rates Invoice
Ministry of Justice,HMCTS,23/11/2016,610400-Debtors <1 year - Prepayments & Accrued Income,FZ999-Midlands Region,EAST LINDSEY DISTRICT COUNCIL,3587143," 4,224.50 ",Rates Invoice
Ministry of Justice,HMCTS,23/11/2016,610400-Debtors <1 year - Prepayments & Accrued Income,FZ999-Midlands Region,SOUTH KESTEVEN DISTRICT COUNCIL,3587257," 4,646.95 ",Rates Invoice
Ministry of Justice,HMCTS,23/11/2016,610400-Debtors <1 year - Prepayments & Accrued Income,FZ999-Midlands Region,TELFORD & WREKIN COUNCIL,3587277," 4,696.65 ",Rates Invoice
Ministry of Justice,HMCTS,22/11/2016,222003-CIS Labour TFM Estates,FZ999-Midlands Region,G4S FACILITIES MANAGEMENT (UK) LTD,3585900," 4,837.75 ",Management Costs
Ministry of Justice,HMCTS,22/11/2016,222003-CIS Labour TFM Estates,FZ999-Midlands Region,G4S FACILITIES MANAGEMENT (UK) LTD,3585900," 5,026.52 ",Management Costs
Ministry of Justice,HMCTS,22/11/2016,222003-CIS Labour TFM Estates,FZ999-Midlands Region,G4S FACILITIES MANAGEMENT (UK) LTD,3585900," 5,302.13 ",Management Costs
Ministry of Justice,HMCTS,23/11/2016,610400-Debtors <1 year - Prepayments & Accrued Income,FZ999-Midlands Region,WALSALL COUNCIL,3587285," 5,715.50 ",Rates Invoice
Ministry of Justice,HMCTS,23/11/2016,610400-Debtors <1 year - Prepayments & Accrued Income,FZ999-Midlands Region,NORTHAMPTON BOROUGH COUNCIL,3587224," 5,914.30 ",Rates Invoice
Ministry of Justice,HMCTS,23/11/2016,610400-Debtors <1 year - Prepayments & Accrued Income,FZ999-Midlands Region,SHROPSHIRE COUNCIL,3587251," 6,461.00 ",Rates Invoice
Ministry of Justice,HMCTS,23/11/2016,610400-Debtors <1 year - Prepayments & Accrued Income,FZ999-Midlands Region,BIRMINGHAM CITY COUNCIL,3587082," 6,958.00 ",Rates Invoice
Ministry of Justice,HMCTS,23/11/2016,610400-Debtors <1 year - Prepayments & Accrued Income,FZ999-Midlands Region,STAFFORD BOROUGH COUNCIL,3587269," 7,057.40 ",Rates Invoice
Ministry of Justice,HMCTS,22/11/2016,222003-CIS Labour TFM Estates,FZ999-Midlands Region,G4S FACILITIES MANAGEMENT (UK) LTD,3585900," 7,564.72 ",Management Costs
Ministry of Justice,HMCTS,23/11/2016,610400-Debtors <1 year - Prepayments & Accrued Income,FZ999-Midlands Region,DUDLEY METROPOLITAN BOROUGH COUNCIL,3587139," 8,128.03 ",Rates Invoice
Ministry of Justice,HMCTS,23/11/2016,610400-Debtors <1 year - Prepayments & Accrued Income,FZ999-Midlands Region,BIRMINGHAM CITY COUNCIL,3587082," 8,200.50 ",Rates Invoice
Ministry of Justice,HMCTS,04/11/2016,222003-CIS Labour TFM Estates,FZ999-Midlands Region,G4S FACILITIES MANAGEMENT (UK) LTD,3568405," 8,535.72 ",Grounds Maintenance
Ministry of Justice,HMCTS,22/11/2016,222003-CIS Labour TFM Estates,FZ999-Midlands Region,G4S FACILITIES MANAGEMENT (UK) LTD,3585900," 8,535.72 ",Grounds Maintenance
Ministry of Justice,HMCTS,22/11/2016,222003-CIS Labour TFM Estates,FZ999-Midlands Region,G4S FACILITIES MANAGEMENT (UK) LTD,3585900," 9,760.08 ",Cleaning
Ministry of Justice,HMCTS,22/11/2016,222003-CIS Labour TFM Estates,FZ999-Midlands Region,G4S FACILITIES MANAGEMENT (UK) LTD,3585900," 10,359.51 ",Grounds Maintenance
Ministry of Justice,HMCTS,23/11/2016,610400-Debtors <1 year - Prepayments & Accrued Income,FZ999-Midlands Region,REDDITCH BOROUGH COUNCIL,3587237," 10,735.20 ",Rates Invoice
Ministry of Justice,HMCTS,23/11/2016,610400-Debtors <1 year - Prepayments & Accrued Income,FZ999-Midlands Region,CANNOCK CHASE DISTRICT COUNCIL,3587103," 10,884.30 ",Rates Invoice
Ministry of Justice,HMCTS,23/11/2016,610400-Debtors <1 year - Prepayments & Accrued Income,FZ999-Midlands Region,HINCKLEY & BOSWORTH BOROUGH COUNCIL,3587163," 11,281.90 ",Rates Invoice
Ministry of Justice,HMCTS,23/11/2016,610400-Debtors <1 year - Prepayments & Accrued Income,FZ999-Midlands Region,WALSALL COUNCIL,3587285," 11,977.70 ",Rates Invoice
Ministry of Justice,HMCTS,23/11/2016,610400-Debtors <1 year - Prepayments & Accrued Income,FZ999-Midlands Region,SOLIHULL METROPOLITAN BOROUGH COUNCIL,3587253," 12,077.10 ",Rates Invoice
Ministry of Justice,HMCTS,22/11/2016,222003-CIS Labour TFM Estates,FZ999-Midlands Region,G4S FACILITIES MANAGEMENT (UK) LTD,3585900," 12,121.05 ",Management Costs
Ministry of Justice,HMCTS,23/11/2016,610400-Debtors <1 year - Prepayments & Accrued Income,FZ999-Midlands Region,SANDWELL METROPOLITAN BOROUGH  COUNCIL,3587245," 13,046.25 ",Rates Invoice
Ministry of Justice,HMCTS,23/11/2016,610400-Debtors <1 year - Prepayments & Accrued Income,FZ999-Midlands Region,WYRE FOREST DISTRICT COUNCIL,3587303," 13,787.50 ",Rates Invoice
Ministry of Justice,HMCTS,23/11/2016,610400-Debtors <1 year - Prepayments & Accrued Income,FZ999-Midlands Region,WORCESTER CITY COUNCIL,3587298," 13,916.00 ",Rates Invoice
Ministry of Justice,HMCTS,03/11/2016,610400-Debtors <1 year - Prepayments & Accrued Income,FZ999-Midlands Region,NEWCASTLE UNDER LYME BOROUGH COUNCIL,3567228," 14,315.39 ",Rates Invoice
Ministry of Justice,HMCTS,23/11/2016,610400-Debtors <1 year - Prepayments & Accrued Income,FZ999-Midlands Region,SHROPSHIRE COUNCIL,3587251," 14,537.25 ",Rates Invoice
Ministry of Justice,HMCTS,23/11/2016,610400-Debtors <1 year - Prepayments & Accrued Income,FZ999-Midlands Region,TELFORD & WREKIN COUNCIL,3587277," 14,910.00 ",Rates Invoice
Ministry of Justice,HMCTS,23/11/2016,610400-Debtors <1 year - Prepayments & Accrued Income,FZ999-Midlands Region,HEREFORDSHIRE COUNCIL,3587162," 15,407.00 ",Rates Invoice
Ministry of Justice,HMCTS,23/11/2016,610400-Debtors <1 year - Prepayments & Accrued Income,FZ999-Midlands Region,WORCESTER CITY COUNCIL,3587298," 20,377.00 ",Rates Invoice
Ministry of Justice,HMCTS,23/11/2016,610400-Debtors <1 year - Prepayments & Accrued Income,FZ999-Midlands Region,CHARNWOOD BOROUGH COUNCIL,3587109," 21,371.00 ",Rates Invoice
Ministry of Justice,HMCTS,22/11/2016,222003-CIS Labour TFM Estates,FZ999-Midlands Region,G4S FACILITIES MANAGEMENT (UK) LTD,3585900," 22,932.59 ",Internal Maintenance
Ministry of Justice,HMCTS,04/11/2016,222003-CIS Labour TFM Estates,FZ999-Midlands Region,G4S FACILITIES MANAGEMENT (UK) LTD,3568405," 23,199.71 ",Waste disposal
Ministry of Justice,HMCTS,22/11/2016,222003-CIS Labour TFM Estates,FZ999-Midlands Region,G4S FACILITIES MANAGEMENT (UK) LTD,3585900," 23,199.71 ",Waste disposal
Ministry of Justice,HMCTS,22/11/2016,222003-CIS Labour TFM Estates,FZ999-Midlands Region,G4S FACILITIES MANAGEMENT (UK) LTD,3585900," 23,572.73 ",Security
Ministry of Justice,HMCTS,23/11/2016,610400-Debtors <1 year - Prepayments & Accrued Income,FZ999-Midlands Region,MANSFIELD DISTRICT COUNCIL,3587206," 23,607.50 ",Rates Invoice
Ministry of Justice,HMCTS,23/11/2016,610400-Debtors <1 year - Prepayments & Accrued Income,FZ999-Midlands Region,CITY OF STOKE ON TRENT,3587120," 23,943.56 ",Rates Invoice
Ministry of Justice,HMCTS,23/11/2016,610400-Debtors <1 year - Prepayments & Accrued Income,FZ999-Midlands Region,COVENTRY CITY COUNCIL,3587129," 25,595.50 ",Rates Invoice
Ministry of Justice,HMCTS,04/11/2016,222003-CIS Labour TFM Estates,FZ999-Midlands Region,G4S FACILITIES MANAGEMENT (UK) LTD,3568405," 27,322.36 ",Internal Maintenance
Ministry of Justice,HMCTS,23/11/2016,610400-Debtors <1 year - Prepayments & Accrued Income,FZ999-Midlands Region,LEICESTER CITY COUNCIL,3587176," 27,335.00 ",Rates Invoice
Ministry of Justice,HMCTS,23/11/2016,610400-Debtors <1 year - Prepayments & Accrued Income,FZ999-Midlands Region,STAFFORD BOROUGH COUNCIL,3587269," 28,080.50 ",Rates Invoice
Ministry of Justice,HMCTS,23/11/2016,610400-Debtors <1 year - Prepayments & Accrued Income,FZ999-Midlands Region,COVENTRY CITY COUNCIL,3587129," 29,074.50 ",Rates Invoice
Ministry of Justice,HMCTS,22/11/2016,222003-CIS Labour TFM Estates,FZ999-Midlands Region,G4S FACILITIES MANAGEMENT (UK) LTD,3585900," 29,319.48 ",M&E
Ministry of Justice,HMCTS,23/11/2016,610400-Debtors <1 year - Prepayments & Accrued Income,FZ999-Midlands Region,DERBY CITY COUNCIL,3587136," 30,068.50 ",Rates Invoice
Ministry of Justice,HMCTS,04/11/2016,532000-Tangible GBV - Additions,FZ999-Midlands Region,MOTT MACDONALD LTD,3568597," 30,270.94 ",Northampton CCC - Mott MacDonald - Professional Fees
Ministry of Justice,HMCTS,23/11/2016,610400-Debtors <1 year - Prepayments & Accrued Income,FZ999-Midlands Region,BIRMINGHAM CITY COUNCIL,3587082," 32,056.50 ",Rates Invoice
Ministry of Justice,HMCTS,22/11/2016,222003-CIS Labour TFM Estates,FZ999-Midlands Region,G4S FACILITIES MANAGEMENT (UK) LTD,3585900," 32,133.82 ",M&E
Ministry of Justice,HMCTS,22/11/2016,222003-CIS Labour TFM Estates,FZ999-Midlands Region,G4S FACILITIES MANAGEMENT (UK) LTD,3585900," 32,334.32 ",Internal Maintenance
Ministry of Justice,HMCTS,23/11/2016,610400-Debtors <1 year - Prepayments & Accrued Income,FZ999-Midlands Region,LINCOLN CITY COUNCIL,3587178," 32,553.50 ",Rates Invoice
Ministry of Justice,HMCTS,22/11/2016,222003-CIS Labour TFM Estates,FZ999-Midlands Region,G4S FACILITIES MANAGEMENT (UK) LTD,3585900," 33,924.44 ",Management Costs
Ministry of Justice,HMCTS,04/11/2016,222003-CIS Labour TFM Estates,FZ999-Midlands Region,G4S FACILITIES MANAGEMENT (UK) LTD,3568405," 34,160.77 ",Management Costs
Ministry of Justice,HMCTS,23/11/2016,610400-Debtors <1 year - Prepayments & Accrued Income,FZ999-Midlands Region,LEICESTER CITY COUNCIL,3587176," 35,535.50 ",Rates Invoice
Ministry of Justice,HMCTS,23/11/2016,610400-Debtors <1 year - Prepayments & Accrued Income,FZ999-Midlands Region,NOTTINGHAM CITY COUNCIL,3587227," 35,553.37 ",Rates Invoice
Ministry of Justice,HMCTS,04/11/2016,532000-Tangible GBV - Additions,FZ999-Midlands Region,MOTT MACDONALD LTD,3568597," 37,035.86 ",Telford MC -Mott MacDonald - Professional Fees
Ministry of Justice,HMCTS,23/11/2016,610400-Debtors <1 year - Prepayments & Accrued Income,FZ999-Midlands Region,NORTHAMPTON BOROUGH COUNCIL,3587224," 37,772.00 ",Rates Invoice
Ministry of Justice,HMCTS,23/11/2016,610400-Debtors <1 year - Prepayments & Accrued Income,FZ999-Midlands Region,WOLVERHAMPTON CITY COUNCIL,3587297," 38,517.50 ",Rates Invoice
Ministry of Justice,HMCTS,22/11/2016,222003-CIS Labour TFM Estates,FZ999-Midlands Region,G4S FACILITIES MANAGEMENT (UK) LTD,3585900," 45,846.60 ",M&E
Ministry of Justice,HMCTS,23/11/2016,610400-Debtors <1 year - Prepayments & Accrued Income,FZ999-Midlands Region,BIRMINGHAM CITY COUNCIL,3587082," 48,457.50 ",Rates Invoice
Ministry of Justice,HMCTS,18/11/2016,261000-Fuel and Utilities,FZ999-Midlands Region,CORONA ENERGY RETAIL 2 LTD,3582643," 57,929.81 ",Corona Energy gas HMCTS Midlands.
Ministry of Justice,HMCTS,04/11/2016,532000-Tangible GBV - Additions,FZ999-Midlands Region,MOTT MACDONALD LTD,3568597," 75,413.29 ",Shrewsbury MC -Mott MacDonald - Professional Fees
Ministry of Justice,HMCTS,23/11/2016,610400-Debtors <1 year - Prepayments & Accrued Income,FZ999-Midlands Region,NOTTINGHAM CITY COUNCIL,3587227," 80,017.00 ",Rates Invoice
Ministry of Justice,HMCTS,22/11/2016,222003-CIS Labour TFM Estates,FZ999-Midlands Region,G4S FACILITIES MANAGEMENT (UK) LTD,3585900," 80,327.61 ",M&E
Ministry of Justice,HMCTS,22/11/2016,222003-CIS Labour TFM Estates,FZ999-Midlands Region,G4S FACILITIES MANAGEMENT (UK) LTD,3585900," 90,803.63 ",M&E
Ministry of Justice,HMCTS,04/11/2016,222003-CIS Labour TFM Estates,FZ999-Midlands Region,G4S FACILITIES MANAGEMENT (UK) LTD,3568405," 106,147.27 ",Management Costs
Ministry of Justice,HMCTS,22/11/2016,222003-CIS Labour TFM Estates,FZ999-Midlands Region,G4S FACILITIES MANAGEMENT (UK) LTD,3585900," 110,405.81 ",Management Costs
Ministry of Justice,HMCTS,11/11/2016,610400-Debtors <1 year - Prepayments & Accrued Income,FZ999-Midlands Region,HEREFORDSHIRE COUNCIL,3575566," 111,261.28 ",Midlands Region
Ministry of Justice,HMCTS,08/11/2016,262000-SCA Costs,FZ999-Midlands Region,DERBYSHIRE COURTS LTD,3570894," 118,306.35 ",Derbyshire PFI - Derbyshire Court Ltd - Monthly Unitary Charges 16/17
Ministry of Justice,HMCTS,04/11/2016,222003-CIS Labour TFM Estates,FZ999-Midlands Region,G4S FACILITIES MANAGEMENT (UK) LTD,3568405," 150,467.39 ",M&E
Ministry of Justice,HMCTS,22/11/2016,222003-CIS Labour TFM Estates,FZ999-Midlands Region,G4S FACILITIES MANAGEMENT (UK) LTD,3585900," 150,467.39 ",M&E
Ministry of Justice,HMCTS,23/11/2016,610400-Debtors <1 year - Prepayments & Accrued Income,FZ999-Midlands Region,BIRMINGHAM CITY COUNCIL,3587082," 162,519.00 ",Rates Invoice
Ministry of Justice,HMCTS,22/11/2016,222003-CIS Labour TFM Estates,FZ999-Midlands Region,G4S FACILITIES MANAGEMENT (UK) LTD,3585900," 192,372.36 ",Cleaning
Ministry of Justice,HMCTS,04/11/2016,222003-CIS Labour TFM Estates,FZ999-Midlands Region,G4S FACILITIES MANAGEMENT (UK) LTD,3568405," 196,809.10 ",Cleaning
Ministry of Justice,HMCTS,29/11/2016,532000-Tangible GBV - Additions,FZ999-Midlands Region,SHAYLOR GROUP PLC,3594261," 200,886.25 ",Shrewsbury MC - Shaylor Group - BPRN 3434  Court Reform: Integration enabling works Pre-con fees
Ministry of Justice,HMCTS,01/11/2016,532000-Tangible GBV - Additions,FZ999-Midlands Region,J TOMLINSON LTD,3563491," 212,414.38 ",Axis House OPG - J. Tomlinson - Refurbishment works
Ministry of Justice,HMCTS,18/11/2016,223001-Printing Postage and Office expenditure,FZ999-Midlands Region,ROYAL MAIL GROUP PLC,3584000," 218,032.00 ",Royal Mail fixed charges 2015/16. 
Ministry of Justice,HMCTS,04/11/2016,222003-CIS Labour TFM Estates,FZ999-Midlands Region,G4S FACILITIES MANAGEMENT (UK) LTD,3568405," 357,945.23 ",Security
Ministry of Justice,HMCTS,22/11/2016,222003-CIS Labour TFM Estates,FZ999-Midlands Region,G4S FACILITIES MANAGEMENT (UK) LTD,3585900," 357,945.23 ",Security
Ministry of Justice,HMCTS,08/11/2016,262000-SCA Costs,FZ999-Midlands Region,DERBYSHIRE COURTS LTD,3570894," 500,669.95 ",Derbyshire PFI - Derbyshire Court Ltd - Monthly Unitary Charges 16/17
Ministry of Justice,HMCTS,23/11/2016,262000-SCA Costs,FZ999-Midlands Region,H & W COURTS LIMITED,3587857," 526,901.02 ",Hereford and Worcester PFI 2016-17 - H & W Courts Ltd - Monthly 2016-17 Unitary Charges for H&W PFI
Ministry of Justice,HMCTS,01/11/2016,262000-SCA Costs,FZ999-Midlands Region,H & W COURTS LIMITED,3563453," 532,074.71 ",Hereford and Worcester PFI 2016-17 - H & W Courts Ltd - Monthly 2016-17 Unitary Charges for H&W PFI
Ministry of Justice,HMCTS,01/11/2016,265000-IT & Telecommunications,GZ999-North West Region,ATOS IT SERVICES UK LTD,3563310, 9.18 ,Plantronics U10P-S19 Bottom Cable  1-11 devices
Ministry of Justice,HMCTS,30/11/2016,265000-IT & Telecommunications,GZ999-North West Region,ATOS IT SERVICES UK LTD,3594407, 10.26 ,Standard Keyboard
Ministry of Justice,HMCTS,30/11/2016,265000-IT & Telecommunications,GZ999-North West Region,ATOS IT SERVICES UK LTD,3594407, 10.92 ,Compact Keyboard
Ministry of Justice,HMCTS,30/11/2016,265000-IT & Telecommunications,GZ999-North West Region,ATOS IT SERVICES UK LTD,3594407, 18.33 ,Cherry eVolution WHITE STREAM PS/2 and USB
Ministry of Justice,HMCTS,30/11/2016,265000-IT & Telecommunications,GZ999-North West Region,ATOS IT SERVICES UK LTD,3594407, 25.65 ,Standard Keyboard
Ministry of Justice,HMCTS,01/11/2016,265000-IT & Telecommunications,GZ999-North West Region,ATOS IT SERVICES UK LTD,3563310, 25.78 ,Hunt Group - Extension
Ministry of Justice,HMCTS,01/11/2016,265000-IT & Telecommunications,GZ999-North West Region,ATOS IT SERVICES UK LTD,3563310, 25.78 ,Pick Up Group - Amend
Ministry of Justice,HMCTS,30/11/2016,265000-IT & Telecommunications,GZ999-North West Region,ATOS IT SERVICES UK LTD,3594407, 25.78 ,Mobility Account Changes 1-10 Accounts
Ministry of Justice,HMCTS,30/11/2016,265000-IT & Telecommunications,GZ999-North West Region,ATOS IT SERVICES UK LTD,3594407, 25.78 ,Mobility Handset Conversion to Fixed Handset with new user details 1- 11 devices
Ministry of Justice,HMCTS,30/11/2016,265000-IT & Telecommunications,GZ999-North West Region,ATOS IT SERVICES UK LTD,3594407, 25.78 ,Mobility Handset Conversion to Fixed Handset with new user details 1- 11 devices
Ministry of Justice,HMCTS,30/11/2016,265000-IT & Telecommunications,GZ999-North West Region,ATOS IT SERVICES UK LTD,3594407, 25.78 ,Mobility Handset Conversion to Fixed Handset with new user details 1- 11 devices
Ministry of Justice,HMCTS,30/11/2016,265000-IT & Telecommunications,GZ999-North West Region,ATOS IT SERVICES UK LTD,3594407, 25.78 ,Voicemail - New Voicemail Account 1-10 Accounts
Ministry of Justice,HMCTS,30/11/2016,265000-IT & Telecommunications,GZ999-North West Region,ATOS IT SERVICES UK LTD,3594407, 25.78 ,Voicemail - Provision of voicemail  account for a Hunt Group 1-10 Instances
Ministry of Justice,HMCTS,01/11/2016,265000-IT & Telecommunications,GZ999-North West Region,ATOS IT SERVICES UK LTD,3563310, 28.84 ,Lenovo X240/Yoga Mains Adaptor
Ministry of Justice,HMCTS,30/11/2016,265000-IT & Telecommunications,GZ999-North West Region,ATOS IT SERVICES UK LTD,3594407, 28.84 ,Lenovo X240/Yoga Mains Adaptor
Ministry of Justice,HMCTS,30/11/2016,265000-IT & Telecommunications,GZ999-North West Region,ATOS IT SERVICES UK LTD,3594407, 28.84 ,Lenovo X240/Yoga Mains Adaptor
Ministry of Justice,HMCTS,01/11/2016,265000-IT & Telecommunications,GZ999-North West Region,ATOS IT SERVICES UK LTD,3563310, 30.05 ,Lenovo One Link Adaptor (Windows 8.1)
Ministry of Justice,HMCTS,01/11/2016,265000-IT & Telecommunications,GZ999-North West Region,ATOS IT SERVICES UK LTD,3563310, 30.05 ,Lenovo One Link Adaptor (Windows 8.1)
Ministry of Justice,HMCTS,01/11/2016,265000-IT & Telecommunications,GZ999-North West Region,ATOS IT SERVICES UK LTD,3563310, 30.05 ,Lenovo One Link Adaptor (Windows 8.1)
Ministry of Justice,HMCTS,01/11/2016,265000-IT & Telecommunications,GZ999-North West Region,ATOS IT SERVICES UK LTD,3563310, 30.05 ,Lenovo One Link Adaptor (Windows 8.1)
Ministry of Justice,HMCTS,01/11/2016,265000-IT & Telecommunications,GZ999-North West Region,ATOS IT SERVICES UK LTD,3563310, 30.05 ,Lenovo One Link Adaptor (Windows 8.1)
Ministry of Justice,HMCTS,01/11/2016,265000-IT & Telecommunications,GZ999-North West Region,ATOS IT SERVICES UK LTD,3563310, 30.05 ,Lenovo One Link Adaptor (Windows 8.1)
Ministry of Justice,HMCTS,01/11/2016,265000-IT & Telecommunications,GZ999-North West Region,ATOS IT SERVICES UK LTD,3563310, 30.05 ,Lenovo One Link Adaptor (Windows 8.1)
Ministry of Justice,HMCTS,01/11/2016,265000-IT & Telecommunications,GZ999-North West Region,ATOS IT SERVICES UK LTD,3563310, 30.05 ,Lenovo One Link Adaptor (Windows 8.1)
Ministry of Justice,HMCTS,01/11/2016,265000-IT & Telecommunications,GZ999-North West Region,ATOS IT SERVICES UK LTD,3563310, 30.05 ,Lenovo One Link Adaptor (Windows 8.1)
Ministry of Justice,HMCTS,01/11/2016,265000-IT & Telecommunications,GZ999-North West Region,ATOS IT SERVICES UK LTD,3563310, 30.05 ,Lenovo One Link Adaptor (Windows 8.1)
Ministry of Justice,HMCTS,01/11/2016,265000-IT & Telecommunications,GZ999-North West Region,ATOS IT SERVICES UK LTD,3563310, 30.05 ,Lenovo One Link Adaptor (Windows 8.1)
Ministry of Justice,HMCTS,01/11/2016,265000-IT & Telecommunications,GZ999-North West Region,ATOS IT SERVICES UK LTD,3563310, 30.05 ,Lenovo One Link Adaptor (Windows 8.1)
Ministry of Justice,HMCTS,01/11/2016,265000-IT & Telecommunications,GZ999-North West Region,ATOS IT SERVICES UK LTD,3563310, 30.05 ,Lenovo One Link Adaptor (Windows 8.1)
Ministry of Justice,HMCTS,01/11/2016,265000-IT & Telecommunications,GZ999-North West Region,ATOS IT SERVICES UK LTD,3563310, 30.05 ,Lenovo One Link Adaptor (Windows 8.1)
Ministry of Justice,HMCTS,30/11/2016,265000-IT & Telecommunications,GZ999-North West Region,ATOS IT SERVICES UK LTD,3594407, 30.05 ,Lenovo One Link Adaptor (Windows 8.1)
Ministry of Justice,HMCTS,30/11/2016,265000-IT & Telecommunications,GZ999-North West Region,ATOS IT SERVICES UK LTD,3594407, 30.05 ,Lenovo One Link Adaptor (Windows 8.1)
Ministry of Justice,HMCTS,30/11/2016,265000-IT & Telecommunications,GZ999-North West Region,ATOS IT SERVICES UK LTD,3594407, 30.05 ,Lenovo One Link Adaptor (Windows 8.1)
Ministry of Justice,HMCTS,30/11/2016,265000-IT & Telecommunications,GZ999-North West Region,ATOS IT SERVICES UK LTD,3594407, 30.05 ,Lenovo One Link Adaptor (Windows 8.1)
Ministry of Justice,HMCTS,30/11/2016,265000-IT & Telecommunications,GZ999-North West Region,ATOS IT SERVICES UK LTD,3594407, 43.43 ,Kensington Notebook Stand with USB Hub
Ministry of Justice,HMCTS,30/11/2016,265000-IT & Telecommunications,GZ999-North West Region,ATOS IT SERVICES UK LTD,3594407, 45.76 ,Andrea NC181VM USB headset
Ministry of Justice,HMCTS,30/11/2016,265000-IT & Telecommunications,GZ999-North West Region,ATOS IT SERVICES UK LTD,3594407, 45.76 ,Andrea NC181VM USB headset
Ministry of Justice,HMCTS,30/11/2016,265000-IT & Telecommunications,GZ999-North West Region,ATOS IT SERVICES UK LTD,3594407, 46.00 ,Provision and support of Secure Remote Access (RWSII) Capability
Ministry of Justice,HMCTS,01/11/2016,265000-IT & Telecommunications,GZ999-North West Region,ATOS IT SERVICES UK LTD,3563310, 51.56 ,Fixed IPT Phone Change 1-10 Devices
Ministry of Justice,HMCTS,30/11/2016,265000-IT & Telecommunications,GZ999-North West Region,ATOS IT SERVICES UK LTD,3594407, 51.56 ,Hunt Group - Extension
Ministry of Justice,HMCTS,30/11/2016,265000-IT & Telecommunications,GZ999-North West Region,ATOS IT SERVICES UK LTD,3594407, 51.56 ,Pick Up Group - Amend
Ministry of Justice,HMCTS,30/11/2016,265000-IT & Telecommunications,GZ999-North West Region,ATOS IT SERVICES UK LTD,3594407, 51.56 ,Voicemail - Provision of voicemail  account for a Hunt Group 1-10 Instances
Ministry of Justice,HMCTS,01/11/2016,265000-IT & Telecommunications,GZ999-North West Region,ATOS IT SERVICES UK LTD,3563310, 56.55 ,Auto Attendant - Message Annoucement - Convert an existing Flexible message announcement to a Static message announcement
Ministry of Justice,HMCTS,30/11/2016,265000-IT & Telecommunications,GZ999-North West Region,ATOS IT SERVICES UK LTD,3594407, 60.34 ,Installation of a single desktop device
Ministry of Justice,HMCTS,30/11/2016,265000-IT & Telecommunications,GZ999-North West Region,ATOS IT SERVICES UK LTD,3594407, 60.34 ,Installation of a single desktop device
Ministry of Justice,HMCTS,01/11/2016,265000-IT & Telecommunications,GZ999-North West Region,ATOS IT SERVICES UK LTD,3563310, 60.54 ,4-Port USB Hub
Ministry of Justice,HMCTS,30/11/2016,265000-IT & Telecommunications,GZ999-North West Region,ATOS IT SERVICES UK LTD,3594407, 62.62 ,Ergonomic Keyboard [Microsoft Natural MultiMedia]
Ministry of Justice,HMCTS,01/11/2016,265000-IT & Telecommunications,GZ999-North West Region,ATOS IT SERVICES UK LTD,3563310, 70.86 ,Plantronics HW251 A Mono Headset 1-11 devices
Ministry of Justice,HMCTS,01/11/2016,265000-IT & Telecommunications,GZ999-North West Region,ATOS IT SERVICES UK LTD,3563310, 77.34 ,Hunt Group - Extension
Ministry of Justice,HMCTS,30/11/2016,265000-IT & Telecommunications,GZ999-North West Region,ATOS IT SERVICES UK LTD,3594407, 78.26 ,Reassign BlackBerry device within Business Unit
Ministry of Justice,HMCTS,30/11/2016,265000-IT & Telecommunications,GZ999-North West Region,ATOS IT SERVICES UK LTD,3594407, 85.74 ,AirObic Mouse (also called Quill Mouse)
Ministry of Justice,HMCTS,30/11/2016,265000-IT & Telecommunications,GZ999-North West Region,ATOS IT SERVICES UK LTD,3594407, 87.08 ,Plantronics HW251 N Mono Headset 1-11 devices
Ministry of Justice,HMCTS,30/11/2016,265000-IT & Telecommunications,GZ999-North West Region,ATOS IT SERVICES UK LTD,3594407, 87.08 ,Plantronics HW251 N Mono Headset 1-11 devices
Ministry of Justice,HMCTS,01/11/2016,265000-IT & Telecommunications,GZ999-North West Region,ATOS IT SERVICES UK LTD,3563310, 87.95 ,Plantronics HW261 A Duo Headset 1-11 devices
Ministry of Justice,HMCTS,01/11/2016,265000-IT & Telecommunications,GZ999-North West Region,ATOS IT SERVICES UK LTD,3563310, 91.65 ,Low-noise / soft touch keyboard
Ministry of Justice,HMCTS,01/11/2016,265000-IT & Telecommunications,GZ999-North West Region,ATOS IT SERVICES UK LTD,3563310, 98.15 ,Humanscale M2 Monitor Arm
Ministry of Justice,HMCTS,30/11/2016,265000-IT & Telecommunications,GZ999-North West Region,ATOS IT SERVICES UK LTD,3594407, 98.15 ,Humanscale M2 Monitor Arm
Ministry of Justice,HMCTS,01/11/2016,265000-IT & Telecommunications,GZ999-North West Region,ATOS IT SERVICES UK LTD,3563310, 99.88 ,Plantronics HW261 N Duo Headset 1-11 devices
Ministry of Justice,HMCTS,01/11/2016,265000-IT & Telecommunications,GZ999-North West Region,ATOS IT SERVICES UK LTD,3563310, 103.10 ,Plantronics Vista Plus DM15 Acoustic Shock Adaptor 1-11 devices
Ministry of Justice,HMCTS,30/11/2016,265000-IT & Telecommunications,GZ999-North West Region,ATOS IT SERVICES UK LTD,3594407, 103.10 ,Plantronics Vista Plus DM15 Acoustic Shock Adaptor 1-11 devices
